{"text_format":"1","workbook":"xlsx","n_sheets":1,"sheets":["new"],"not_rendered":{"charts":0,"images":0,"macros":1,"external_links":1,"defined_names":2,"comments":0,"pivot_tables":0},"unopened":[],"bounds":{"document_bytes":16777216,"sheet_cells":100000,"rows_first":2000,"rows_last":500,"rows_between":2000,"halvings":0,"cell_chars":16384,"cell_head_chars":4096},"cells_cut":0,"cells_raw":0,"read":"whole","date_system":"1900"}

{"sheet":"new","index":0,"n_rows":840,"n_cols":55,"rows_kept":840,"cut":false,"hidden":false,"merged":[[0,0,0,10],[0,27,10,27],[0,28,0,38],[1,4,1,6],[1,12,3,12],[1,32,1,34],[22,27,32,27],[33,27,43,27],[44,27,54,27],[55,27,65,27],[66,27,76,27],[68,0,68,3],[1,40,3,40],[6,1,6,8],[6,29,6,36],[7,11,8,11],[7,39,8,39],[11,27,21,27],[77,11,78,11],[77,27,87,27],[77,39,78,39],[88,27,98,27],[99,27,109,27],[110,27,120,27],[68,28,68,31],[70,0,70,10],[70,28,70,38],[71,4,71,6],[71,32,71,34],[76,1,76,8],[76,29,76,36],[147,39,148,39],[154,27,164,27],[121,27,131,27],[132,27,142,27],[138,0,138,3],[138,28,138,31],[140,0,140,10],[140,28,140,38],[141,4,141,6],[141,32,141,34],[165,27,175,27],[176,27,186,27],[187,27,197,27],[198,27,208,27],[208,0,208,3],[208,28,208,31],[143,27,153,27],[146,1,146,8],[146,29,146,36],[147,11,148,11],[217,39,218,39],[220,27,230,27],[231,27,241,27],[242,27,252,27],[253,27,263,27],[264,27,274,27],[209,27,219,27],[210,0,210,10],[210,28,210,38],[211,4,211,6],[211,32,211,34],[216,1,216,8],[216,29,216,36],[217,11,218,11],[286,1,286,8],[286,27,296,27],[286,29,286,36],[287,11,288,11],[287,39,288,39],[297,27,307,27],[275,27,285,27],[278,0,278,3],[278,28,278,31],[280,0,280,10],[280,28,280,38],[281,4,281,6],[281,32,281,34],[356,29,356,36],[357,11,358,11],[357,39,358,39],[363,27,373,27],[308,27,318,27],[319,27,329,27],[330,27,340,27],[341,27,351,27],[348,0,348,3],[348,28,348,31],[350,0,350,10],[350,28,350,38],[351,4,351,6],[351,32,351,34],[374,27,384,27],[385,27,395,27],[396,27,406,27],[407,27,417,27],[418,0,418,3],[418,27,428,27],[427,11,428,11],[352,27,362,27],[356,1,356,8],[427,39,428,39],[429,27,439,27],[440,27,450,27],[451,27,461,27],[462,27,472,27],[473,27,483,27],[418,28,418,31],[420,0,420,10],[420,28,420,38],[421,4,421,6],[421,32,421,34],[426,1,426,8],[426,29,426,36],[497,39,498,39],[506,27,516,27],[484,27,494,27],[488,0,488,3],[488,28,488,31],[490,0,490,10],[490,28,490,38],[491,4,491,6],[491,32,491,34],[517,27,527,27],[528,27,538,27],[539,27,549,27],[550,27,560,27],[558,0,558,3],[558,28,558,31],[560,0,560,10],[560,28,560,38],[495,27,505,27],[496,1,496,8],[496,29,496,36],[497,11,498,11],[567,39,568,39],[572,27,582,27],[583,27,593,27],[594,27,604,27],[605,27,615,27],[616,27,626,27],[561,4,561,6],[561,27,571,27],[561,32,561,34],[566,1,566,8],[566,29,566,36],[567,11,568,11],[637,39,638,39],[638,27,648,27],[649,27,659,27],[660,27,670,27],[671,27,681,27],[682,27,692,27],[627,27,637,27],[628,0,628,3],[628,28,628,31],[630,0,630,10],[630,28,630,38],[631,4,631,6],[631,32,631,34],[636,1,636,8],[636,29,636,36],[637,11,638,11],[707,39,708,39],[715,27,725,27],[693,27,703,27],[698,0,698,3],[698,28,698,31],[700,0,700,10],[700,28,700,38],[701,4,701,6],[701,32,701,34],[726,27,736,27],[737,27,747,27],[748,27,758,27],[759,27,769,27],[768,0,768,3],[768,28,768,31],[704,27,714,27],[706,1,706,8],[706,29,706,36],[707,11,708,11],[838,0,838,3],[838,28,838,31],[777,39,778,39],[781,27,791,27],[792,27,802,27],[803,27,813,27],[814,27,824,27],[825,27,839,27],[770,0,770,10],[770,27,780,27],[770,28,770,38],[771,4,771,6],[771,32,771,34],[776,1,776,8],[776,29,776,36],[777,11,778,11]]}
[null,null,null,null,null,null,null,null,null,null,null,null,{"$f":"J839","v":0},null,null,null,null,null,null,null,null,null,null,null,null,null,null,"الفــــــــــــــــــــــــــــــــــــــرز",null,null,null,null,null,null,null,null,null,null,null,null,{"$f":"AL839","v":0}]
[null,null,null,null,"بطاقـــــــــــــة صنــــــف",null,null,null,null,null,null,null,"الفهرس",null,null,null,null,null,null,null,null,null,null,null,null,null,null,null,null,null,null,null,"بطاقـــــــــــــة صنــــــف",null,null,null,null,null,null,null,"الفهرس"]
[null,null,null,null,null,null,null,null,"كود الصنف",null,null,null,null,null,null,null,null,null,null,null,null,null,null,null,null,null,null,null,null,null,null,null,null,null,null,null,"كود الصنف"]
[null,null,null,null,null,"الإنتاج التام",null,null,"الوحدة","م2",null,null,null,null,null,null,null,null,null,null,null,null,null,null,null,null,null,null,null,null,null,null,null,"الإنتاج التام","فرز",null,"الوحدة","م2"]
[null,null,null,null,null,null,null,null,null,null,null,null,{"$f":"M1/M18","v":{"$error":"#DIV/0!"}},null,null,null,null,null,null,null,null,null,null,null,null,null,null,null,null,null,null,null,null,null,null,null,null,null,null,null,{"$f":"AO1/AO18","v":{"$error":"#DIV/0!"}}]
["التاريخ","بلتات","رصات","رصة","م","الوارد","م","العميل","المنصرف","الرصيــد","ملاحظات",null,"يناير",null,null,null,null,null,null,null,null,null,null,null,null,null,null,null,"التاريخ","بلتات","رصات","رصة","م","الوارد","م","العميل","المنصرف","الرصيــد","ملاحظات",null,"يناير"]
[null,"رصيد أول المدة",null,null,null,null,null,null,null,null,null,null,"فبراير",null,null,null,null,null,null,null,null,null,null,null,null,null,null,null,null,"رصيد أول المدة",null,null,null,null,null,null,null,null,null,null,"فبراير"]
[null,null,null,null,null,{"$f":"IF(E8=\"وارد\",B8*C8*D8,0)","v":0},null,null,{"$f":"IF(G8>0,B8*C8*D8,0)","v":0},{"$f":"J7+F8-I8","v":0},null,"يناير","مارس",null,null,null,null,null,null,null,null,null,null,null,null,null,null,null,null,null,null,null,null,{"$f":"IF(AG8=\"وارد\",AD8*AE8*AF8,0)","v":0},null,null,{"$f":"IF(AI8>0,AD8*AE8*AF8,0)","v":0},{"$f":"AL7+AH8-AK8","v":0},null,"يناير","مارس"]
[null,null,null,null,null,{"$f":"IF(E9=\"وارد\",B9*C9*D9,0)","v":0},null,null,{"$f":"IF(G9>0,B9*C9*D9,0)","v":0},{"$f":"J8+F9-I9","v":0},null,null,"ابريل",null,null,null,null,null,null,null,null,null,null,null,null,null,null,null,null,null,null,null,null,{"$f":"IF(AG9=\"وارد\",AD9*AE9*AF9,0)","v":0},null,null,{"$f":"IF(AI9>0,AD9*AE9*AF9,0)","v":0},{"$f":"AL8+AH9-AK9","v":0},null,null,"ابريل"]
[null,null,null,null,null,{"$f":"IF(E10=\"وارد\",B10*C10*D10,0)","v":0},null,null,0,0,null,null,"مايو",null,null,null,null,null,null,null,null,null,null,null,null,null,null,null,null,null,null,null,null,{"$f":"IF(AG10=\"وارد\",AD10*AE10*AF10,0)","v":0},null,null,0,0,null,null,"مايو"]
[null,null,null,null,null,0,null,null,0,0,null,null,"يونيو","العميل","يناير","فبراير","مارس","أبريل","مايو","يونيو","يوليو","أغسطس","سبتمبر","أكتوبر","نوفمبر","ديسمبر","الإجمالى",null,null,null,null,null,null,0,null,null,0,0,null,null,"يونيو","العميل","يناير","فبراير","مارس","أبريل","مايو","يونيو","يوليو","أغسطس","سبتمبر","أكتوبر","نوفمبر","ديسمبر","الإجمالى"]
[null,null,null,null,null,0,null,null,0,0,null,null,"يوليو",null,{"$f":"SUMIF($H$8:$H$68,N12,$I$8:$I$68)","v":0},{"$f":"SUMIF($H$78:$H$138,N12,$I$78:$I$138)","v":0},{"$f":"SUMIF($H$148:$H$208,N12,$I$148:$I$208)","v":0},{"$f":"SUMIF($H$218:$H$278,N12,$I$218:$I$278)","v":0},{"$f":"SUMIF($H$288:$H$348,N12,$I$288:$I$348)","v":0},{"$f":"SUMIF($H$358:$H$418,N12,$I$358:$I$418)","v":0},{"$f":"SUMIF($H$428:$H$488,N12,$I$428:$I$488)","v":0},{"$f":"SUMIF($H$498:$H$558,N12,$I$498:$I$558)","v":0},{"$f":"SUMIF($H$568:$H$628,N12,$I$568:$I$628)","v":0},{"$f":"SUMIF($H$638:$H$698,N12,$I$638:$I$698)","v":0},{"$f":"SUMIF($H$708:$H$768,N12,$I$708:$I$768)","v":0},{"$f":"SUMIF($H$778:$H$838,N12,$I$778:$I$838)","v":0},{"$f":"SUM(O12:Z12)","v":0},"الفــــــــــــــــــــــــــــــــــــــرز",null,null,null,null,null,0,null,null,0,0,null,null,"يوليو",null,{"$f":"SUMIF($AJ$8:$AJ$68,AP12,$AK$8:$AK$68)","v":0},{"$f":"SUMIF($AJ$78:$AJ$138,AP12,$AK$78:$AK$138)","v":0},{"$f":"SUMIF($AJ$148:$AJ$208,AP12,$AK$148:$AK$208)","v":0},{"$f":"SUMIF($AJ$218:$AJ$278,AP12,$AK$218:$AK$278)","v":0},{"$f":"SUMIF($AJ$288:$AJ$348,AP12,$AK$288:$AK$348)","v":0},{"$f":"SUMIF($AJ$358:$AJ$418,AP12,$AK$358:$AK$418)","v":0},{"$f":"SUMIF($AJ$428:$AJ$488,AP12,$AK$428:$AK$488)","v":0},{"$f":"SUMIF($AJ$498:$AJ$558,AP12,$AK$498:$AK$558)","v":0},{"$f":"SUMIF($AJ$568:$AJ$628,AP12,$AK$568:$AK$628)","v":0},{"$f":"SUMIF($AJ$638:$AJ$698,AP12,$AK$638:$AK$698)","v":0},{"$f":"SUMIF($AJ$708:$AJ$768,AP12,$AK$708:$AK$768)","v":0},{"$f":"SUMIF($AJ$778:$AJ$838,AP12,$AK$778:$AK$838)","v":0},{"$f":"SUM(AQ12:BB12)","v":0}]
[null,null,null,null,null,0,null,null,0,0,null,null,"أغسطس",null,{"$f":"SUMIF($H$8:$H$68,N13,$I$8:$I$68)","v":0},{"$f":"SUMIF($H$78:$H$138,N13,$I$78:$I$138)","v":0},{"$f":"SUMIF($H$148:$H$208,N13,$I$148:$I$208)","v":0},{"$f":"SUMIF($H$218:$H$278,N13,$I$218:$I$278)","v":0},{"$f":"SUMIF($H$288:$H$348,N13,$I$288:$I$348)","v":0},{"$f":"SUMIF($H$358:$H$418,N13,$I$358:$I$418)","v":0},{"$f":"SUMIF($H$428:$H$488,N13,$I$428:$I$488)","v":0},{"$f":"SUMIF($H$498:$H$558,N13,$I$498:$I$558)","v":0},{"$f":"SUMIF($H$568:$H$628,N13,$I$568:$I$628)","v":0},{"$f":"SUMIF($H$638:$H$698,N13,$I$638:$I$698)","v":0},{"$f":"SUMIF($H$708:$H$768,N13,$I$708:$I$768)","v":0},{"$f":"SUMIF($H$778:$H$838,N13,$I$778:$I$838)","v":0},{"$f":"SUM(O13:Z13)","v":0},null,null,null,null,null,null,0,null,null,0,0,null,null,"أغسطس",null,{"$f":"SUMIF($AJ$8:$AJ$68,AP13,$AK$8:$AK$68)","v":0},{"$f":"SUMIF($AJ$78:$AJ$138,AP13,$AK$78:$AK$138)","v":0},{"$f":"SUMIF($AJ$148:$AJ$208,AP13,$AK$148:$AK$208)","v":0},{"$f":"SUMIF($AJ$218:$AJ$278,AP13,$AK$218:$AK$278)","v":0},{"$f":"SUMIF($AJ$288:$AJ$348,AP13,$AK$288:$AK$348)","v":0},{"$f":"SUMIF($AJ$358:$AJ$418,AP13,$AK$358:$AK$418)","v":0},{"$f":"SUMIF($AJ$428:$AJ$488,AP13,$AK$428:$AK$488)","v":0},{"$f":"SUMIF($AJ$498:$AJ$558,AP13,$AK$498:$AK$558)","v":0},{"$f":"SUMIF($AJ$568:$AJ$628,AP13,$AK$568:$AK$628)","v":0},{"$f":"SUMIF($AJ$638:$AJ$698,AP13,$AK$638:$AK$698)","v":0},{"$f":"SUMIF($AJ$708:$AJ$768,AP13,$AK$708:$AK$768)","v":0},{"$f":"SUMIF($AJ$778:$AJ$838,AP13,$AK$778:$AK$838)","v":0},{"$f":"SUM(AQ13:BB13)","v":0}]
[null,null,null,null,null,0,null,null,0,0,null,null,"سبتمبر",null,0,0,0,0,0,0,0,0,0,0,0,0,0,null,null,null,null,null,null,0,null,null,0,0,null,null,"سبتمبر",null,0,0,0,0,0,0,0,0,0,0,0,0,0]
[null,null,null,null,null,0,null,null,0,0,null,null,"أكتوبر",null,0,0,0,0,0,0,0,0,0,0,0,0,0,null,null,null,null,null,null,0,null,null,0,0,null,null,"أكتوبر",null,0,0,0,0,0,0,0,0,0,0,0,0,0]
[null,null,null,null,null,0,null,null,0,0,null,null,"نوفمبر",null,0,0,0,0,0,0,0,0,0,0,0,0,0,null,null,null,null,null,null,0,null,null,0,0,null,null,"نوفمبر",null,0,0,0,0,0,0,0,0,0,0,0,0,0]
[null,null,null,null,null,0,null,null,0,0,null,null,"ديسمبر",null,0,0,0,0,0,0,0,0,0,0,0,0,0,null,null,null,null,null,null,0,null,null,0,0,null,null,"ديسمبر",null,0,0,0,0,0,0,0,0,0,0,0,0,0]
[null,null,null,null,null,0,null,null,0,0,null,null,null,null,0,0,0,0,0,0,0,0,0,0,0,0,0,null,null,null,null,null,null,0,null,null,0,0,null,null,null,null,0,0,0,0,0,0,0,0,0,0,0,0,0]
[null,null,null,null,null,0,null,null,0,0,null,null,"إلى الفرز",null,0,0,0,0,0,0,0,0,0,0,0,0,0,null,null,null,null,null,null,0,null,null,0,0,null,null,"الملف الرئيس",null,0,0,0,0,0,0,0,0,0,0,0,0,0]
[null,null,null,null,null,0,null,null,0,0,null,null,null,null,0,0,0,0,0,0,0,0,0,0,0,0,0,null,null,null,null,null,null,0,null,null,0,0,null,null,null,null,0,0,0,0,0,0,0,0,0,0,0,0,0]
[null,null,null,null,null,0,null,null,0,0,null,null,"وارد",null,0,0,0,0,0,0,0,0,0,0,0,0,0,null,null,null,null,null,null,0,null,null,0,0,null,null,null,null,0,0,0,0,0,0,0,0,0,0,0,0,0]
[null,null,null,null,null,0,null,null,0,0,null,null,null,null,0,0,0,0,0,0,0,0,0,0,0,0,0,null,null,null,null,null,null,0,null,null,0,0,null,null,null,null,0,0,0,0,0,0,0,0,0,0,0,0,0]
[null,null,null,null,null,0,null,null,0,0,null,null,null,null,0,0,0,0,0,0,0,0,0,0,0,0,0,"الفــــــــــــــــــــــــــــــــــــــرز",null,null,null,null,null,0,null,null,0,0,null,null,null,null,0,0,0,0,0,0,0,0,0,0,0,0,0]
[null,null,null,null,null,0,null,null,0,0,null,null,null,null,0,0,0,0,0,0,0,0,0,0,0,0,0,null,null,null,null,null,null,0,null,null,0,0,null,null,null,null,0,0,0,0,0,0,0,0,0,0,0,0,0]
[null,null,null,null,null,0,null,null,0,0,null,null,null,null,0,0,0,0,0,0,0,0,0,0,0,0,0,null,null,null,null,null,null,0,null,null,0,0,null,null,null,null,0,0,0,0,0,0,0,0,0,0,0,0,0]
[null,null,null,null,null,0,null,null,0,0,null,null,null,null,0,0,0,0,0,0,0,0,0,0,0,0,0,null,null,null,null,null,null,0,null,null,0,0,null,null,null,null,0,0,0,0,0,0,0,0,0,0,0,0,0]
[null,null,null,null,null,0,null,null,0,0,null,null,null,null,0,0,0,0,0,0,0,0,0,0,0,0,0,null,null,null,null,null,null,0,null,null,0,0,null,null,null,null,0,0,0,0,0,0,0,0,0,0,0,0,0]
[null,null,null,null,null,0,null,null,0,0,null,null,null,null,0,0,0,0,0,0,0,0,0,0,0,0,0,null,null,null,null,null,null,0,null,null,0,0,null,null,null,null,0,0,0,0,0,0,0,0,0,0,0,0,0]
[null,null,null,null,null,0,null,null,0,0,null,null,null,null,0,0,0,0,0,0,0,0,0,0,0,0,0,null,null,null,null,null,null,0,null,null,0,0,null,null,null,null,0,0,0,0,0,0,0,0,0,0,0,0,0]
[null,null,null,null,null,0,null,null,0,0,null,null,null,null,0,0,0,0,0,0,0,0,0,0,0,0,0,null,null,null,null,null,null,0,null,null,0,0,null,null,null,null,0,0,0,0,0,0,0,0,0,0,0,0,0]
[null,null,null,null,null,0,null,null,0,0,null,null,null,null,0,0,0,0,0,0,0,0,0,0,0,0,0,null,null,null,null,null,null,0,null,null,0,0,null,null,null,null,0,0,0,0,0,0,0,0,0,0,0,0,0]
[null,null,null,null,null,0,null,null,0,0,null,null,null,null,0,0,0,0,0,0,0,0,0,0,0,0,0,null,null,null,null,null,null,0,null,null,0,0,null,null,null,null,0,0,0,0,0,0,0,0,0,0,0,0,0]
[null,null,null,null,null,0,null,null,0,0,null,null,null,null,0,0,0,0,0,0,0,0,0,0,0,0,0,null,null,null,null,null,null,0,null,null,0,0,null,null,null,null,0,0,0,0,0,0,0,0,0,0,0,0,0]
[null,null,null,null,null,0,null,null,0,0,null,null,null,null,0,0,0,0,0,0,0,0,0,0,0,0,0,"الفــــــــــــــــــــــــــــــــــــــرز",null,null,null,null,null,0,null,null,0,0,null,null,null,null,0,0,0,0,0,0,0,0,0,0,0,0,0]
[null,null,null,null,null,0,null,null,0,0,null,null,null,null,0,0,0,0,0,0,0,0,0,0,0,0,0,null,null,null,null,null,null,0,null,null,0,0,null,null,null,null,0,0,0,0,0,0,0,0,0,0,0,0,0]
[null,null,null,null,null,0,null,null,0,0,null,null,null,null,0,0,0,0,0,0,0,0,0,0,0,0,0,null,null,null,null,null,null,0,null,null,0,0,null,null,null,null,0,0,0,0,0,0,0,0,0,0,0,0,0]
[null,null,null,null,null,0,null,null,0,0,null,null,null,null,0,0,0,0,0,0,0,0,0,0,0,0,0,null,null,null,null,null,null,0,null,null,0,0,null,null,null,null,0,0,0,0,0,0,0,0,0,0,0,0,0]
[null,null,null,null,null,0,null,null,0,0,null,null,null,null,0,0,0,0,0,0,0,0,0,0,0,0,0,null,null,null,null,null,null,0,null,null,0,0,null,null,null,null,0,0,0,0,0,0,0,0,0,0,0,0,0]
[null,null,null,null,null,0,null,null,0,0,null,null,null,null,0,0,0,0,0,0,0,0,0,0,0,0,0,null,null,null,null,null,null,0,null,null,0,0,null,null,null,null,0,0,0,0,0,0,0,0,0,0,0,0,0]
[null,null,null,null,null,0,null,null,0,0,null,null,null,null,0,0,0,0,0,0,0,0,0,0,0,0,0,null,null,null,null,null,null,0,null,null,0,0,null,null,null,null,0,0,0,0,0,0,0,0,0,0,0,0,0]
[null,null,null,null,null,0,null,null,0,0,null,null,null,null,0,0,0,0,0,0,0,0,0,0,0,0,0,null,null,null,null,null,null,0,null,null,0,0,null,null,null,null,0,0,0,0,0,0,0,0,0,0,0,0,0]
[null,null,null,null,null,0,null,null,0,0,null,null,null,null,0,0,0,0,0,0,0,0,0,0,0,0,0,null,null,null,null,null,null,0,null,null,0,0,null,null,null,null,0,0,0,0,0,0,0,0,0,0,0,0,0]
[null,null,null,null,null,0,null,null,0,0,null,null,null,null,0,0,0,0,0,0,0,0,0,0,0,0,0,null,null,null,null,null,null,0,null,null,0,0,null,null,null,null,0,0,0,0,0,0,0,0,0,0,0,0,0]
[null,null,null,null,null,0,null,null,0,0,null,null,null,null,0,0,0,0,0,0,0,0,0,0,0,0,0,null,null,null,null,null,null,0,null,null,0,0,null,null,null,null,0,0,0,0,0,0,0,0,0,0,0,0,0]
[null,null,null,null,null,0,null,null,0,0,null,null,null,null,0,0,0,0,0,0,0,0,0,0,0,0,0,"الفــــــــــــــــــــــــــــــــــــــرز",null,null,null,null,null,0,null,null,0,0,null,null,null,null,0,0,0,0,0,0,0,0,0,0,0,0,0]
[null,null,null,null,null,0,null,null,0,0,null,null,null,null,0,0,0,0,0,0,0,0,0,0,0,0,0,null,null,null,null,null,null,0,null,null,0,0,null,null,null,null,0,0,0,0,0,0,0,0,0,0,0,0,0]
[null,null,null,null,null,0,null,null,0,0,null,null,null,null,0,0,0,0,0,0,0,0,0,0,0,0,0,null,null,null,null,null,null,0,null,null,0,0,null,null,null,null,0,0,0,0,0,0,0,0,0,0,0,0,0]
[null,null,null,null,null,0,null,null,0,0,null,null,null,null,0,0,0,0,0,0,0,0,0,0,0,0,0,null,null,null,null,null,null,0,null,null,0,0,null,null,null,null,0,0,0,0,0,0,0,0,0,0,0,0,0]
[null,null,null,null,null,0,null,null,0,0,null,null,null,null,0,0,0,0,0,0,0,0,0,0,0,0,0,null,null,null,null,null,null,0,null,null,0,0,null,null,null,null,0,0,0,0,0,0,0,0,0,0,0,0,0]
[null,null,null,null,null,0,null,null,0,0,null,null,null,null,0,0,0,0,0,0,0,0,0,0,0,0,0,null,null,null,null,null,null,0,null,null,0,0,null,null,null,null,0,0,0,0,0,0,0,0,0,0,0,0,0]
[null,null,null,null,null,0,null,null,0,0,null,null,null,null,0,0,0,0,0,0,0,0,0,0,0,0,0,null,null,null,null,null,null,0,null,null,0,0,null,null,null,null,0,0,0,0,0,0,0,0,0,0,0,0,0]
[null,null,null,null,null,0,null,null,0,0,null,null,null,null,0,0,0,0,0,0,0,0,0,0,0,0,0,null,null,null,null,null,null,0,null,null,0,0,null,null,null,null,0,0,0,0,0,0,0,0,0,0,0,0,0]
[null,null,null,null,null,0,null,null,0,0,null,null,null,null,0,0,0,0,0,0,0,0,0,0,0,0,0,null,null,null,null,null,null,0,null,null,0,0,null,null,null,null,0,0,0,0,0,0,0,0,0,0,0,0,0]
[null,null,null,null,null,0,null,null,0,0,null,null,null,null,0,0,0,0,0,0,0,0,0,0,0,0,0,null,null,null,null,null,null,0,null,null,0,0,null,null,null,null,0,0,0,0,0,0,0,0,0,0,0,0,0]
[null,null,null,null,null,0,null,null,0,0,null,null,null,null,0,0,0,0,0,0,0,0,0,0,0,0,0,null,null,null,null,null,null,0,null,null,0,0,null,null,null,null,0,0,0,0,0,0,0,0,0,0,0,0,0]
[null,null,null,null,null,0,null,null,0,0,null,null,null,null,0,0,0,0,0,0,0,0,0,0,0,0,0,"الفــــــــــــــــــــــــــــــــــــــرز",null,null,null,null,null,0,null,null,0,0,null,null,null,null,0,0,0,0,0,0,0,0,0,0,0,0,0]
[null,null,null,null,null,0,null,null,0,0,null,null,null,null,0,0,0,0,0,0,0,0,0,0,0,0,0,null,null,null,null,null,null,0,null,null,0,0,null,null,null,null,0,0,0,0,0,0,0,0,0,0,0,0,0]
[null,null,null,null,null,0,null,null,0,0,null,null,null,null,0,0,0,0,0,0,0,0,0,0,0,0,0,null,null,null,null,null,null,0,null,null,0,0,null,null,null,null,0,0,0,0,0,0,0,0,0,0,0,0,0]
[null,null,null,null,null,0,null,null,0,0,null,null,null,null,0,0,0,0,0,0,0,0,0,0,0,0,0,null,null,null,null,null,null,0,null,null,0,0,null,null,null,null,0,0,0,0,0,0,0,0,0,0,0,0,0]
[null,null,null,null,null,0,null,null,0,0,null,null,null,null,0,0,0,0,0,0,0,0,0,0,0,0,0,null,null,null,null,null,null,0,null,null,0,0,null,null,null,null,0,0,0,0,0,0,0,0,0,0,0,0,0]
[null,null,null,null,null,0,null,null,0,0,null,null,null,null,0,0,0,0,0,0,0,0,0,0,0,0,0,null,null,null,null,null,null,0,null,null,0,0,null,null,null,null,0,0,0,0,0,0,0,0,0,0,0,0,0]
[null,null,null,null,null,0,null,null,0,0,null,null,null,null,0,0,0,0,0,0,0,0,0,0,0,0,0,null,null,null,null,null,null,0,null,null,0,0,null,null,null,null,0,0,0,0,0,0,0,0,0,0,0,0,0]
[null,null,null,null,null,0,null,null,0,0,null,null,null,null,0,0,0,0,0,0,0,0,0,0,0,0,0,null,null,null,null,null,null,0,null,null,0,0,null,null,null,null,0,0,0,0,0,0,0,0,0,0,0,0,0]
[null,null,null,null,null,0,null,null,0,0,null,null,null,null,0,0,0,0,0,0,0,0,0,0,0,0,0,null,null,null,null,null,null,0,null,null,0,0,null,null,null,null,0,0,0,0,0,0,0,0,0,0,0,0,0]
[null,null,null,null,null,0,null,null,0,0,null,null,null,null,0,0,0,0,0,0,0,0,0,0,0,0,0,null,null,null,null,null,null,0,null,null,0,0,null,null,null,null,0,0,0,0,0,0,0,0,0,0,0,0,0]
[null,null,null,null,null,0,null,null,0,0,null,null,null,null,0,0,0,0,0,0,0,0,0,0,0,0,0,null,null,null,null,null,null,0,null,null,0,0,null,null,null,null,0,0,0,0,0,0,0,0,0,0,0,0,0]
[null,null,null,null,null,0,null,null,0,0,null,null,null,null,0,0,0,0,0,0,0,0,0,0,0,0,0,"الفــــــــــــــــــــــــــــــــــــــرز",null,null,null,null,null,0,null,null,0,0,null,null,null,null,0,0,0,0,0,0,0,0,0,0,0,0,0]
[null,null,null,null,null,0,null,null,0,0,null,null,null,null,0,0,0,0,0,0,0,0,0,0,0,0,0,null,null,null,null,null,null,0,null,null,0,0,null,null,null,null,0,0,0,0,0,0,0,0,0,0,0,0,0]
["الإجمـــــــــــــــــــــــــالى",null,null,null,null,{"$f":"SUM(F8:F68)","v":0},null,null,{"$f":"SUM(I8:I68)","v":0},{"$f":"J7+F69-I69","v":0},null,null,null,null,0,0,0,0,0,0,0,0,0,0,0,0,0,null,"الإجمـــــــــــــــــــــــــالى",null,null,null,null,{"$f":"SUM(AH8:AH68)","v":0},null,null,{"$f":"SUM(AK8:AK68)","v":0},{"$f":"AL7+AH69-AK69","v":0},null,null,null,null,0,0,0,0,0,0,0,0,0,0,0,0,0]
["أمين المخزن",null,null,null,null,null,null,null,null,"المراجعه",null,null,null,null,0,0,0,0,0,0,0,0,0,0,0,0,0,null,"أمين المخزن",null,null,null,null,null,null,null,null,"المراجعه",null,null,null,null,0,0,0,0,0,0,0,0,0,0,0,0,0]
[{"$f":"A1","v":0},null,null,null,null,null,null,null,null,null,null,null,null,null,0,0,0,0,0,0,0,0,0,0,0,0,0,null,{"$f":"AC1","v":0},null,null,null,null,null,null,null,null,null,null,null,null,null,0,0,0,0,0,0,0,0,0,0,0,0,0]
[null,null,null,null,"بطاقـــــــــــــة صنــــــف",null,null,null,null,null,null,null,null,null,0,0,0,0,0,0,0,0,0,0,0,0,0,null,null,null,null,null,"بطاقـــــــــــــة صنــــــف",null,null,null,null,null,null,null,null,null,0,0,0,0,0,0,0,0,0,0,0,0,0]
[null,null,null,null,null,null,null,null,"كود الصنف",{"$f":"J3","v":0},null,null,null,null,0,0,0,0,0,0,0,0,0,0,0,0,0,null,null,null,null,null,null,null,null,null,"كود الصنف",{"$f":"AL3","v":0},null,null,null,null,0,0,0,0,0,0,0,0,0,0,0,0,0]
[null,null,null,null,null,"الإنتاج التام",null,null,"الوحدة","م2",null,null,null,null,0,0,0,0,0,0,0,0,0,0,0,0,0,null,null,null,null,null,null,"الإنتاج التام","فرز",null,"الوحدة","م2",null,null,null,null,0,0,0,0,0,0,0,0,0,0,0,0,0]
[null,null,null,null,null,null,null,null,null,null,null,null,null,null,0,0,0,0,0,0,0,0,0,0,0,0,0,null,null,null,null,null,null,null,null,null,null,null,null,null,null,null,0,0,0,0,0,0,0,0,0,0,0,0,0]
["التاريخ","بلتات","رصات","رصة","م","الوارد","م","العميل","المنصرف","الرصيــد","ملاحظات",null,null,null,0,0,0,0,0,0,0,0,0,0,0,0,0,null,"التاريخ","بلتات","رصات","رصة","م","الوارد","م","العميل","المنصرف","الرصيــد","ملاحظات",null,null,null,0,0,0,0,0,0,0,0,0,0,0,0,0]
[null,"رصيد أول المدة",null,null,null,null,null,null,null,{"$f":"J69","v":0},null,null,null,null,{"$f":"SUMIF($H$8:$H$68,N77,$I$8:$I$68)","v":0},{"$f":"SUMIF($H$78:$H$138,N77,$I$78:$I$138)","v":0},{"$f":"SUMIF($H$148:$H$208,N77,$I$148:$I$208)","v":0},{"$f":"SUMIF($H$218:$H$278,N77,$I$218:$I$278)","v":0},{"$f":"SUMIF($H$288:$H$348,N77,$I$288:$I$348)","v":0},{"$f":"SUMIF($H$358:$H$418,N77,$I$358:$I$418)","v":0},{"$f":"SUMIF($H$428:$H$488,N77,$I$428:$I$488)","v":0},{"$f":"SUMIF($H$498:$H$558,N77,$I$498:$I$558)","v":0},{"$f":"SUMIF($H$568:$H$628,N77,$I$568:$I$628)","v":0},{"$f":"SUMIF($H$638:$H$698,N77,$I$638:$I$698)","v":0},{"$f":"SUMIF($H$708:$H$768,N77,$I$708:$I$768)","v":0},{"$f":"SUMIF($H$778:$H$838,N77,$I$778:$I$838)","v":0},{"$f":"SUM(O77:Z77)","v":0},null,null,"رصيد أول المدة",null,null,null,null,null,null,null,{"$f":"AL69","v":0},null,null,null,null,{"$f":"SUMIF($AJ$8:$AJ$68,AP77,$AK$8:$AK$68)","v":0},{"$f":"SUMIF($AJ$78:$AJ$138,AP77,$AK$78:$AK$138)","v":0},{"$f":"SUMIF($AJ$148:$AJ$208,AP77,$AK$148:$AK$208)","v":0},{"$f":"SUMIF($AJ$218:$AJ$278,AP77,$AK$218:$AK$278)","v":0},{"$f":"SUMIF($AJ$288:$AJ$348,AP77,$AK$288:$AK$348)","v":0},{"$f":"SUMIF($AJ$358:$AJ$418,AP77,$AK$358:$AK$418)","v":0},{"$f":"SUMIF($AJ$428:$AJ$488,AP77,$AK$428:$AK$488)","v":0},{"$f":"SUMIF($AJ$498:$AJ$558,AP77,$AK$498:$AK$558)","v":0},{"$f":"SUMIF($AJ$568:$AJ$628,AP77,$AK$568:$AK$628)","v":0},{"$f":"SUMIF($AJ$638:$AJ$698,AP77,$AK$638:$AK$698)","v":0},{"$f":"SUMIF($AJ$708:$AJ$768,AP77,$AK$708:$AK$768)","v":0},{"$f":"SUMIF($AJ$778:$AJ$838,AP77,$AK$778:$AK$838)","v":0},{"$f":"SUM(AQ77:BB77)","v":0}]
[null,null,null,null,null,{"$f":"IF(E78=\"وارد\",B78*C78*D78,0)","v":0},null,null,{"$f":"IF(G78>0,B78*C78*D78,0)","v":0},{"$f":"J77+F78-I78","v":0},null,"فبراير",null,null,0,0,0,0,0,0,0,0,0,0,0,0,0,"الفــــــــــــــــــــــــــــــــــــــرز",null,null,null,null,null,{"$f":"IF(AG78=\"وارد\",AD78*AE78*AF78,0)","v":0},null,null,{"$f":"IF(AI78>0,AD78*AE78*AF78,0)","v":0},{"$f":"AL77+AH78-AK78","v":0},null,"فبراير",null,null,0,0,0,0,0,0,0,0,0,0,0,0,0]
[null,null,null,null,null,{"$f":"IF(E79=\"وارد\",B79*C79*D79,0)","v":0},null,null,{"$f":"IF(G79>0,B79*C79*D79,0)","v":0},{"$f":"J78+F79-I79","v":0},null,null,null,null,0,0,0,0,0,0,0,0,0,0,0,0,0,null,null,null,null,null,null,{"$f":"IF(AG79=\"وارد\",AD79*AE79*AF79,0)","v":0},null,null,{"$f":"IF(AI79>0,AD79*AE79*AF79,0)","v":0},{"$f":"AL78+AH79-AK79","v":0},null,null,null,null,0,0,0,0,0,0,0,0,0,0,0,0,0]
[null,null,null,null,null,{"$f":"IF(E80=\"وارد\",B80*C80*D80,0)","v":0},null,null,0,0,null,null,null,null,0,0,0,0,0,0,0,0,0,0,0,0,0,null,null,null,null,null,null,{"$f":"IF(AG80=\"وارد\",AD80*AE80*AF80,0)","v":0},null,null,0,0,null,null,null,null,0,0,0,0,0,0,0,0,0,0,0,0,0]
[null,null,null,null,null,0,null,null,0,0,null,null,null,null,0,0,0,0,0,0,0,0,0,0,0,0,0,null,null,null,null,null,null,0,null,null,0,0,null,null,null,null,0,0,0,0,0,0,0,0,0,0,0,0,0]
[null,null,null,null,null,0,null,null,0,0,null,null,null,null,0,0,0,0,0,0,0,0,0,0,0,0,0,null,null,null,null,null,null,0,null,null,0,0,null,null,null,null,0,0,0,0,0,0,0,0,0,0,0,0,0]
[null,null,null,null,null,0,null,null,0,0,null,null,null,null,0,0,0,0,0,0,0,0,0,0,0,0,0,null,null,null,null,null,null,0,null,null,0,0,null,null,null,null,0,0,0,0,0,0,0,0,0,0,0,0,0]
[null,null,null,null,null,0,null,null,0,0,null,null,null,null,0,0,0,0,0,0,0,0,0,0,0,0,0,null,null,null,null,null,null,0,null,null,0,0,null,null,null,null,0,0,0,0,0,0,0,0,0,0,0,0,0]
[null,null,null,null,null,0,null,null,0,0,null,null,null,null,0,0,0,0,0,0,0,0,0,0,0,0,0,null,null,null,null,null,null,0,null,null,0,0,null,null,null,null,0,0,0,0,0,0,0,0,0,0,0,0,0]
[null,null,null,null,null,0,null,null,0,0,null,null,null,null,0,0,0,0,0,0,0,0,0,0,0,0,0,null,null,null,null,null,null,0,null,null,0,0,null,null,null,null,0,0,0,0,0,0,0,0,0,0,0,0,0]
[null,null,null,null,null,0,null,null,0,0,null,null,null,null,0,0,0,0,0,0,0,0,0,0,0,0,0,null,null,null,null,null,null,0,null,null,0,0,null,null,null,null,0,0,0,0,0,0,0,0,0,0,0,0,0]
[null,null,null,null,null,0,null,null,0,0,null,null,null,null,0,0,0,0,0,0,0,0,0,0,0,0,0,null,null,null,null,null,null,0,null,null,0,0,null,null,null,null,0,0,0,0,0,0,0,0,0,0,0,0,0]
[null,null,null,null,null,0,null,null,0,0,null,null,null,null,0,0,0,0,0,0,0,0,0,0,0,0,0,"الفــــــــــــــــــــــــــــــــــــــرز",null,null,null,null,null,0,null,null,0,0,null,null,null,null,0,0,0,0,0,0,0,0,0,0,0,0,0]
[null,null,null,null,null,0,null,null,0,0,null,null,null,null,0,0,0,0,0,0,0,0,0,0,0,0,0,null,null,null,null,null,null,0,null,null,0,0,null,null,null,null,0,0,0,0,0,0,0,0,0,0,0,0,0]
[null,null,null,null,null,0,null,null,0,0,null,null,null,null,0,0,0,0,0,0,0,0,0,0,0,0,0,null,null,null,null,null,null,0,null,null,0,0,null,null,null,null,0,0,0,0,0,0,0,0,0,0,0,0,0]
[null,null,null,null,null,0,null,null,0,0,null,null,null,null,0,0,0,0,0,0,0,0,0,0,0,0,0,null,null,null,null,null,null,0,null,null,0,0,null,null,null,null,0,0,0,0,0,0,0,0,0,0,0,0,0]
[null,null,null,null,null,0,null,null,0,0,null,null,null,null,0,0,0,0,0,0,0,0,0,0,0,0,0,null,null,null,null,null,null,0,null,null,0,0,null,null,null,null,0,0,0,0,0,0,0,0,0,0,0,0,0]
[null,null,null,null,null,0,null,null,0,0,null,null,null,null,0,0,0,0,0,0,0,0,0,0,0,0,0,null,null,null,null,null,null,0,null,null,0,0,null,null,null,null,0,0,0,0,0,0,0,0,0,0,0,0,0]
[null,null,null,null,null,0,null,null,0,0,null,null,null,null,0,0,0,0,0,0,0,0,0,0,0,0,0,null,null,null,null,null,null,0,null,null,0,0,null,null,null,null,0,0,0,0,0,0,0,0,0,0,0,0,0]
[null,null,null,null,null,0,null,null,0,0,null,null,null,null,0,0,0,0,0,0,0,0,0,0,0,0,0,null,null,null,null,null,null,0,null,null,0,0,null,null,null,null,0,0,0,0,0,0,0,0,0,0,0,0,0]
[null,null,null,null,null,0,null,null,0,0,null,null,null,null,0,0,0,0,0,0,0,0,0,0,0,0,0,null,null,null,null,null,null,0,null,null,0,0,null,null,null,null,0,0,0,0,0,0,0,0,0,0,0,0,0]
[null,null,null,null,null,0,null,null,0,0,null,null,null,null,0,0,0,0,0,0,0,0,0,0,0,0,0,null,null,null,null,null,null,0,null,null,0,0,null,null,null,null,0,0,0,0,0,0,0,0,0,0,0,0,0]
[null,null,null,null,null,0,null,null,0,0,null,null,null,null,0,0,0,0,0,0,0,0,0,0,0,0,0,null,null,null,null,null,null,0,null,null,0,0,null,null,null,null,0,0,0,0,0,0,0,0,0,0,0,0,0]
[null,null,null,null,null,0,null,null,0,0,null,null,null,null,0,0,0,0,0,0,0,0,0,0,0,0,0,"الفــــــــــــــــــــــــــــــــــــــرز",null,null,null,null,null,0,null,null,0,0,null,null,null,null,0,0,0,0,0,0,0,0,0,0,0,0,0]
[null,null,null,null,null,0,null,null,0,0,null,null,null,null,0,0,0,0,0,0,0,0,0,0,0,0,0,null,null,null,null,null,null,0,null,null,0,0,null,null,null,null,0,0,0,0,0,0,0,0,0,0,0,0,0]
[null,null,null,null,null,0,null,null,0,0,null,null,null,null,0,0,0,0,0,0,0,0,0,0,0,0,0,null,null,null,null,null,null,0,null,null,0,0,null,null,null,null,0,0,0,0,0,0,0,0,0,0,0,0,0]
[null,null,null,null,null,0,null,null,0,0,null,null,null,null,0,0,0,0,0,0,0,0,0,0,0,0,0,null,null,null,null,null,null,0,null,null,0,0,null,null,null,null,0,0,0,0,0,0,0,0,0,0,0,0,0]
[null,null,null,null,null,0,null,null,0,0,null,null,null,null,0,0,0,0,0,0,0,0,0,0,0,0,0,null,null,null,null,null,null,0,null,null,0,0,null,null,null,null,0,0,0,0,0,0,0,0,0,0,0,0,0]
[null,null,null,null,null,0,null,null,0,0,null,null,null,null,0,0,0,0,0,0,0,0,0,0,0,0,0,null,null,null,null,null,null,0,null,null,0,0,null,null,null,null,0,0,0,0,0,0,0,0,0,0,0,0,0]
[null,null,null,null,null,0,null,null,0,0,null,null,null,null,0,0,0,0,0,0,0,0,0,0,0,0,0,null,null,null,null,null,null,0,null,null,0,0,null,null,null,null,0,0,0,0,0,0,0,0,0,0,0,0,0]
[null,null,null,null,null,0,null,null,0,0,null,null,null,null,0,0,0,0,0,0,0,0,0,0,0,0,0,null,null,null,null,null,null,0,null,null,0,0,null,null,null,null,0,0,0,0,0,0,0,0,0,0,0,0,0]
[null,null,null,null,null,0,null,null,0,0,null,null,null,null,0,0,0,0,0,0,0,0,0,0,0,0,0,null,null,null,null,null,null,0,null,null,0,0,null,null,null,null,0,0,0,0,0,0,0,0,0,0,0,0,0]
[null,null,null,null,null,0,null,null,0,0,null,null,null,null,0,0,0,0,0,0,0,0,0,0,0,0,0,null,null,null,null,null,null,0,null,null,0,0,null,null,null,null,0,0,0,0,0,0,0,0,0,0,0,0,0]
[null,null,null,null,null,0,null,null,0,0,null,null,null,null,0,0,0,0,0,0,0,0,0,0,0,0,0,null,null,null,null,null,null,0,null,null,0,0,null,null,null,null,0,0,0,0,0,0,0,0,0,0,0,0,0]
[null,null,null,null,null,0,null,null,0,0,null,null,null,null,0,0,0,0,0,0,0,0,0,0,0,0,0,"الفــــــــــــــــــــــــــــــــــــــرز",null,null,null,null,null,0,null,null,0,0,null,null,null,null,0,0,0,0,0,0,0,0,0,0,0,0,0]
[null,null,null,null,null,0,null,null,0,0,null,null,null,null,0,0,0,0,0,0,0,0,0,0,0,0,0,null,null,null,null,null,null,0,null,null,0,0,null,null,null,null,0,0,0,0,0,0,0,0,0,0,0,0,0]
[null,null,null,null,null,0,null,null,0,0,null,null,null,null,0,0,0,0,0,0,0,0,0,0,0,0,0,null,null,null,null,null,null,0,null,null,0,0,null,null,null,null,0,0,0,0,0,0,0,0,0,0,0,0,0]
[null,null,null,null,null,0,null,null,0,0,null,null,null,null,0,0,0,0,0,0,0,0,0,0,0,0,0,null,null,null,null,null,null,0,null,null,0,0,null,null,null,null,0,0,0,0,0,0,0,0,0,0,0,0,0]
[null,null,null,null,null,0,null,null,0,0,null,null,null,null,0,0,0,0,0,0,0,0,0,0,0,0,0,null,null,null,null,null,null,0,null,null,0,0,null,null,null,null,0,0,0,0,0,0,0,0,0,0,0,0,0]
[null,null,null,null,null,0,null,null,0,0,null,null,null,null,0,0,0,0,0,0,0,0,0,0,0,0,0,null,null,null,null,null,null,0,null,null,0,0,null,null,null,null,0,0,0,0,0,0,0,0,0,0,0,0,0]
[null,null,null,null,null,0,null,null,0,0,null,null,null,null,0,0,0,0,0,0,0,0,0,0,0,0,0,null,null,null,null,null,null,0,null,null,0,0,null,null,null,null,0,0,0,0,0,0,0,0,0,0,0,0,0]
[null,null,null,null,null,0,null,null,0,0,null,null,null,null,0,0,0,0,0,0,0,0,0,0,0,0,0,null,null,null,null,null,null,0,null,null,0,0,null,null,null,null,0,0,0,0,0,0,0,0,0,0,0,0,0]
[null,null,null,null,null,0,null,null,0,0,null,null,null,null,0,0,0,0,0,0,0,0,0,0,0,0,0,null,null,null,null,null,null,0,null,null,0,0,null,null,null,null,0,0,0,0,0,0,0,0,0,0,0,0,0]
[null,null,null,null,null,0,null,null,0,0,null,null,null,null,0,0,0,0,0,0,0,0,0,0,0,0,0,null,null,null,null,null,null,0,null,null,0,0,null,null,null,null,0,0,0,0,0,0,0,0,0,0,0,0,0]
[null,null,null,null,null,0,null,null,0,0,null,null,null,null,0,0,0,0,0,0,0,0,0,0,0,0,0,null,null,null,null,null,null,0,null,null,0,0,null,null,null,null,0,0,0,0,0,0,0,0,0,0,0,0,0]
[null,null,null,null,null,0,null,null,0,0,null,null,null,null,0,0,0,0,0,0,0,0,0,0,0,0,0,"الفــــــــــــــــــــــــــــــــــــــرز",null,null,null,null,null,0,null,null,0,0,null,null,null,null,0,0,0,0,0,0,0,0,0,0,0,0,0]
[null,null,null,null,null,0,null,null,0,0,null,null,null,null,0,0,0,0,0,0,0,0,0,0,0,0,0,null,null,null,null,null,null,0,null,null,0,0,null,null,null,null,0,0,0,0,0,0,0,0,0,0,0,0,0]
[null,null,null,null,null,0,null,null,0,0,null,null,null,null,0,0,0,0,0,0,0,0,0,0,0,0,0,null,null,null,null,null,null,0,null,null,0,0,null,null,null,null,0,0,0,0,0,0,0,0,0,0,0,0,0]
[null,null,null,null,null,0,null,null,0,0,null,null,null,null,0,0,0,0,0,0,0,0,0,0,0,0,0,null,null,null,null,null,null,0,null,null,0,0,null,null,null,null,0,0,0,0,0,0,0,0,0,0,0,0,0]
[null,null,null,null,null,0,null,null,0,0,null,null,null,null,0,0,0,0,0,0,0,0,0,0,0,0,0,null,null,null,null,null,null,0,null,null,0,0,null,null,null,null,0,0,0,0,0,0,0,0,0,0,0,0,0]
[null,null,null,null,null,0,null,null,0,0,null,null,null,null,0,0,0,0,0,0,0,0,0,0,0,0,0,null,null,null,null,null,null,0,null,null,0,0,null,null,null,null,0,0,0,0,0,0,0,0,0,0,0,0,0]
[null,null,null,null,null,0,null,null,0,0,null,null,null,null,0,0,0,0,0,0,0,0,0,0,0,0,0,null,null,null,null,null,null,0,null,null,0,0,null,null,null,null,0,0,0,0,0,0,0,0,0,0,0,0,0]
[null,null,null,null,null,0,null,null,0,0,null,null,null,null,0,0,0,0,0,0,0,0,0,0,0,0,0,null,null,null,null,null,null,0,null,null,0,0,null,null,null,null,0,0,0,0,0,0,0,0,0,0,0,0,0]
[null,null,null,null,null,0,null,null,0,0,null,null,null,null,0,0,0,0,0,0,0,0,0,0,0,0,0,null,null,null,null,null,null,0,null,null,0,0,null,null,null,null,0,0,0,0,0,0,0,0,0,0,0,0,0]
[null,null,null,null,null,0,null,null,0,0,null,null,null,null,0,0,0,0,0,0,0,0,0,0,0,0,0,null,null,null,null,null,null,0,null,null,0,0,null,null,null,null,0,0,0,0,0,0,0,0,0,0,0,0,0]
[null,null,null,null,null,0,null,null,0,0,null,null,null,null,0,0,0,0,0,0,0,0,0,0,0,0,0,null,null,null,null,null,null,0,null,null,0,0,null,null,null,null,0,0,0,0,0,0,0,0,0,0,0,0,0]
[null,null,null,null,null,0,null,null,0,0,null,null,null,null,0,0,0,0,0,0,0,0,0,0,0,0,0,"الفــــــــــــــــــــــــــــــــــــــرز",null,null,null,null,null,0,null,null,0,0,null,null,null,null,0,0,0,0,0,0,0,0,0,0,0,0,0]
[null,null,null,null,null,0,null,null,0,0,null,null,null,null,0,0,0,0,0,0,0,0,0,0,0,0,0,null,null,null,null,null,null,0,null,null,0,0,null,null,null,null,0,0,0,0,0,0,0,0,0,0,0,0,0]
[null,null,null,null,null,0,null,null,0,0,null,null,null,null,0,0,0,0,0,0,0,0,0,0,0,0,0,null,null,null,null,null,null,0,null,null,0,0,null,null,null,null,0,0,0,0,0,0,0,0,0,0,0,0,0]
[null,null,null,null,null,0,null,null,0,0,null,null,null,null,0,0,0,0,0,0,0,0,0,0,0,0,0,null,null,null,null,null,null,0,null,null,0,0,null,null,null,null,0,0,0,0,0,0,0,0,0,0,0,0,0]
[null,null,null,null,null,0,null,null,0,0,null,null,null,null,0,0,0,0,0,0,0,0,0,0,0,0,0,null,null,null,null,null,null,0,null,null,0,0,null,null,null,null,0,0,0,0,0,0,0,0,0,0,0,0,0]
[null,null,null,null,null,0,null,null,0,0,null,null,null,null,0,0,0,0,0,0,0,0,0,0,0,0,0,null,null,null,null,null,null,0,null,null,0,0,null,null,null,null,0,0,0,0,0,0,0,0,0,0,0,0,0]
["الإجمـــــــــــــــــــــــــالى",null,null,null,null,{"$f":"SUM(F78:F138)","v":0},null,null,{"$f":"SUM(I78:I138)","v":0},{"$f":"J77+F139-I139","v":0},null,null,null,null,0,0,0,0,0,0,0,0,0,0,0,0,0,null,"الإجمـــــــــــــــــــــــــالى",null,null,null,null,{"$f":"SUM(AH78:AH138)","v":0},null,null,{"$f":"SUM(AK78:AK138)","v":0},{"$f":"AL77+AH139-AK139","v":0},null,null,null,null,0,0,0,0,0,0,0,0,0,0,0,0,0]
["أمين المخزن",null,null,null,null,null,null,null,null,"المراجعه",null,null,null,null,0,0,0,0,0,0,0,0,0,0,0,0,0,null,"أمين المخزن",null,null,null,null,null,null,null,null,"المراجعه",null,null,null,null,0,0,0,0,0,0,0,0,0,0,0,0,0]
[{"$f":"A1","v":0},null,null,null,null,null,null,null,null,null,null,null,null,null,{"$f":"SUMIF($H$8:$H$68,N141,$I$8:$I$68)","v":0},{"$f":"SUMIF($H$78:$H$138,N141,$I$78:$I$138)","v":0},{"$f":"SUMIF($H$148:$H$208,N141,$I$148:$I$208)","v":0},{"$f":"SUMIF($H$218:$H$278,N141,$I$218:$I$278)","v":0},{"$f":"SUMIF($H$288:$H$348,N141,$I$288:$I$348)","v":0},{"$f":"SUMIF($H$358:$H$418,N141,$I$358:$I$418)","v":0},{"$f":"SUMIF($H$428:$H$488,N141,$I$428:$I$488)","v":0},{"$f":"SUMIF($H$498:$H$558,N141,$I$498:$I$558)","v":0},{"$f":"SUMIF($H$568:$H$628,N141,$I$568:$I$628)","v":0},{"$f":"SUMIF($H$638:$H$698,N141,$I$638:$I$698)","v":0},{"$f":"SUMIF($H$708:$H$768,N141,$I$708:$I$768)","v":0},{"$f":"SUMIF($H$778:$H$838,N141,$I$778:$I$838)","v":0},{"$f":"SUM(O141:Z141)","v":0},null,{"$f":"AC1","v":0},null,null,null,null,null,null,null,null,null,null,null,null,null,{"$f":"SUMIF($AJ$8:$AJ$68,AP141,$AK$8:$AK$68)","v":0},{"$f":"SUMIF($AJ$78:$AJ$138,AP141,$AK$78:$AK$138)","v":0},{"$f":"SUMIF($AJ$148:$AJ$208,AP141,$AK$148:$AK$208)","v":0},{"$f":"SUMIF($AJ$218:$AJ$278,AP141,$AK$218:$AK$278)","v":0},{"$f":"SUMIF($AJ$288:$AJ$348,AP141,$AK$288:$AK$348)","v":0},{"$f":"SUMIF($AJ$358:$AJ$418,AP141,$AK$358:$AK$418)","v":0},{"$f":"SUMIF($AJ$428:$AJ$488,AP141,$AK$428:$AK$488)","v":0},{"$f":"SUMIF($AJ$498:$AJ$558,AP141,$AK$498:$AK$558)","v":0},{"$f":"SUMIF($AJ$568:$AJ$628,AP141,$AK$568:$AK$628)","v":0},{"$f":"SUMIF($AJ$638:$AJ$698,AP141,$AK$638:$AK$698)","v":0},{"$f":"SUMIF($AJ$708:$AJ$768,AP141,$AK$708:$AK$768)","v":0},{"$f":"SUMIF($AJ$778:$AJ$838,AP141,$AK$778:$AK$838)","v":0},{"$f":"SUM(AQ141:BB141)","v":0}]
[null,null,null,null,"بطاقـــــــــــــة صنــــــف",null,null,null,null,null,null,null,null,null,0,0,0,0,0,0,0,0,0,0,0,0,0,null,null,null,null,null,"بطاقـــــــــــــة صنــــــف",null,null,null,null,null,null,null,null,null,0,0,0,0,0,0,0,0,0,0,0,0,0]
[null,null,null,null,null,null,null,null,"كود الصنف",{"$f":"J73","v":0},null,null,null,null,0,0,0,0,0,0,0,0,0,0,0,0,0,null,null,null,null,null,null,null,null,null,"كود الصنف",{"$f":"AL73","v":0},null,null,null,null,0,0,0,0,0,0,0,0,0,0,0,0,0]
[null,null,null,null,null,"الإنتاج التام",null,null,"الوحدة","م2",null,null,null,null,0,0,0,0,0,0,0,0,0,0,0,0,0,"الفــــــــــــــــــــــــــــــــــــــرز",null,null,null,null,null,"الإنتاج التام","فرز",null,"الوحدة","م2",null,null,null,null,0,0,0,0,0,0,0,0,0,0,0,0,0]
[null,null,null,null,null,null,null,null,null,null,null,null,null,null,0,0,0,0,0,0,0,0,0,0,0,0,0,null,null,null,null,null,null,null,null,null,null,null,null,null,null,null,0,0,0,0,0,0,0,0,0,0,0,0,0]
["التاريخ","بلتات","رصات","رصة","م","الوارد","م","العميل","المنصرف","الرصيــد","ملاحظات",null,null,null,0,0,0,0,0,0,0,0,0,0,0,0,0,null,"التاريخ","بلتات","رصات","رصة","م","الوارد","م","العميل","المنصرف","الرصيــد","ملاحظات",null,null,null,0,0,0,0,0,0,0,0,0,0,0,0,0]
[null,"رصيد أول المدة",null,null,null,null,null,null,null,{"$f":"J139","v":0},null,null,null,null,0,0,0,0,0,0,0,0,0,0,0,0,0,null,null,"رصيد أول المدة",null,null,null,null,null,null,null,{"$f":"AL139","v":0},null,null,null,null,0,0,0,0,0,0,0,0,0,0,0,0,0]
[null,null,null,null,null,{"$f":"IF(E148=\"وارد\",B148*C148*D148,0)","v":0},null,null,{"$f":"IF(G148>0,B148*C148*D148,0)","v":0},{"$f":"J147+F148-I148","v":0},null,"مارس",null,null,0,0,0,0,0,0,0,0,0,0,0,0,0,null,null,null,null,null,null,{"$f":"IF(AG148=\"وارد\",AD148*AE148*AF148,0)","v":0},null,null,{"$f":"IF(AI148>0,AD148*AE148*AF148,0)","v":0},{"$f":"AL147+AH148-AK148","v":0},null,"مارس",null,null,0,0,0,0,0,0,0,0,0,0,0,0,0]
[null,null,null,null,null,{"$f":"IF(E149=\"وارد\",B149*C149*D149,0)","v":0},null,null,{"$f":"IF(G149>0,B149*C149*D149,0)","v":0},{"$f":"J148+F149-I149","v":0},null,null,null,null,0,0,0,0,0,0,0,0,0,0,0,0,0,null,null,null,null,null,null,{"$f":"IF(AG149=\"وارد\",AD149*AE149*AF149,0)","v":0},null,null,{"$f":"IF(AI149>0,AD149*AE149*AF149,0)","v":0},{"$f":"AL148+AH149-AK149","v":0},null,null,null,null,0,0,0,0,0,0,0,0,0,0,0,0,0]
[null,null,null,null,null,{"$f":"IF(E150=\"وارد\",B150*C150*D150,0)","v":0},null,null,0,0,null,null,null,null,0,0,0,0,0,0,0,0,0,0,0,0,0,null,null,null,null,null,null,{"$f":"IF(AG150=\"وارد\",AD150*AE150*AF150,0)","v":0},null,null,0,0,null,null,null,null,0,0,0,0,0,0,0,0,0,0,0,0,0]
[null,null,null,null,null,0,null,null,0,0,null,null,null,null,0,0,0,0,0,0,0,0,0,0,0,0,0,null,null,null,null,null,null,0,null,null,0,0,null,null,null,null,0,0,0,0,0,0,0,0,0,0,0,0,0]
[null,null,null,null,null,0,null,null,0,0,null,null,null,null,0,0,0,0,0,0,0,0,0,0,0,0,0,null,null,null,null,null,null,0,null,null,0,0,null,null,null,null,0,0,0,0,0,0,0,0,0,0,0,0,0]
[null,null,null,null,null,0,null,null,0,0,null,null,null,null,0,0,0,0,0,0,0,0,0,0,0,0,0,null,null,null,null,null,null,0,null,null,0,0,null,null,null,null,0,0,0,0,0,0,0,0,0,0,0,0,0]
[null,null,null,null,null,0,null,null,0,0,null,null,null,null,0,0,0,0,0,0,0,0,0,0,0,0,0,null,null,null,null,null,null,0,null,null,0,0,null,null,null,null,0,0,0,0,0,0,0,0,0,0,0,0,0]
[null,null,null,null,null,0,null,null,0,0,null,null,null,null,0,0,0,0,0,0,0,0,0,0,0,0,0,"الفــــــــــــــــــــــــــــــــــــــرز",null,null,null,null,null,0,null,null,0,0,null,null,null,null,0,0,0,0,0,0,0,0,0,0,0,0,0]
[null,null,null,null,null,0,null,null,0,0,null,null,null,null,0,0,0,0,0,0,0,0,0,0,0,0,0,null,null,null,null,null,null,0,null,null,0,0,null,null,null,null,0,0,0,0,0,0,0,0,0,0,0,0,0]
[null,null,null,null,null,0,null,null,0,0,null,null,null,null,0,0,0,0,0,0,0,0,0,0,0,0,0,null,null,null,null,null,null,0,null,null,0,0,null,null,null,null,0,0,0,0,0,0,0,0,0,0,0,0,0]
[null,null,null,null,null,0,null,null,0,0,null,null,null,null,0,0,0,0,0,0,0,0,0,0,0,0,0,null,null,null,null,null,null,0,null,null,0,0,null,null,null,null,0,0,0,0,0,0,0,0,0,0,0,0,0]
[null,null,null,null,null,0,null,null,0,0,null,null,null,null,0,0,0,0,0,0,0,0,0,0,0,0,0,null,null,null,null,null,null,0,null,null,0,0,null,null,null,null,0,0,0,0,0,0,0,0,0,0,0,0,0]
[null,null,null,null,null,0,null,null,0,0,null,null,null,null,0,0,0,0,0,0,0,0,0,0,0,0,0,null,null,null,null,null,null,0,null,null,0,0,null,null,null,null,0,0,0,0,0,0,0,0,0,0,0,0,0]
[null,null,null,null,null,0,null,null,0,0,null,null,null,null,0,0,0,0,0,0,0,0,0,0,0,0,0,null,null,null,null,null,null,0,null,null,0,0,null,null,null,null,0,0,0,0,0,0,0,0,0,0,0,0,0]
[null,null,null,null,null,0,null,null,0,0,null,null,null,null,0,0,0,0,0,0,0,0,0,0,0,0,0,null,null,null,null,null,null,0,null,null,0,0,null,null,null,null,0,0,0,0,0,0,0,0,0,0,0,0,0]
[null,null,null,null,null,0,null,null,0,0,null,null,null,null,0,0,0,0,0,0,0,0,0,0,0,0,0,null,null,null,null,null,null,0,null,null,0,0,null,null,null,null,0,0,0,0,0,0,0,0,0,0,0,0,0]
[null,null,null,null,null,0,null,null,0,0,null,null,null,null,0,0,0,0,0,0,0,0,0,0,0,0,0,null,null,null,null,null,null,0,null,null,0,0,null,null,null,null,0,0,0,0,0,0,0,0,0,0,0,0,0]
[null,null,null,null,null,0,null,null,0,0,null,null,null,null,0,0,0,0,0,0,0,0,0,0,0,0,0,null,null,null,null,null,null,0,null,null,0,0,null,null,null,null,0,0,0,0,0,0,0,0,0,0,0,0,0]
[null,null,null,null,null,0,null,null,0,0,null,null,null,null,0,0,0,0,0,0,0,0,0,0,0,0,0,"الفــــــــــــــــــــــــــــــــــــــرز",null,null,null,null,null,0,null,null,0,0,null,null,null,null,0,0,0,0,0,0,0,0,0,0,0,0,0]
[null,null,null,null,null,0,null,null,0,0,null,null,null,null,0,0,0,0,0,0,0,0,0,0,0,0,0,null,null,null,null,null,null,0,null,null,0,0,null,null,null,null,0,0,0,0,0,0,0,0,0,0,0,0,0]
[null,null,null,null,null,0,null,null,0,0,null,null,null,null,0,0,0,0,0,0,0,0,0,0,0,0,0,null,null,null,null,null,null,0,null,null,0,0,null,null,null,null,0,0,0,0,0,0,0,0,0,0,0,0,0]
[null,null,null,null,null,0,null,null,0,0,null,null,null,null,0,0,0,0,0,0,0,0,0,0,0,0,0,null,null,null,null,null,null,0,null,null,0,0,null,null,null,null,0,0,0,0,0,0,0,0,0,0,0,0,0]
[null,null,null,null,null,0,null,null,0,0,null,null,null,null,0,0,0,0,0,0,0,0,0,0,0,0,0,null,null,null,null,null,null,0,null,null,0,0,null,null,null,null,0,0,0,0,0,0,0,0,0,0,0,0,0]
[null,null,null,null,null,0,null,null,0,0,null,null,null,null,0,0,0,0,0,0,0,0,0,0,0,0,0,null,null,null,null,null,null,0,null,null,0,0,null,null,null,null,0,0,0,0,0,0,0,0,0,0,0,0,0]
[null,null,null,null,null,0,null,null,0,0,null,null,null,null,0,0,0,0,0,0,0,0,0,0,0,0,0,null,null,null,null,null,null,0,null,null,0,0,null,null,null,null,0,0,0,0,0,0,0,0,0,0,0,0,0]
[null,null,null,null,null,0,null,null,0,0,null,null,null,null,0,0,0,0,0,0,0,0,0,0,0,0,0,null,null,null,null,null,null,0,null,null,0,0,null,null,null,null,0,0,0,0,0,0,0,0,0,0,0,0,0]
[null,null,null,null,null,0,null,null,0,0,null,null,null,null,0,0,0,0,0,0,0,0,0,0,0,0,0,null,null,null,null,null,null,0,null,null,0,0,null,null,null,null,0,0,0,0,0,0,0,0,0,0,0,0,0]
[null,null,null,null,null,0,null,null,0,0,null,null,null,null,0,0,0,0,0,0,0,0,0,0,0,0,0,null,null,null,null,null,null,0,null,null,0,0,null,null,null,null,0,0,0,0,0,0,0,0,0,0,0,0,0]
[null,null,null,null,null,0,null,null,0,0,null,null,null,null,0,0,0,0,0,0,0,0,0,0,0,0,0,null,null,null,null,null,null,0,null,null,0,0,null,null,null,null,0,0,0,0,0,0,0,0,0,0,0,0,0]
[null,null,null,null,null,0,null,null,0,0,null,null,null,null,0,0,0,0,0,0,0,0,0,0,0,0,0,"الفــــــــــــــــــــــــــــــــــــــرز",null,null,null,null,null,0,null,null,0,0,null,null,null,null,0,0,0,0,0,0,0,0,0,0,0,0,0]
[null,null,null,null,null,0,null,null,0,0,null,null,null,null,0,0,0,0,0,0,0,0,0,0,0,0,0,null,null,null,null,null,null,0,null,null,0,0,null,null,null,null,0,0,0,0,0,0,0,0,0,0,0,0,0]
[null,null,null,null,null,0,null,null,0,0,null,null,null,null,0,0,0,0,0,0,0,0,0,0,0,0,0,null,null,null,null,null,null,0,null,null,0,0,null,null,null,null,0,0,0,0,0,0,0,0,0,0,0,0,0]
[null,null,null,null,null,0,null,null,0,0,null,null,null,null,0,0,0,0,0,0,0,0,0,0,0,0,0,null,null,null,null,null,null,0,null,null,0,0,null,null,null,null,0,0,0,0,0,0,0,0,0,0,0,0,0]
[null,null,null,null,null,0,null,null,0,0,null,null,null,null,0,0,0,0,0,0,0,0,0,0,0,0,0,null,null,null,null,null,null,0,null,null,0,0,null,null,null,null,0,0,0,0,0,0,0,0,0,0,0,0,0]
[null,null,null,null,null,0,null,null,0,0,null,null,null,null,0,0,0,0,0,0,0,0,0,0,0,0,0,null,null,null,null,null,null,0,null,null,0,0,null,null,null,null,0,0,0,0,0,0,0,0,0,0,0,0,0]
[null,null,null,null,null,0,null,null,0,0,null,null,null,null,0,0,0,0,0,0,0,0,0,0,0,0,0,null,null,null,null,null,null,0,null,null,0,0,null,null,null,null,0,0,0,0,0,0,0,0,0,0,0,0,0]
[null,null,null,null,null,0,null,null,0,0,null,null,null,null,0,0,0,0,0,0,0,0,0,0,0,0,0,null,null,null,null,null,null,0,null,null,0,0,null,null,null,null,0,0,0,0,0,0,0,0,0,0,0,0,0]
[null,null,null,null,null,0,null,null,0,0,null,null,null,null,0,0,0,0,0,0,0,0,0,0,0,0,0,null,null,null,null,null,null,0,null,null,0,0,null,null,null,null,0,0,0,0,0,0,0,0,0,0,0,0,0]
[null,null,null,null,null,0,null,null,0,0,null,null,null,null,0,0,0,0,0,0,0,0,0,0,0,0,0,null,null,null,null,null,null,0,null,null,0,0,null,null,null,null,0,0,0,0,0,0,0,0,0,0,0,0,0]
[null,null,null,null,null,0,null,null,0,0,null,null,null,null,0,0,0,0,0,0,0,0,0,0,0,0,0,null,null,null,null,null,null,0,null,null,0,0,null,null,null,null,0,0,0,0,0,0,0,0,0,0,0,0,0]
[null,null,null,null,null,0,null,null,0,0,null,null,null,null,0,0,0,0,0,0,0,0,0,0,0,0,0,"الفــــــــــــــــــــــــــــــــــــــرز",null,null,null,null,null,0,null,null,0,0,null,null,null,null,0,0,0,0,0,0,0,0,0,0,0,0,0]
[null,null,null,null,null,0,null,null,0,0,null,null,null,null,0,0,0,0,0,0,0,0,0,0,0,0,0,null,null,null,null,null,null,0,null,null,0,0,null,null,null,null,0,0,0,0,0,0,0,0,0,0,0,0,0]
[null,null,null,null,null,0,null,null,0,0,null,null,null,null,0,0,0,0,0,0,0,0,0,0,0,0,0,null,null,null,null,null,null,0,null,null,0,0,null,null,null,null,0,0,0,0,0,0,0,0,0,0,0,0,0]
[null,null,null,null,null,0,null,null,0,0,null,null,null,null,0,0,0,0,0,0,0,0,0,0,0,0,0,null,null,null,null,null,null,0,null,null,0,0,null,null,null,null,0,0,0,0,0,0,0,0,0,0,0,0,0]
[null,null,null,null,null,0,null,null,0,0,null,null,null,null,0,0,0,0,0,0,0,0,0,0,0,0,0,null,null,null,null,null,null,0,null,null,0,0,null,null,null,null,0,0,0,0,0,0,0,0,0,0,0,0,0]
[null,null,null,null,null,0,null,null,0,0,null,null,null,null,0,0,0,0,0,0,0,0,0,0,0,0,0,null,null,null,null,null,null,0,null,null,0,0,null,null,null,null,0,0,0,0,0,0,0,0,0,0,0,0,0]
[null,null,null,null,null,0,null,null,0,0,null,null,null,null,0,0,0,0,0,0,0,0,0,0,0,0,0,null,null,null,null,null,null,0,null,null,0,0,null,null,null,null,0,0,0,0,0,0,0,0,0,0,0,0,0]
[null,null,null,null,null,0,null,null,0,0,null,null,null,null,0,0,0,0,0,0,0,0,0,0,0,0,0,null,null,null,null,null,null,0,null,null,0,0,null,null,null,null,0,0,0,0,0,0,0,0,0,0,0,0,0]
[null,null,null,null,null,0,null,null,0,0,null,null,null,null,0,0,0,0,0,0,0,0,0,0,0,0,0,null,null,null,null,null,null,0,null,null,0,0,null,null,null,null,0,0,0,0,0,0,0,0,0,0,0,0,0]
[null,null,null,null,null,0,null,null,0,0,null,null,null,null,0,0,0,0,0,0,0,0,0,0,0,0,0,null,null,null,null,null,null,0,null,null,0,0,null,null,null,null,0,0,0,0,0,0,0,0,0,0,0,0,0]
[null,null,null,null,null,0,null,null,0,0,null,null,null,null,0,0,0,0,0,0,0,0,0,0,0,0,0,null,null,null,null,null,null,0,null,null,0,0,null,null,null,null,0,0,0,0,0,0,0,0,0,0,0,0,0]
[null,null,null,null,null,0,null,null,0,0,null,null,null,null,0,0,0,0,0,0,0,0,0,0,0,0,0,"الفــــــــــــــــــــــــــــــــــــــرز",null,null,null,null,null,0,null,null,0,0,null,null,null,null,0,0,0,0,0,0,0,0,0,0,0,0,0]
[null,null,null,null,null,0,null,null,0,0,null,null,null,null,0,0,0,0,0,0,0,0,0,0,0,0,0,null,null,null,null,null,null,0,null,null,0,0,null,null,null,null,0,0,0,0,0,0,0,0,0,0,0,0,0]
[null,null,null,null,null,0,null,null,0,0,null,null,null,null,0,0,0,0,0,0,0,0,0,0,0,0,0,null,null,null,null,null,null,0,null,null,0,0,null,null,null,null,0,0,0,0,0,0,0,0,0,0,0,0,0]
[null,null,null,null,null,0,null,null,0,0,null,null,null,null,0,0,0,0,0,0,0,0,0,0,0,0,0,null,null,null,null,null,null,0,null,null,0,0,null,null,null,null,0,0,0,0,0,0,0,0,0,0,0,0,0]
[null,null,null,null,null,0,null,null,0,0,null,null,null,null,0,0,0,0,0,0,0,0,0,0,0,0,0,null,null,null,null,null,null,0,null,null,0,0,null,null,null,null,0,0,0,0,0,0,0,0,0,0,0,0,0]
[null,null,null,null,null,0,null,null,0,0,null,null,null,null,0,0,0,0,0,0,0,0,0,0,0,0,0,null,null,null,null,null,null,0,null,null,0,0,null,null,null,null,0,0,0,0,0,0,0,0,0,0,0,0,0]
[null,null,null,null,null,0,null,null,0,0,null,null,null,null,{"$f":"SUMIF($H$8:$H$68,N205,$I$8:$I$68)","v":0},{"$f":"SUMIF($H$78:$H$138,N205,$I$78:$I$138)","v":0},{"$f":"SUMIF($H$148:$H$208,N205,$I$148:$I$208)","v":0},{"$f":"SUMIF($H$218:$H$278,N205,$I$218:$I$278)","v":0},{"$f":"SUMIF($H$288:$H$348,N205,$I$288:$I$348)","v":0},{"$f":"SUMIF($H$358:$H$418,N205,$I$358:$I$418)","v":0},{"$f":"SUMIF($H$428:$H$488,N205,$I$428:$I$488)","v":0},{"$f":"SUMIF($H$498:$H$558,N205,$I$498:$I$558)","v":0},{"$f":"SUMIF($H$568:$H$628,N205,$I$568:$I$628)","v":0},{"$f":"SUMIF($H$638:$H$698,N205,$I$638:$I$698)","v":0},{"$f":"SUMIF($H$708:$H$768,N205,$I$708:$I$768)","v":0},{"$f":"SUMIF($H$778:$H$838,N205,$I$778:$I$838)","v":0},{"$f":"SUM(O205:Z205)","v":0},null,null,null,null,null,null,0,null,null,0,0,null,null,null,null,{"$f":"SUMIF($AJ$8:$AJ$68,AP205,$AK$8:$AK$68)","v":0},{"$f":"SUMIF($AJ$78:$AJ$138,AP205,$AK$78:$AK$138)","v":0},{"$f":"SUMIF($AJ$148:$AJ$208,AP205,$AK$148:$AK$208)","v":0},{"$f":"SUMIF($AJ$218:$AJ$278,AP205,$AK$218:$AK$278)","v":0},{"$f":"SUMIF($AJ$288:$AJ$348,AP205,$AK$288:$AK$348)","v":0},{"$f":"SUMIF($AJ$358:$AJ$418,AP205,$AK$358:$AK$418)","v":0},{"$f":"SUMIF($AJ$428:$AJ$488,AP205,$AK$428:$AK$488)","v":0},{"$f":"SUMIF($AJ$498:$AJ$558,AP205,$AK$498:$AK$558)","v":0},{"$f":"SUMIF($AJ$568:$AJ$628,AP205,$AK$568:$AK$628)","v":0},{"$f":"SUMIF($AJ$638:$AJ$698,AP205,$AK$638:$AK$698)","v":0},{"$f":"SUMIF($AJ$708:$AJ$768,AP205,$AK$708:$AK$768)","v":0},{"$f":"SUMIF($AJ$778:$AJ$838,AP205,$AK$778:$AK$838)","v":0},{"$f":"SUM(AQ205:BB205)","v":0}]
[null,null,null,null,null,0,null,null,0,0,null,null,null,null,0,0,0,0,0,0,0,0,0,0,0,0,0,null,null,null,null,null,null,0,null,null,0,0,null,null,null,null,0,0,0,0,0,0,0,0,0,0,0,0,0]
[null,null,null,null,null,0,null,null,0,0,null,null,null,null,0,0,0,0,0,0,0,0,0,0,0,0,0,null,null,null,null,null,null,0,null,null,0,0,null,null,null,null,0,0,0,0,0,0,0,0,0,0,0,0,0]
[null,null,null,null,null,0,null,null,0,0,null,null,null,null,0,0,0,0,0,0,0,0,0,0,0,0,0,null,null,null,null,null,null,0,null,null,0,0,null,null,null,null,0,0,0,0,0,0,0,0,0,0,0,0,0]
["الإجمـــــــــــــــــــــــــالى",null,null,null,null,{"$f":"SUM(F148:F208)","v":0},null,null,{"$f":"SUM(I148:I208)","v":0},{"$f":"J147+F209-I209","v":0},null,null,null,null,0,0,0,0,0,0,0,0,0,0,0,0,0,null,"الإجمـــــــــــــــــــــــــالى",null,null,null,null,{"$f":"SUM(AH148:AH208)","v":0},null,null,{"$f":"SUM(AK148:AK208)","v":0},{"$f":"AL147+AH209-AK209","v":0},null,null,null,null,0,0,0,0,0,0,0,0,0,0,0,0,0]
["أمين المخزن",null,null,null,null,null,null,null,null,"المراجعه",null,null,null,null,0,0,0,0,0,0,0,0,0,0,0,0,0,"الفــــــــــــــــــــــــــــــــــــــرز","أمين المخزن",null,null,null,null,null,null,null,null,"المراجعه",null,null,null,null,0,0,0,0,0,0,0,0,0,0,0,0,0]
[{"$f":"A1","v":0},null,null,null,null,null,null,null,null,null,null,null,null,null,0,0,0,0,0,0,0,0,0,0,0,0,0,null,{"$f":"AC1","v":0},null,null,null,null,null,null,null,null,null,null,null,null,null,0,0,0,0,0,0,0,0,0,0,0,0,0]
[null,null,null,null,"بطاقـــــــــــــة صنــــــف",null,null,null,null,null,null,null,null,null,0,0,0,0,0,0,0,0,0,0,0,0,0,null,null,null,null,null,"بطاقـــــــــــــة صنــــــف",null,null,null,null,null,null,null,null,null,0,0,0,0,0,0,0,0,0,0,0,0,0]
[null,null,null,null,null,null,null,null,"كود الصنف",{"$f":"J143","v":0},null,null,null,null,0,0,0,0,0,0,0,0,0,0,0,0,0,null,null,null,null,null,null,null,null,null,"كود الصنف",{"$f":"AL143","v":0},null,null,null,null,0,0,0,0,0,0,0,0,0,0,0,0,0]
[null,null,null,null,null,"الإنتاج التام",null,null,"الوحدة","م2",null,null,null,null,0,0,0,0,0,0,0,0,0,0,0,0,0,null,null,null,null,null,null,"الإنتاج التام","فرز",null,"الوحدة","م2",null,null,null,null,0,0,0,0,0,0,0,0,0,0,0,0,0]
[null,null,null,null,null,null,null,null,null,null,null,null,null,null,0,0,0,0,0,0,0,0,0,0,0,0,0,null,null,null,null,null,null,null,null,null,null,null,null,null,null,null,0,0,0,0,0,0,0,0,0,0,0,0,0]
["التاريخ","بلتات","رصات","رصة","م","الوارد","م","العميل","المنصرف","الرصيــد","ملاحظات",null,null,null,0,0,0,0,0,0,0,0,0,0,0,0,0,null,"التاريخ","بلتات","رصات","رصة","م","الوارد","م","العميل","المنصرف","الرصيــد","ملاحظات",null,null,null,0,0,0,0,0,0,0,0,0,0,0,0,0]
[null,"رصيد أول المدة",null,null,null,null,null,null,null,{"$f":"J209","v":0},null,null,null,null,0,0,0,0,0,0,0,0,0,0,0,0,0,null,null,"رصيد أول المدة",null,null,null,null,null,null,null,{"$f":"AL209","v":0},null,null,null,null,0,0,0,0,0,0,0,0,0,0,0,0,0]
[null,null,null,null,null,{"$f":"IF(E218=\"وارد\",B218*C218*D218,0)","v":0},null,null,{"$f":"IF(G218>0,B218*C218*D218,0)","v":0},{"$f":"J217+F218-I218","v":0},null,"ابريل",null,null,0,0,0,0,0,0,0,0,0,0,0,0,0,null,null,null,null,null,null,{"$f":"IF(AG218=\"وارد\",AD218*AE218*AF218,0)","v":0},null,null,{"$f":"IF(AI218>0,AD218*AE218*AF218,0)","v":0},{"$f":"AL217+AH218-AK218","v":0},null,"ابريل",null,null,0,0,0,0,0,0,0,0,0,0,0,0,0]
[null,null,null,null,null,{"$f":"IF(E219=\"وارد\",B219*C219*D219,0)","v":0},null,null,{"$f":"IF(G219>0,B219*C219*D219,0)","v":0},{"$f":"J218+F219-I219","v":0},null,null,null,null,0,0,0,0,0,0,0,0,0,0,0,0,0,null,null,null,null,null,null,{"$f":"IF(AG219=\"وارد\",AD219*AE219*AF219,0)","v":0},null,null,{"$f":"IF(AI219>0,AD219*AE219*AF219,0)","v":0},{"$f":"AL218+AH219-AK219","v":0},null,null,null,null,0,0,0,0,0,0,0,0,0,0,0,0,0]
[null,null,null,null,null,{"$f":"IF(E220=\"وارد\",B220*C220*D220,0)","v":0},null,null,0,0,null,null,null,null,0,0,0,0,0,0,0,0,0,0,0,0,0,null,null,null,null,null,null,{"$f":"IF(AG220=\"وارد\",AD220*AE220*AF220,0)","v":0},null,null,0,0,null,null,null,null,0,0,0,0,0,0,0,0,0,0,0,0,0]
[null,null,null,null,null,0,null,null,0,0,null,null,null,null,0,0,0,0,0,0,0,0,0,0,0,0,0,"الفــــــــــــــــــــــــــــــــــــــرز",null,null,null,null,null,0,null,null,0,0,null,null,null,null,0,0,0,0,0,0,0,0,0,0,0,0,0]
[null,null,null,null,null,0,null,null,0,0,null,null,null,null,0,0,0,0,0,0,0,0,0,0,0,0,0,null,null,null,null,null,null,0,null,null,0,0,null,null,null,null,0,0,0,0,0,0,0,0,0,0,0,0,0]
[null,null,null,null,null,0,null,null,0,0,null,null,null,null,0,0,0,0,0,0,0,0,0,0,0,0,0,null,null,null,null,null,null,0,null,null,0,0,null,null,null,null,0,0,0,0,0,0,0,0,0,0,0,0,0]
[null,null,null,null,null,0,null,null,0,0,null,null,null,null,0,0,0,0,0,0,0,0,0,0,0,0,0,null,null,null,null,null,null,0,null,null,0,0,null,null,null,null,0,0,0,0,0,0,0,0,0,0,0,0,0]
[null,null,null,null,null,0,null,null,0,0,null,null,null,null,0,0,0,0,0,0,0,0,0,0,0,0,0,null,null,null,null,null,null,0,null,null,0,0,null,null,null,null,0,0,0,0,0,0,0,0,0,0,0,0,0]
[null,null,null,null,null,0,null,null,0,0,null,null,null,null,0,0,0,0,0,0,0,0,0,0,0,0,0,null,null,null,null,null,null,0,null,null,0,0,null,null,null,null,0,0,0,0,0,0,0,0,0,0,0,0,0]
[null,null,null,null,null,0,null,null,0,0,null,null,null,null,0,0,0,0,0,0,0,0,0,0,0,0,0,null,null,null,null,null,null,0,null,null,0,0,null,null,null,null,0,0,0,0,0,0,0,0,0,0,0,0,0]
[null,null,null,null,null,0,null,null,0,0,null,null,null,null,0,0,0,0,0,0,0,0,0,0,0,0,0,null,null,null,null,null,null,0,null,null,0,0,null,null,null,null,0,0,0,0,0,0,0,0,0,0,0,0,0]
[null,null,null,null,null,0,null,null,0,0,null,null,null,null,0,0,0,0,0,0,0,0,0,0,0,0,0,null,null,null,null,null,null,0,null,null,0,0,null,null,null,null,0,0,0,0,0,0,0,0,0,0,0,0,0]
[null,null,null,null,null,0,null,null,0,0,null,null,null,null,0,0,0,0,0,0,0,0,0,0,0,0,0,null,null,null,null,null,null,0,null,null,0,0,null,null,null,null,0,0,0,0,0,0,0,0,0,0,0,0,0]
[null,null,null,null,null,0,null,null,0,0,null,null,null,null,0,0,0,0,0,0,0,0,0,0,0,0,0,null,null,null,null,null,null,0,null,null,0,0,null,null,null,null,0,0,0,0,0,0,0,0,0,0,0,0,0]
[null,null,null,null,null,0,null,null,0,0,null,null,null,null,0,0,0,0,0,0,0,0,0,0,0,0,0,"الفــــــــــــــــــــــــــــــــــــــرز",null,null,null,null,null,0,null,null,0,0,null,null,null,null,0,0,0,0,0,0,0,0,0,0,0,0,0]
[null,null,null,null,null,0,null,null,0,0,null,null,null,null,0,0,0,0,0,0,0,0,0,0,0,0,0,null,null,null,null,null,null,0,null,null,0,0,null,null,null,null,0,0,0,0,0,0,0,0,0,0,0,0,0]
[null,null,null,null,null,0,null,null,0,0,null,null,null,null,0,0,0,0,0,0,0,0,0,0,0,0,0,null,null,null,null,null,null,0,null,null,0,0,null,null,null,null,0,0,0,0,0,0,0,0,0,0,0,0,0]
[null,null,null,null,null,0,null,null,0,0,null,null,null,null,0,0,0,0,0,0,0,0,0,0,0,0,0,null,null,null,null,null,null,0,null,null,0,0,null,null,null,null,0,0,0,0,0,0,0,0,0,0,0,0,0]
[null,null,null,null,null,0,null,null,0,0,null,null,null,null,0,0,0,0,0,0,0,0,0,0,0,0,0,null,null,null,null,null,null,0,null,null,0,0,null,null,null,null,0,0,0,0,0,0,0,0,0,0,0,0,0]
[null,null,null,null,null,0,null,null,0,0,null,null,null,null,0,0,0,0,0,0,0,0,0,0,0,0,0,null,null,null,null,null,null,0,null,null,0,0,null,null,null,null,0,0,0,0,0,0,0,0,0,0,0,0,0]
[null,null,null,null,null,0,null,null,0,0,null,null,null,null,0,0,0,0,0,0,0,0,0,0,0,0,0,null,null,null,null,null,null,0,null,null,0,0,null,null,null,null,0,0,0,0,0,0,0,0,0,0,0,0,0]
[null,null,null,null,null,0,null,null,0,0,null,null,null,null,0,0,0,0,0,0,0,0,0,0,0,0,0,null,null,null,null,null,null,0,null,null,0,0,null,null,null,null,0,0,0,0,0,0,0,0,0,0,0,0,0]
[null,null,null,null,null,0,null,null,0,0,null,null,null,null,0,0,0,0,0,0,0,0,0,0,0,0,0,null,null,null,null,null,null,0,null,null,0,0,null,null,null,null,0,0,0,0,0,0,0,0,0,0,0,0,0]
[null,null,null,null,null,0,null,null,0,0,null,null,null,null,0,0,0,0,0,0,0,0,0,0,0,0,0,null,null,null,null,null,null,0,null,null,0,0,null,null,null,null,0,0,0,0,0,0,0,0,0,0,0,0,0]
[null,null,null,null,null,0,null,null,0,0,null,null,null,null,0,0,0,0,0,0,0,0,0,0,0,0,0,null,null,null,null,null,null,0,null,null,0,0,null,null,null,null,0,0,0,0,0,0,0,0,0,0,0,0,0]
[null,null,null,null,null,0,null,null,0,0,null,null,null,null,0,0,0,0,0,0,0,0,0,0,0,0,0,"الفــــــــــــــــــــــــــــــــــــــرز",null,null,null,null,null,0,null,null,0,0,null,null,null,null,0,0,0,0,0,0,0,0,0,0,0,0,0]
[null,null,null,null,null,0,null,null,0,0,null,null,null,null,0,0,0,0,0,0,0,0,0,0,0,0,0,null,null,null,null,null,null,0,null,null,0,0,null,null,null,null,0,0,0,0,0,0,0,0,0,0,0,0,0]
[null,null,null,null,null,0,null,null,0,0,null,null,null,null,0,0,0,0,0,0,0,0,0,0,0,0,0,null,null,null,null,null,null,0,null,null,0,0,null,null,null,null,0,0,0,0,0,0,0,0,0,0,0,0,0]
[null,null,null,null,null,0,null,null,0,0,null,null,null,null,0,0,0,0,0,0,0,0,0,0,0,0,0,null,null,null,null,null,null,0,null,null,0,0,null,null,null,null,0,0,0,0,0,0,0,0,0,0,0,0,0]
[null,null,null,null,null,0,null,null,0,0,null,null,null,null,0,0,0,0,0,0,0,0,0,0,0,0,0,null,null,null,null,null,null,0,null,null,0,0,null,null,null,null,0,0,0,0,0,0,0,0,0,0,0,0,0]
[null,null,null,null,null,0,null,null,0,0,null,null,null,null,0,0,0,0,0,0,0,0,0,0,0,0,0,null,null,null,null,null,null,0,null,null,0,0,null,null,null,null,0,0,0,0,0,0,0,0,0,0,0,0,0]
[null,null,null,null,null,0,null,null,0,0,null,null,null,null,0,0,0,0,0,0,0,0,0,0,0,0,0,null,null,null,null,null,null,0,null,null,0,0,null,null,null,null,0,0,0,0,0,0,0,0,0,0,0,0,0]
[null,null,null,null,null,0,null,null,0,0,null,null,null,null,0,0,0,0,0,0,0,0,0,0,0,0,0,null,null,null,null,null,null,0,null,null,0,0,null,null,null,null,0,0,0,0,0,0,0,0,0,0,0,0,0]
[null,null,null,null,null,0,null,null,0,0,null,null,null,"الإجمالى",{"$f":"SUM(O12:O250)","v":0},{"$f":"SUM(P12:P250)","v":0},0,0,0,0,0,0,0,0,0,0,{"$f":"SUM(AA12:AA250)","v":0},null,null,null,null,null,null,0,null,null,0,0,null,null,null,"الإجمالى",{"$f":"SUM(AQ12:AQ250)","v":0},{"$f":"SUM(AR12:AR250)","v":0},0,0,0,0,0,0,0,0,0,0,{"$f":"SUM(BC12:BC250)","v":0}]
[null,null,null,null,null,0,null,null,0,0,null,null,null,null,null,null,null,null,null,null,null,null,null,null,null,null,null,null,null,null,null,null,null,0,null,null,0,0]
[null,null,null,null,null,0,null,null,0,0,null,null,null,null,null,null,null,null,null,null,null,null,null,null,null,null,null,null,null,null,null,null,null,0,null,null,0,0]
[null,null,null,null,null,0,null,null,0,0,null,null,null,null,null,null,null,null,null,null,null,null,null,null,null,null,null,"الفــــــــــــــــــــــــــــــــــــــرز",null,null,null,null,null,0,null,null,0,0]
[null,null,null,null,null,0,null,null,0,0,null,null,null,null,null,null,null,null,null,null,null,null,null,null,null,null,null,null,null,null,null,null,null,0,null,null,0,0]
[null,null,null,null,null,0,null,null,0,0,null,null,null,null,null,null,null,null,null,null,null,null,null,null,null,null,null,null,null,null,null,null,null,0,null,null,0,0]
[null,null,null,null,null,0,null,null,0,0,null,null,null,null,null,null,null,null,null,null,null,null,null,null,null,null,null,null,null,null,null,null,null,0,null,null,0,0]
[null,null,null,null,null,0,null,null,0,0,null,null,null,null,null,null,null,null,null,null,null,null,null,null,null,null,null,null,null,null,null,null,null,0,null,null,0,0]
[null,null,null,null,null,0,null,null,0,0,null,null,null,null,null,null,null,null,null,null,null,null,null,null,null,null,null,null,null,null,null,null,null,0,null,null,0,0]
[null,null,null,null,null,0,null,null,0,0,null,null,null,null,null,null,null,null,null,null,null,null,null,null,null,null,null,null,null,null,null,null,null,0,null,null,0,0]
[null,null,null,null,null,0,null,null,0,0,null,null,null,null,null,null,null,null,null,null,null,null,null,null,null,null,null,null,null,null,null,null,null,0,null,null,0,0]
[null,null,null,null,null,0,null,null,0,0,null,null,null,null,null,null,null,null,null,null,null,null,null,null,null,null,null,null,null,null,null,null,null,0,null,null,0,0]
[null,null,null,null,null,0,null,null,0,0,null,null,null,null,null,null,null,null,null,null,null,null,null,null,null,null,null,null,null,null,null,null,null,0,null,null,0,0]
[null,null,null,null,null,0,null,null,0,0,null,null,null,null,null,null,null,null,null,null,null,null,null,null,null,null,null,null,null,null,null,null,null,0,null,null,0,0]
[null,null,null,null,null,0,null,null,0,0,null,null,null,null,null,null,null,null,null,null,null,null,null,null,null,null,null,"الفــــــــــــــــــــــــــــــــــــــرز",null,null,null,null,null,0,null,null,0,0]
[null,null,null,null,null,0,null,null,0,0,null,null,null,null,null,null,null,null,null,null,null,null,null,null,null,null,null,null,null,null,null,null,null,0,null,null,0,0]
[null,null,null,null,null,0,null,null,0,0,null,null,null,null,null,null,null,null,null,null,null,null,null,null,null,null,null,null,null,null,null,null,null,0,null,null,0,0]
[null,null,null,null,null,0,null,null,0,0,null,null,null,null,null,null,null,null,null,null,null,null,null,null,null,null,null,null,null,null,null,null,null,0,null,null,0,0]
[null,null,null,null,null,0,null,null,0,0,null,null,null,null,null,null,null,null,null,null,null,null,null,null,null,null,null,null,null,null,null,null,null,0,null,null,0,0]
[null,null,null,null,null,0,null,null,0,0,null,null,null,null,null,null,null,null,null,null,null,null,null,null,null,null,null,null,null,null,null,null,null,0,null,null,0,0]
[null,null,null,null,null,0,null,null,0,0,null,null,null,null,null,null,null,null,null,null,null,null,null,null,null,null,null,null,null,null,null,null,null,0,null,null,0,0]
[null,null,null,null,null,0,null,null,0,0,null,null,null,null,null,null,null,null,null,null,null,null,null,null,null,null,null,null,null,null,null,null,null,0,null,null,0,0]
[null,null,null,null,null,0,null,null,0,0,null,null,null,null,null,null,null,null,null,null,null,null,null,null,null,null,null,null,null,null,null,null,null,0,null,null,0,0]
[null,null,null,null,null,0,null,null,0,0,null,null,null,null,null,null,null,null,null,null,null,null,null,null,null,null,null,null,null,null,null,null,null,0,null,null,0,0]
[null,null,null,null,null,0,null,null,0,0,null,null,null,null,null,null,null,null,null,null,null,null,null,null,null,null,null,null,null,null,null,null,null,0,null,null,0,0]
[null,null,null,null,null,0,null,null,0,0,null,null,null,null,null,null,null,null,null,null,null,null,null,null,null,null,null,"الفــــــــــــــــــــــــــــــــــــــرز",null,null,null,null,null,0,null,null,0,0]
[null,null,null,null,null,0,null,null,0,0,null,null,null,null,null,null,null,null,null,null,null,null,null,null,null,null,null,null,null,null,null,null,null,0,null,null,0,0]
[null,null,null,null,null,0,null,null,0,0,null,null,null,null,null,null,null,null,null,null,null,null,null,null,null,null,null,null,null,null,null,null,null,0,null,null,0,0]
["الإجمـــــــــــــــــــــــــالى",null,null,null,null,{"$f":"SUM(F218:F278)","v":0},null,null,{"$f":"SUM(I218:I278)","v":0},{"$f":"J217+F279-I279","v":0},null,null,null,null,null,null,null,null,null,null,null,null,null,null,null,null,null,null,"الإجمـــــــــــــــــــــــــالى",null,null,null,null,{"$f":"SUM(AH218:AH278)","v":0},null,null,{"$f":"SUM(AK218:AK278)","v":0},{"$f":"AL217+AH279-AK279","v":0}]
["أمين المخزن",null,null,null,null,null,null,null,null,"المراجعه",null,null,null,null,null,null,null,null,null,null,null,null,null,null,null,null,null,null,"أمين المخزن",null,null,null,null,null,null,null,null,"المراجعه"]
[{"$f":"A1","v":0},null,null,null,null,null,null,null,null,null,null,null,null,null,null,null,null,null,null,null,null,null,null,null,null,null,null,null,{"$f":"AC1","v":0}]
[null,null,null,null,"بطاقـــــــــــــة صنــــــف",null,null,null,null,null,null,null,null,null,null,null,null,null,null,null,null,null,null,null,null,null,null,null,null,null,null,null,"بطاقـــــــــــــة صنــــــف"]
[null,null,null,null,null,null,null,null,"كود الصنف",{"$f":"J213","v":0},null,null,null,null,null,null,null,null,null,null,null,null,null,null,null,null,null,null,null,null,null,null,null,null,null,null,"كود الصنف",{"$f":"AL213","v":0}]
[null,null,null,null,null,"الإنتاج التام",null,null,"الوحدة","م2",null,null,null,null,null,null,null,null,null,null,null,null,null,null,null,null,null,null,null,null,null,null,null,"الإنتاج التام","فرز",null,"الوحدة","م2"]
[]
["التاريخ","بلتات","رصات","رصة","م","الوارد","م","العميل","المنصرف","الرصيــد","ملاحظات",null,null,null,null,null,null,null,null,null,null,null,null,null,null,null,null,null,"التاريخ","بلتات","رصات","رصة","م","الوارد","م","العميل","المنصرف","الرصيــد","ملاحظات"]
[null,"رصيد أول المدة",null,null,null,null,null,null,null,{"$f":"J279","v":0},null,null,null,null,null,null,null,null,null,null,null,null,null,null,null,null,null,"الفــــــــــــــــــــــــــــــــــــــرز",null,"رصيد أول المدة",null,null,null,null,null,null,null,{"$f":"AL279","v":0}]
[null,null,null,null,null,{"$f":"IF(E288=\"وارد\",B288*C288*D288,0)","v":0},null,null,{"$f":"IF(G288>0,B288*C288*D288,0)","v":0},{"$f":"J287+F288-I288","v":0},null,"مايو",null,null,null,null,null,null,null,null,null,null,null,null,null,null,null,null,null,null,null,null,null,{"$f":"IF(AG288=\"وارد\",AD288*AE288*AF288,0)","v":0},null,null,{"$f":"IF(AI288>0,AD288*AE288*AF288,0)","v":0},{"$f":"AL287+AH288-AK288","v":0},null,"مايو"]
[null,null,null,null,null,{"$f":"IF(E289=\"وارد\",B289*C289*D289,0)","v":0},null,null,{"$f":"IF(G289>0,B289*C289*D289,0)","v":0},{"$f":"J288+F289-I289","v":0},null,null,null,null,null,null,null,null,null,null,null,null,null,null,null,null,null,null,null,null,null,null,null,{"$f":"IF(AG289=\"وارد\",AD289*AE289*AF289,0)","v":0},null,null,{"$f":"IF(AI289>0,AD289*AE289*AF289,0)","v":0},{"$f":"AL288+AH289-AK289","v":0}]
[null,null,null,null,null,{"$f":"IF(E290=\"وارد\",B290*C290*D290,0)","v":0},null,null,0,0,null,null,null,null,null,null,null,null,null,null,null,null,null,null,null,null,null,null,null,null,null,null,null,{"$f":"IF(AG290=\"وارد\",AD290*AE290*AF290,0)","v":0},null,null,0,0]
[null,null,null,null,null,0,null,null,0,0,null,null,null,null,null,null,null,null,null,null,null,null,null,null,null,null,null,null,null,null,null,null,null,0,null,null,0,0]
[null,null,null,null,null,0,null,null,0,0,null,null,null,null,null,null,null,null,null,null,null,null,null,null,null,null,null,null,null,null,null,null,null,0,null,null,0,0]
[null,null,null,null,null,0,null,null,0,0,null,null,null,null,null,null,null,null,null,null,null,null,null,null,null,null,null,null,null,null,null,null,null,0,null,null,0,0]
[null,null,null,null,null,0,null,null,0,0,null,null,null,null,null,null,null,null,null,null,null,null,null,null,null,null,null,null,null,null,null,null,null,0,null,null,0,0]
[null,null,null,null,null,0,null,null,0,0,null,null,null,null,null,null,null,null,null,null,null,null,null,null,null,null,null,null,null,null,null,null,null,0,null,null,0,0]
[null,null,null,null,null,0,null,null,0,0,null,null,null,null,null,null,null,null,null,null,null,null,null,null,null,null,null,null,null,null,null,null,null,0,null,null,0,0]
[null,null,null,null,null,0,null,null,0,0,null,null,null,null,null,null,null,null,null,null,null,null,null,null,null,null,null,null,null,null,null,null,null,0,null,null,0,0]
[null,null,null,null,null,0,null,null,0,0,null,null,null,null,null,null,null,null,null,null,null,null,null,null,null,null,null,"الفــــــــــــــــــــــــــــــــــــــرز",null,null,null,null,null,0,null,null,0,0]
[null,null,null,null,null,0,null,null,0,0,null,null,null,null,null,null,null,null,null,null,null,null,null,null,null,null,null,null,null,null,null,null,null,0,null,null,0,0]
[null,null,null,null,null,0,null,null,0,0,null,null,null,null,null,null,null,null,null,null,null,null,null,null,null,null,null,null,null,null,null,null,null,0,null,null,0,0]
[null,null,null,null,null,0,null,null,0,0,null,null,null,null,null,null,null,null,null,null,null,null,null,null,null,null,null,null,null,null,null,null,null,0,null,null,0,0]
[null,null,null,null,null,0,null,null,0,0,null,null,null,null,null,null,null,null,null,null,null,null,null,null,null,null,null,null,null,null,null,null,null,0,null,null,0,0]
[null,null,null,null,null,0,null,null,0,0,null,null,null,null,null,null,null,null,null,null,null,null,null,null,null,null,null,null,null,null,null,null,null,0,null,null,0,0]
[null,null,null,null,null,0,null,null,0,0,null,null,null,null,null,null,null,null,null,null,null,null,null,null,null,null,null,null,null,null,null,null,null,0,null,null,0,0]
[null,null,null,null,null,0,null,null,0,0,null,null,null,null,null,null,null,null,null,null,null,null,null,null,null,null,null,null,null,null,null,null,null,0,null,null,0,0]
[null,null,null,null,null,0,null,null,0,0,null,null,null,null,null,null,null,null,null,null,null,null,null,null,null,null,null,null,null,null,null,null,null,0,null,null,0,0]
[null,null,null,null,null,0,null,null,0,0,null,null,null,null,null,null,null,null,null,null,null,null,null,null,null,null,null,null,null,null,null,null,null,0,null,null,0,0]
[null,null,null,null,null,0,null,null,0,0,null,null,null,null,null,null,null,null,null,null,null,null,null,null,null,null,null,null,null,null,null,null,null,0,null,null,0,0]
[null,null,null,null,null,0,null,null,0,0,null,null,null,null,null,null,null,null,null,null,null,null,null,null,null,null,null,"الفــــــــــــــــــــــــــــــــــــــرز",null,null,null,null,null,0,null,null,0,0]
[null,null,null,null,null,0,null,null,0,0,null,null,null,null,null,null,null,null,null,null,null,null,null,null,null,null,null,null,null,null,null,null,null,0,null,null,0,0]
[null,null,null,null,null,0,null,null,0,0,null,null,null,null,null,null,null,null,null,null,null,null,null,null,null,null,null,null,null,null,null,null,null,0,null,null,0,0]
[null,null,null,null,null,0,null,null,0,0,null,null,null,null,null,null,null,null,null,null,null,null,null,null,null,null,null,null,null,null,null,null,null,0,null,null,0,0]
[null,null,null,null,null,0,null,null,0,0,null,null,null,null,null,null,null,null,null,null,null,null,null,null,null,null,null,null,null,null,null,null,null,0,null,null,0,0]
[null,null,null,null,null,0,null,null,0,0,null,null,null,null,null,null,null,null,null,null,null,null,null,null,null,null,null,null,null,null,null,null,null,0,null,null,0,0]
[null,null,null,null,null,0,null,null,0,0,null,null,null,null,null,null,null,null,null,null,null,null,null,null,null,null,null,null,null,null,null,null,null,0,null,null,0,0]
[null,null,null,null,null,0,null,null,0,0,null,null,null,null,null,null,null,null,null,null,null,null,null,null,null,null,null,null,null,null,null,null,null,0,null,null,0,0]
[null,null,null,null,null,0,null,null,0,0,null,null,null,null,null,null,null,null,null,null,null,null,null,null,null,null,null,null,null,null,null,null,null,0,null,null,0,0]
[null,null,null,null,null,0,null,null,0,0,null,null,null,null,null,null,null,null,null,null,null,null,null,null,null,null,null,null,null,null,null,null,null,0,null,null,0,0]
[null,null,null,null,null,0,null,null,0,0,null,null,null,null,null,null,null,null,null,null,null,null,null,null,null,null,null,null,null,null,null,null,null,0,null,null,0,0]
[null,null,null,null,null,0,null,null,0,0,null,null,null,null,null,null,null,null,null,null,null,null,null,null,null,null,null,"الفــــــــــــــــــــــــــــــــــــــرز",null,null,null,null,null,0,null,null,0,0]
[null,null,null,null,null,0,null,null,0,0,null,null,null,null,null,null,null,null,null,null,null,null,null,null,null,null,null,null,null,null,null,null,null,0,null,null,0,0]
[null,null,null,null,null,0,null,null,0,0,null,null,null,null,null,null,null,null,null,null,null,null,null,null,null,null,null,null,null,null,null,null,null,0,null,null,0,0]
[null,null,null,null,null,0,null,null,0,0,null,null,null,null,null,null,null,null,null,null,null,null,null,null,null,null,null,null,null,null,null,null,null,0,null,null,0,0]
[null,null,null,null,null,0,null,null,0,0,null,null,null,null,null,null,null,null,null,null,null,null,null,null,null,null,null,null,null,null,null,null,null,0,null,null,0,0]
[null,null,null,null,null,0,null,null,0,0,null,null,null,null,null,null,null,null,null,null,null,null,null,null,null,null,null,null,null,null,null,null,null,0,null,null,0,0]
[null,null,null,null,null,0,null,null,0,0,null,null,null,null,null,null,null,null,null,null,null,null,null,null,null,null,null,null,null,null,null,null,null,0,null,null,0,0]
[null,null,null,null,null,0,null,null,0,0,null,null,null,null,null,null,null,null,null,null,null,null,null,null,null,null,null,null,null,null,null,null,null,0,null,null,0,0]
[null,null,null,null,null,0,null,null,0,0,null,null,null,null,null,null,null,null,null,null,null,null,null,null,null,null,null,null,null,null,null,null,null,0,null,null,0,0]
[null,null,null,null,null,0,null,null,0,0,null,null,null,null,null,null,null,null,null,null,null,null,null,null,null,null,null,null,null,null,null,null,null,0,null,null,0,0]
[null,null,null,null,null,0,null,null,0,0,null,null,null,null,null,null,null,null,null,null,null,null,null,null,null,null,null,null,null,null,null,null,null,0,null,null,0,0]
[null,null,null,null,null,0,null,null,0,0,null,null,null,null,null,null,null,null,null,null,null,null,null,null,null,null,null,"الفــــــــــــــــــــــــــــــــــــــرز",null,null,null,null,null,0,null,null,0,0]
[null,null,null,null,null,0,null,null,0,0,null,null,null,null,null,null,null,null,null,null,null,null,null,null,null,null,null,null,null,null,null,null,null,0,null,null,0,0]
[null,null,null,null,null,0,null,null,0,0,null,null,null,null,null,null,null,null,null,null,null,null,null,null,null,null,null,null,null,null,null,null,null,0,null,null,0,0]
[null,null,null,null,null,0,null,null,0,0,null,null,null,null,null,null,null,null,null,null,null,null,null,null,null,null,null,null,null,null,null,null,null,0,null,null,0,0]
[null,null,null,null,null,0,null,null,0,0,null,null,null,null,null,null,null,null,null,null,null,null,null,null,null,null,null,null,null,null,null,null,null,0,null,null,0,0]
[null,null,null,null,null,0,null,null,0,0,null,null,null,null,null,null,null,null,null,null,null,null,null,null,null,null,null,null,null,null,null,null,null,0,null,null,0,0]
[null,null,null,null,null,0,null,null,0,0,null,null,null,null,null,null,null,null,null,null,null,null,null,null,null,null,null,null,null,null,null,null,null,0,null,null,0,0]
[null,null,null,null,null,0,null,null,0,0,null,null,null,null,null,null,null,null,null,null,null,null,null,null,null,null,null,null,null,null,null,null,null,0,null,null,0,0]
[null,null,null,null,null,0,null,null,0,0,null,null,null,null,null,null,null,null,null,null,null,null,null,null,null,null,null,null,null,null,null,null,null,0,null,null,0,0]
[null,null,null,null,null,0,null,null,0,0,null,null,null,null,null,null,null,null,null,null,null,null,null,null,null,null,null,null,null,null,null,null,null,0,null,null,0,0]
[null,null,null,null,null,0,null,null,0,0,null,null,null,null,null,null,null,null,null,null,null,null,null,null,null,null,null,null,null,null,null,null,null,0,null,null,0,0]
[null,null,null,null,null,0,null,null,0,0,null,null,null,null,null,null,null,null,null,null,null,null,null,null,null,null,null,"الفــــــــــــــــــــــــــــــــــــــرز",null,null,null,null,null,0,null,null,0,0]
[null,null,null,null,null,0,null,null,0,0,null,null,null,null,null,null,null,null,null,null,null,null,null,null,null,null,null,null,null,null,null,null,null,0,null,null,0,0]
[null,null,null,null,null,0,null,null,0,0,null,null,null,null,null,null,null,null,null,null,null,null,null,null,null,null,null,null,null,null,null,null,null,0,null,null,0,0]
[null,null,null,null,null,0,null,null,0,0,null,null,null,null,null,null,null,null,null,null,null,null,null,null,null,null,null,null,null,null,null,null,null,0,null,null,0,0]
[null,null,null,null,null,0,null,null,0,0,null,null,null,null,null,null,null,null,null,null,null,null,null,null,null,null,null,null,null,null,null,null,null,0,null,null,0,0]
[null,null,null,null,null,0,null,null,0,0,null,null,null,null,null,null,null,null,null,null,null,null,null,null,null,null,null,null,null,null,null,null,null,0,null,null,0,0]
[null,null,null,null,null,0,null,null,0,0,null,null,null,null,null,null,null,null,null,null,null,null,null,null,null,null,null,null,null,null,null,null,null,0,null,null,0,0]
["الإجمـــــــــــــــــــــــــالى",null,null,null,null,{"$f":"SUM(F288:F348)","v":0},null,null,{"$f":"SUM(I288:I348)","v":0},{"$f":"J287+F349-I349","v":0},null,null,null,null,null,null,null,null,null,null,null,null,null,null,null,null,null,null,"الإجمـــــــــــــــــــــــــالى",null,null,null,null,{"$f":"SUM(AH288:AH348)","v":0},null,null,{"$f":"SUM(AK288:AK348)","v":0},{"$f":"AL287+AH349-AK349","v":0}]
["أمين المخزن",null,null,null,null,null,null,null,null,"المراجعه",null,null,null,null,null,null,null,null,null,null,null,null,null,null,null,null,null,null,"أمين المخزن",null,null,null,null,null,null,null,null,"المراجعه"]
[{"$f":"A1","v":0},null,null,null,null,null,null,null,null,null,null,null,null,null,null,null,null,null,null,null,null,null,null,null,null,null,null,null,{"$f":"AC1","v":0}]
[null,null,null,null,"بطاقـــــــــــــة صنــــــف",null,null,null,null,null,null,null,null,null,null,null,null,null,null,null,null,null,null,null,null,null,null,null,null,null,null,null,"بطاقـــــــــــــة صنــــــف"]
[null,null,null,null,null,null,null,null,"كود الصنف",{"$f":"J283","v":0},null,null,null,null,null,null,null,null,null,null,null,null,null,null,null,null,null,"الفــــــــــــــــــــــــــــــــــــــرز",null,null,null,null,null,null,null,null,"كود الصنف",{"$f":"AL283","v":0}]
[null,null,null,null,null,"الإنتاج التام",null,null,"الوحدة","م2",null,null,null,null,null,null,null,null,null,null,null,null,null,null,null,null,null,null,null,null,null,null,null,"الإنتاج التام","فرز",null,"الوحدة","م2"]
[]
["التاريخ","بلتات","رصات","رصة","م","الوارد","م","العميل","المنصرف","الرصيــد","ملاحظات",null,null,null,null,null,null,null,null,null,null,null,null,null,null,null,null,null,"التاريخ","بلتات","رصات","رصة","م","الوارد","م","العميل","المنصرف","الرصيــد","ملاحظات"]
[null,"رصيد أول المدة",null,null,null,null,null,null,null,{"$f":"J349","v":0},null,null,null,null,null,null,null,null,null,null,null,null,null,null,null,null,null,null,null,"رصيد أول المدة",null,null,null,null,null,null,null,{"$f":"AL349","v":0}]
[null,null,null,null,null,{"$f":"IF(E358=\"وارد\",B358*C358*D358,0)","v":0},null,null,{"$f":"IF(G358>0,B358*C358*D358,0)","v":0},{"$f":"J357+F358-I358","v":0},null,"يونيو",null,null,null,null,null,null,null,null,null,null,null,null,null,null,null,null,null,null,null,null,null,{"$f":"IF(AG358=\"وارد\",AD358*AE358*AF358,0)","v":0},null,null,{"$f":"IF(AI358>0,AD358*AE358*AF358,0)","v":0},{"$f":"AL357+AH358-AK358","v":0},null,"يونيو"]
[null,null,null,null,null,{"$f":"IF(E359=\"وارد\",B359*C359*D359,0)","v":0},null,null,{"$f":"IF(G359>0,B359*C359*D359,0)","v":0},{"$f":"J358+F359-I359","v":0},null,null,null,null,null,null,null,null,null,null,null,null,null,null,null,null,null,null,null,null,null,null,null,{"$f":"IF(AG359=\"وارد\",AD359*AE359*AF359,0)","v":0},null,null,{"$f":"IF(AI359>0,AD359*AE359*AF359,0)","v":0},{"$f":"AL358+AH359-AK359","v":0}]
[null,null,null,null,null,{"$f":"IF(E360=\"وارد\",B360*C360*D360,0)","v":0},null,null,0,0,null,null,null,null,null,null,null,null,null,null,null,null,null,null,null,null,null,null,null,null,null,null,null,{"$f":"IF(AG360=\"وارد\",AD360*AE360*AF360,0)","v":0},null,null,0,0]
[null,null,null,null,null,0,null,null,0,0,null,null,null,null,null,null,null,null,null,null,null,null,null,null,null,null,null,null,null,null,null,null,null,0,null,null,0,0]
[null,null,null,null,null,0,null,null,0,0,null,null,null,null,null,null,null,null,null,null,null,null,null,null,null,null,null,null,null,null,null,null,null,0,null,null,0,0]
[null,null,null,null,null,0,null,null,0,0,null,null,null,null,null,null,null,null,null,null,null,null,null,null,null,null,null,null,null,null,null,null,null,0,null,null,0,0]
[null,null,null,null,null,0,null,null,0,0,null,null,null,null,null,null,null,null,null,null,null,null,null,null,null,null,null,"الفــــــــــــــــــــــــــــــــــــــرز",null,null,null,null,null,0,null,null,0,0]
[null,null,null,null,null,0,null,null,0,0,null,null,null,null,null,null,null,null,null,null,null,null,null,null,null,null,null,null,null,null,null,null,null,0,null,null,0,0]
[null,null,null,null,null,0,null,null,0,0,null,null,null,null,null,null,null,null,null,null,null,null,null,null,null,null,null,null,null,null,null,null,null,0,null,null,0,0]
[null,null,null,null,null,0,null,null,0,0,null,null,null,null,null,null,null,null,null,null,null,null,null,null,null,null,null,null,null,null,null,null,null,0,null,null,0,0]
[null,null,null,null,null,0,null,null,0,0,null,null,null,null,null,null,null,null,null,null,null,null,null,null,null,null,null,null,null,null,null,null,null,0,null,null,0,0]
[null,null,null,null,null,0,null,null,0,0,null,null,null,null,null,null,null,null,null,null,null,null,null,null,null,null,null,null,null,null,null,null,null,0,null,null,0,0]
[null,null,null,null,null,0,null,null,0,0,null,null,null,null,null,null,null,null,null,null,null,null,null,null,null,null,null,null,null,null,null,null,null,0,null,null,0,0]
[null,null,null,null,null,0,null,null,0,0,null,null,null,null,null,null,null,null,null,null,null,null,null,null,null,null,null,null,null,null,null,null,null,0,null,null,0,0]
[null,null,null,null,null,0,null,null,0,0,null,null,null,null,null,null,null,null,null,null,null,null,null,null,null,null,null,null,null,null,null,null,null,0,null,null,0,0]
[null,null,null,null,null,0,null,null,0,0,null,null,null,null,null,null,null,null,null,null,null,null,null,null,null,null,null,null,null,null,null,null,null,0,null,null,0,0]
[null,null,null,null,null,0,null,null,0,0,null,null,null,null,null,null,null,null,null,null,null,null,null,null,null,null,null,null,null,null,null,null,null,0,null,null,0,0]
[null,null,null,null,null,0,null,null,0,0,null,null,null,null,null,null,null,null,null,null,null,null,null,null,null,null,null,"الفــــــــــــــــــــــــــــــــــــــرز",null,null,null,null,null,0,null,null,0,0]
[null,null,null,null,null,0,null,null,0,0,null,null,null,null,null,null,null,null,null,null,null,null,null,null,null,null,null,null,null,null,null,null,null,0,null,null,0,0]
[null,null,null,null,null,0,null,null,0,0,null,null,null,null,null,null,null,null,null,null,null,null,null,null,null,null,null,null,null,null,null,null,null,0,null,null,0,0]
[null,null,null,null,null,0,null,null,0,0,null,null,null,null,null,null,null,null,null,null,null,null,null,null,null,null,null,null,null,null,null,null,null,0,null,null,0,0]
[null,null,null,null,null,0,null,null,0,0,null,null,null,null,null,null,null,null,null,null,null,null,null,null,null,null,null,null,null,null,null,null,null,0,null,null,0,0]
[null,null,null,null,null,0,null,null,0,0,null,null,null,null,null,null,null,null,null,null,null,null,null,null,null,null,null,null,null,null,null,null,null,0,null,null,0,0]
[null,null,null,null,null,0,null,null,0,0,null,null,null,null,null,null,null,null,null,null,null,null,null,null,null,null,null,null,null,null,null,null,null,0,null,null,0,0]
[null,null,null,null,null,0,null,null,0,0,null,null,null,null,null,null,null,null,null,null,null,null,null,null,null,null,null,null,null,null,null,null,null,0,null,null,0,0]
[null,null,null,null,null,0,null,null,0,0,null,null,null,null,null,null,null,null,null,null,null,null,null,null,null,null,null,null,null,null,null,null,null,0,null,null,0,0]
[null,null,null,null,null,0,null,null,0,0,null,null,null,null,null,null,null,null,null,null,null,null,null,null,null,null,null,null,null,null,null,null,null,0,null,null,0,0]
[null,null,null,null,null,0,null,null,0,0,null,null,null,null,null,null,null,null,null,null,null,null,null,null,null,null,null,null,null,null,null,null,null,0,null,null,0,0]
[null,null,null,null,null,0,null,null,0,0,null,null,null,null,null,null,null,null,null,null,null,null,null,null,null,null,null,"الفــــــــــــــــــــــــــــــــــــــرز",null,null,null,null,null,0,null,null,0,0]
[null,null,null,null,null,0,null,null,0,0,null,null,null,null,null,null,null,null,null,null,null,null,null,null,null,null,null,null,null,null,null,null,null,0,null,null,0,0]
[null,null,null,null,null,0,null,null,0,0,null,null,null,null,null,null,null,null,null,null,null,null,null,null,null,null,null,null,null,null,null,null,null,0,null,null,0,0]
[null,null,null,null,null,0,null,null,0,0,null,null,null,null,null,null,null,null,null,null,null,null,null,null,null,null,null,null,null,null,null,null,null,0,null,null,0,0]
[null,null,null,null,null,0,null,null,0,0,null,null,null,null,null,null,null,null,null,null,null,null,null,null,null,null,null,null,null,null,null,null,null,0,null,null,0,0]
[null,null,null,null,null,0,null,null,0,0,null,null,null,null,null,null,null,null,null,null,null,null,null,null,null,null,null,null,null,null,null,null,null,0,null,null,0,0]
[null,null,null,null,null,0,null,null,0,0,null,null,null,null,null,null,null,null,null,null,null,null,null,null,null,null,null,null,null,null,null,null,null,0,null,null,0,0]
[null,null,null,null,null,0,null,null,0,0,null,null,null,null,null,null,null,null,null,null,null,null,null,null,null,null,null,null,null,null,null,null,null,0,null,null,0,0]
[null,null,null,null,null,0,null,null,0,0,null,null,null,null,null,null,null,null,null,null,null,null,null,null,null,null,null,null,null,null,null,null,null,0,null,null,0,0]
[null,null,null,null,null,0,null,null,0,0,null,null,null,null,null,null,null,null,null,null,null,null,null,null,null,null,null,null,null,null,null,null,null,0,null,null,0,0]
[null,null,null,null,null,0,null,null,0,0,null,null,null,null,null,null,null,null,null,null,null,null,null,null,null,null,null,null,null,null,null,null,null,0,null,null,0,0]
[null,null,null,null,null,0,null,null,0,0,null,null,null,null,null,null,null,null,null,null,null,null,null,null,null,null,null,"الفــــــــــــــــــــــــــــــــــــــرز",null,null,null,null,null,0,null,null,0,0]
[null,null,null,null,null,0,null,null,0,0,null,null,null,null,null,null,null,null,null,null,null,null,null,null,null,null,null,null,null,null,null,null,null,0,null,null,0,0]
[null,null,null,null,null,0,null,null,0,0,null,null,null,null,null,null,null,null,null,null,null,null,null,null,null,null,null,null,null,null,null,null,null,0,null,null,0,0]
[null,null,null,null,null,0,null,null,0,0,null,null,null,null,null,null,null,null,null,null,null,null,null,null,null,null,null,null,null,null,null,null,null,0,null,null,0,0]
[null,null,null,null,null,0,null,null,0,0,null,null,null,null,null,null,null,null,null,null,null,null,null,null,null,null,null,null,null,null,null,null,null,0,null,null,0,0]
[null,null,null,null,null,0,null,null,0,0,null,null,null,null,null,null,null,null,null,null,null,null,null,null,null,null,null,null,null,null,null,null,null,0,null,null,0,0]
[null,null,null,null,null,0,null,null,0,0,null,null,null,null,null,null,null,null,null,null,null,null,null,null,null,null,null,null,null,null,null,null,null,0,null,null,0,0]
[null,null,null,null,null,0,null,null,0,0,null,null,null,null,null,null,null,null,null,null,null,null,null,null,null,null,null,null,null,null,null,null,null,0,null,null,0,0]
[null,null,null,null,null,0,null,null,0,0,null,null,null,null,null,null,null,null,null,null,null,null,null,null,null,null,null,null,null,null,null,null,null,0,null,null,0,0]
[null,null,null,null,null,0,null,null,0,0,null,null,null,null,null,null,null,null,null,null,null,null,null,null,null,null,null,null,null,null,null,null,null,0,null,null,0,0]
[null,null,null,null,null,0,null,null,0,0,null,null,null,null,null,null,null,null,null,null,null,null,null,null,null,null,null,null,null,null,null,null,null,0,null,null,0,0]
[null,null,null,null,null,0,null,null,0,0,null,null,null,null,null,null,null,null,null,null,null,null,null,null,null,null,null,"الفــــــــــــــــــــــــــــــــــــــرز",null,null,null,null,null,0,null,null,0,0]
[null,null,null,null,null,0,null,null,0,0,null,null,null,null,null,null,null,null,null,null,null,null,null,null,null,null,null,null,null,null,null,null,null,0,null,null,0,0]
[null,null,null,null,null,0,null,null,0,0,null,null,null,null,null,null,null,null,null,null,null,null,null,null,null,null,null,null,null,null,null,null,null,0,null,null,0,0]
[null,null,null,null,null,0,null,null,0,0,null,null,null,null,null,null,null,null,null,null,null,null,null,null,null,null,null,null,null,null,null,null,null,0,null,null,0,0]
[null,null,null,null,null,0,null,null,0,0,null,null,null,null,null,null,null,null,null,null,null,null,null,null,null,null,null,null,null,null,null,null,null,0,null,null,0,0]
[null,null,null,null,null,0,null,null,0,0,null,null,null,null,null,null,null,null,null,null,null,null,null,null,null,null,null,null,null,null,null,null,null,0,null,null,0,0]
[null,null,null,null,null,0,null,null,0,0,null,null,null,null,null,null,null,null,null,null,null,null,null,null,null,null,null,null,null,null,null,null,null,0,null,null,0,0]
[null,null,null,null,null,0,null,null,0,0,null,null,null,null,null,null,null,null,null,null,null,null,null,null,null,null,null,null,null,null,null,null,null,0,null,null,0,0]
[null,null,null,null,null,0,null,null,0,0,null,null,null,null,null,null,null,null,null,null,null,null,null,null,null,null,null,null,null,null,null,null,null,0,null,null,0,0]
[null,null,null,null,null,0,null,null,0,0,null,null,null,null,null,null,null,null,null,null,null,null,null,null,null,null,null,null,null,null,null,null,null,0,null,null,0,0]
[null,null,null,null,null,0,null,null,0,0,null,null,null,null,null,null,null,null,null,null,null,null,null,null,null,null,null,null,null,null,null,null,null,0,null,null,0,0]
["الإجمـــــــــــــــــــــــــالى",null,null,null,null,{"$f":"SUM(F358:F418)","v":0},null,null,{"$f":"SUM(I358:I418)","v":0},{"$f":"J357+F419-I419","v":0},null,null,null,null,null,null,null,null,null,null,null,null,null,null,null,null,null,"الفــــــــــــــــــــــــــــــــــــــرز","الإجمـــــــــــــــــــــــــالى",null,null,null,null,{"$f":"SUM(AH358:AH418)","v":0},null,null,{"$f":"SUM(AK358:AK418)","v":0},{"$f":"AL357+AH419-AK419","v":0}]
["أمين المخزن",null,null,null,null,null,null,null,null,"المراجعه",null,null,null,null,null,null,null,null,null,null,null,null,null,null,null,null,null,null,"أمين المخزن",null,null,null,null,null,null,null,null,"المراجعه"]
[{"$f":"A1","v":0},null,null,null,null,null,null,null,null,null,null,null,null,null,null,null,null,null,null,null,null,null,null,null,null,null,null,null,{"$f":"AC1","v":0}]
[null,null,null,null,"بطاقـــــــــــــة صنــــــف",null,null,null,null,null,null,null,null,null,null,null,null,null,null,null,null,null,null,null,null,null,null,null,null,null,null,null,"بطاقـــــــــــــة صنــــــف"]
[null,null,null,null,null,null,null,null,"كود الصنف",{"$f":"J353","v":0},null,null,null,null,null,null,null,null,null,null,null,null,null,null,null,null,null,null,null,null,null,null,null,null,null,null,"كود الصنف",{"$f":"AL353","v":0}]
[null,null,null,null,null,"الإنتاج التام",null,null,"الوحدة","م2",null,null,null,null,null,null,null,null,null,null,null,null,null,null,null,null,null,null,null,null,null,null,null,"الإنتاج التام","فرز",null,"الوحدة","م2"]
[]
["التاريخ","بلتات","رصات","رصة","م","الوارد","م","العميل","المنصرف","الرصيــد","ملاحظات",null,null,null,null,null,null,null,null,null,null,null,null,null,null,null,null,null,"التاريخ","بلتات","رصات","رصة","م","الوارد","م","العميل","المنصرف","الرصيــد","ملاحظات"]
[null,"رصيد أول المدة",null,null,null,null,null,null,null,{"$f":"J419","v":0},null,null,null,null,null,null,null,null,null,null,null,null,null,null,null,null,null,null,null,"رصيد أول المدة",null,null,null,null,null,null,null,{"$f":"AL419","v":0}]
[null,null,null,null,null,{"$f":"IF(E428=\"وارد\",B428*C428*D428,0)","v":0},null,null,{"$f":"IF(G428>0,B428*C428*D428,0)","v":0},{"$f":"J427+F428-I428","v":0},null,"يوليو",null,null,null,null,null,null,null,null,null,null,null,null,null,null,null,null,null,null,null,null,null,{"$f":"IF(AG428=\"وارد\",AD428*AE428*AF428,0)","v":0},null,null,{"$f":"IF(AI428>0,AD428*AE428*AF428,0)","v":0},{"$f":"AL427+AH428-AK428","v":0},null,"يوليو"]
[null,null,null,null,null,{"$f":"IF(E429=\"وارد\",B429*C429*D429,0)","v":0},null,null,{"$f":"IF(G429>0,B429*C429*D429,0)","v":0},{"$f":"J428+F429-I429","v":0},null,null,null,null,null,null,null,null,null,null,null,null,null,null,null,null,null,null,null,null,null,null,null,{"$f":"IF(AG429=\"وارد\",AD429*AE429*AF429,0)","v":0},null,null,{"$f":"IF(AI429>0,AD429*AE429*AF429,0)","v":0},{"$f":"AL428+AH429-AK429","v":0}]
[null,null,null,null,null,{"$f":"IF(E430=\"وارد\",B430*C430*D430,0)","v":0},null,null,0,0,null,null,null,null,null,null,null,null,null,null,null,null,null,null,null,null,null,"الفــــــــــــــــــــــــــــــــــــــرز",null,null,null,null,null,{"$f":"IF(AG430=\"وارد\",AD430*AE430*AF430,0)","v":0},null,null,0,0]
[null,null,null,null,null,0,null,null,0,0,null,null,null,null,null,null,null,null,null,null,null,null,null,null,null,null,null,null,null,null,null,null,null,0,null,null,0,0]
[null,null,null,null,null,0,null,null,0,0,null,null,null,null,null,null,null,null,null,null,null,null,null,null,null,null,null,null,null,null,null,null,null,0,null,null,0,0]
[null,null,null,null,null,0,null,null,0,0,null,null,null,null,null,null,null,null,null,null,null,null,null,null,null,null,null,null,null,null,null,null,null,0,null,null,0,0]
[null,null,null,null,null,0,null,null,0,0,null,null,null,null,null,null,null,null,null,null,null,null,null,null,null,null,null,null,null,null,null,null,null,0,null,null,0,0]
[null,null,null,null,null,0,null,null,0,0,null,null,null,null,null,null,null,null,null,null,null,null,null,null,null,null,null,null,null,null,null,null,null,0,null,null,0,0]
[null,null,null,null,null,0,null,null,0,0,null,null,null,null,null,null,null,null,null,null,null,null,null,null,null,null,null,null,null,null,null,null,null,0,null,null,0,0]
[null,null,null,null,null,0,null,null,0,0,null,null,null,null,null,null,null,null,null,null,null,null,null,null,null,null,null,null,null,null,null,null,null,0,null,null,0,0]
[null,null,null,null,null,0,null,null,0,0,null,null,null,null,null,null,null,null,null,null,null,null,null,null,null,null,null,null,null,null,null,null,null,0,null,null,0,0]
[null,null,null,null,null,0,null,null,0,0,null,null,null,null,null,null,null,null,null,null,null,null,null,null,null,null,null,null,null,null,null,null,null,0,null,null,0,0]
[null,null,null,null,null,0,null,null,0,0,null,null,null,null,null,null,null,null,null,null,null,null,null,null,null,null,null,null,null,null,null,null,null,0,null,null,0,0]
[null,null,null,null,null,0,null,null,0,0,null,null,null,null,null,null,null,null,null,null,null,null,null,null,null,null,null,"الفــــــــــــــــــــــــــــــــــــــرز",null,null,null,null,null,0,null,null,0,0]
[null,null,null,null,null,0,null,null,0,0,null,null,null,null,null,null,null,null,null,null,null,null,null,null,null,null,null,null,null,null,null,null,null,0,null,null,0,0]
[null,null,null,null,null,0,null,null,0,0,null,null,null,null,null,null,null,null,null,null,null,null,null,null,null,null,null,null,null,null,null,null,null,0,null,null,0,0]
[null,null,null,null,null,0,null,null,0,0,null,null,null,null,null,null,null,null,null,null,null,null,null,null,null,null,null,null,null,null,null,null,null,0,null,null,0,0]
[null,null,null,null,null,0,null,null,0,0,null,null,null,null,null,null,null,null,null,null,null,null,null,null,null,null,null,null,null,null,null,null,null,0,null,null,0,0]
[null,null,null,null,null,0,null,null,0,0,null,null,null,null,null,null,null,null,null,null,null,null,null,null,null,null,null,null,null,null,null,null,null,0,null,null,0,0]
[null,null,null,null,null,0,null,null,0,0,null,null,null,null,null,null,null,null,null,null,null,null,null,null,null,null,null,null,null,null,null,null,null,0,null,null,0,0]
[null,null,null,null,null,0,null,null,0,0,null,null,null,null,null,null,null,null,null,null,null,null,null,null,null,null,null,null,null,null,null,null,null,0,null,null,0,0]
[null,null,null,null,null,0,null,null,0,0,null,null,null,null,null,null,null,null,null,null,null,null,null,null,null,null,null,null,null,null,null,null,null,0,null,null,0,0]
[null,null,null,null,null,0,null,null,0,0,null,null,null,null,null,null,null,null,null,null,null,null,null,null,null,null,null,null,null,null,null,null,null,0,null,null,0,0]
[null,null,null,null,null,0,null,null,0,0,null,null,null,null,null,null,null,null,null,null,null,null,null,null,null,null,null,null,null,null,null,null,null,0,null,null,0,0]
[null,null,null,null,null,0,null,null,0,0,null,null,null,null,null,null,null,null,null,null,null,null,null,null,null,null,null,"الفــــــــــــــــــــــــــــــــــــــرز",null,null,null,null,null,0,null,null,0,0]
[null,null,null,null,null,0,null,null,0,0,null,null,null,null,null,null,null,null,null,null,null,null,null,null,null,null,null,null,null,null,null,null,null,0,null,null,0,0]
[null,null,null,null,null,0,null,null,0,0,null,null,null,null,null,null,null,null,null,null,null,null,null,null,null,null,null,null,null,null,null,null,null,0,null,null,0,0]
[null,null,null,null,null,0,null,null,0,0,null,null,null,null,null,null,null,null,null,null,null,null,null,null,null,null,null,null,null,null,null,null,null,0,null,null,0,0]
[null,null,null,null,null,0,null,null,0,0,null,null,null,null,null,null,null,null,null,null,null,null,null,null,null,null,null,null,null,null,null,null,null,0,null,null,0,0]
[null,null,null,null,null,0,null,null,0,0,null,null,null,null,null,null,null,null,null,null,null,null,null,null,null,null,null,null,null,null,null,null,null,0,null,null,0,0]
[null,null,null,null,null,0,null,null,0,0,null,null,null,null,null,null,null,null,null,null,null,null,null,null,null,null,null,null,null,null,null,null,null,0,null,null,0,0]
[null,null,null,null,null,0,null,null,0,0,null,null,null,null,null,null,null,null,null,null,null,null,null,null,null,null,null,null,null,null,null,null,null,0,null,null,0,0]
[null,null,null,null,null,0,null,null,0,0,null,null,null,null,null,null,null,null,null,null,null,null,null,null,null,null,null,null,null,null,null,null,null,0,null,null,0,0]
[null,null,null,null,null,0,null,null,0,0,null,null,null,null,null,null,null,null,null,null,null,null,null,null,null,null,null,null,null,null,null,null,null,0,null,null,0,0]
[null,null,null,null,null,0,null,null,0,0,null,null,null,null,null,null,null,null,null,null,null,null,null,null,null,null,null,null,null,null,null,null,null,0,null,null,0,0]
[null,null,null,null,null,0,null,null,0,0,null,null,null,null,null,null,null,null,null,null,null,null,null,null,null,null,null,"الفــــــــــــــــــــــــــــــــــــــرز",null,null,null,null,null,0,null,null,0,0]
[null,null,null,null,null,0,null,null,0,0,null,null,null,null,null,null,null,null,null,null,null,null,null,null,null,null,null,null,null,null,null,null,null,0,null,null,0,0]
[null,null,null,null,null,0,null,null,0,0,null,null,null,null,null,null,null,null,null,null,null,null,null,null,null,null,null,null,null,null,null,null,null,0,null,null,0,0]
[null,null,null,null,null,0,null,null,0,0,null,null,null,null,null,null,null,null,null,null,null,null,null,null,null,null,null,null,null,null,null,null,null,0,null,null,0,0]
[null,null,null,null,null,0,null,null,0,0,null,null,null,null,null,null,null,null,null,null,null,null,null,null,null,null,null,null,null,null,null,null,null,0,null,null,0,0]
[null,null,null,null,null,0,null,null,0,0,null,null,null,null,null,null,null,null,null,null,null,null,null,null,null,null,null,null,null,null,null,null,null,0,null,null,0,0]
[null,null,null,null,null,0,null,null,0,0,null,null,null,null,null,null,null,null,null,null,null,null,null,null,null,null,null,null,null,null,null,null,null,0,null,null,0,0]
[null,null,null,null,null,0,null,null,0,0,null,null,null,null,null,null,null,null,null,null,null,null,null,null,null,null,null,null,null,null,null,null,null,0,null,null,0,0]
[null,null,null,null,null,0,null,null,0,0,null,null,null,null,null,null,null,null,null,null,null,null,null,null,null,null,null,null,null,null,null,null,null,0,null,null,0,0]
[null,null,null,null,null,0,null,null,0,0,null,null,null,null,null,null,null,null,null,null,null,null,null,null,null,null,null,null,null,null,null,null,null,0,null,null,0,0]
[null,null,null,null,null,0,null,null,0,0,null,null,null,null,null,null,null,null,null,null,null,null,null,null,null,null,null,null,null,null,null,null,null,0,null,null,0,0]
[null,null,null,null,null,0,null,null,0,0,null,null,null,null,null,null,null,null,null,null,null,null,null,null,null,null,null,"الفــــــــــــــــــــــــــــــــــــــرز",null,null,null,null,null,0,null,null,0,0]
[null,null,null,null,null,0,null,null,0,0,null,null,null,null,null,null,null,null,null,null,null,null,null,null,null,null,null,null,null,null,null,null,null,0,null,null,0,0]
[null,null,null,null,null,0,null,null,0,0,null,null,null,null,null,null,null,null,null,null,null,null,null,null,null,null,null,null,null,null,null,null,null,0,null,null,0,0]
[null,null,null,null,null,0,null,null,0,0,null,null,null,null,null,null,null,null,null,null,null,null,null,null,null,null,null,null,null,null,null,null,null,0,null,null,0,0]
[null,null,null,null,null,0,null,null,0,0,null,null,null,null,null,null,null,null,null,null,null,null,null,null,null,null,null,null,null,null,null,null,null,0,null,null,0,0]
[null,null,null,null,null,0,null,null,0,0,null,null,null,null,null,null,null,null,null,null,null,null,null,null,null,null,null,null,null,null,null,null,null,0,null,null,0,0]
[null,null,null,null,null,0,null,null,0,0,null,null,null,null,null,null,null,null,null,null,null,null,null,null,null,null,null,null,null,null,null,null,null,0,null,null,0,0]
[null,null,null,null,null,0,null,null,0,0,null,null,null,null,null,null,null,null,null,null,null,null,null,null,null,null,null,null,null,null,null,null,null,0,null,null,0,0]
[null,null,null,null,null,0,null,null,0,0,null,null,null,null,null,null,null,null,null,null,null,null,null,null,null,null,null,null,null,null,null,null,null,0,null,null,0,0]
[null,null,null,null,null,0,null,null,0,0,null,null,null,null,null,null,null,null,null,null,null,null,null,null,null,null,null,null,null,null,null,null,null,0,null,null,0,0]
[null,null,null,null,null,0,null,null,0,0,null,null,null,null,null,null,null,null,null,null,null,null,null,null,null,null,null,null,null,null,null,null,null,0,null,null,0,0]
[null,null,null,null,null,0,null,null,0,0,null,null,null,null,null,null,null,null,null,null,null,null,null,null,null,null,null,"الفــــــــــــــــــــــــــــــــــــــرز",null,null,null,null,null,0,null,null,0,0]
[null,null,null,null,null,0,null,null,0,0,null,null,null,null,null,null,null,null,null,null,null,null,null,null,null,null,null,null,null,null,null,null,null,0,null,null,0,0]
[null,null,null,null,null,0,null,null,0,0,null,null,null,null,null,null,null,null,null,null,null,null,null,null,null,null,null,null,null,null,null,null,null,0,null,null,0,0]
[null,null,null,null,null,0,null,null,0,0,null,null,null,null,null,null,null,null,null,null,null,null,null,null,null,null,null,null,null,null,null,null,null,0,null,null,0,0]
["الإجمـــــــــــــــــــــــــالى",null,null,null,null,{"$f":"SUM(F428:F488)","v":0},null,null,{"$f":"SUM(I428:I488)","v":0},{"$f":"J427+F489-I489","v":0},null,null,null,null,null,null,null,null,null,null,null,null,null,null,null,null,null,null,"الإجمـــــــــــــــــــــــــالى",null,null,null,null,{"$f":"SUM(AH428:AH488)","v":0},null,null,{"$f":"SUM(AK428:AK488)","v":0},{"$f":"AL427+AH489-AK489","v":0}]
["أمين المخزن",null,null,null,null,null,null,null,null,"المراجعه",null,null,null,null,null,null,null,null,null,null,null,null,null,null,null,null,null,null,"أمين المخزن",null,null,null,null,null,null,null,null,"المراجعه"]
[{"$f":"A1","v":0},null,null,null,null,null,null,null,null,null,null,null,null,null,null,null,null,null,null,null,null,null,null,null,null,null,null,null,{"$f":"AC1","v":0}]
[null,null,null,null,"بطاقـــــــــــــة صنــــــف",null,null,null,null,null,null,null,null,null,null,null,null,null,null,null,null,null,null,null,null,null,null,null,null,null,null,null,"بطاقـــــــــــــة صنــــــف"]
[null,null,null,null,null,null,null,null,"كود الصنف",{"$f":"J423","v":0},null,null,null,null,null,null,null,null,null,null,null,null,null,null,null,null,null,null,null,null,null,null,null,null,null,null,"كود الصنف",{"$f":"AL423","v":0}]
[null,null,null,null,null,"الإنتاج التام",null,null,"الوحدة","م2",null,null,null,null,null,null,null,null,null,null,null,null,null,null,null,null,null,null,null,null,null,null,null,"الإنتاج التام","فرز",null,"الوحدة","م2"]
[]
["التاريخ","بلتات","رصات","رصة","م","الوارد","م","العميل","المنصرف","الرصيــد","ملاحظات",null,null,null,null,null,null,null,null,null,null,null,null,null,null,null,null,"الفــــــــــــــــــــــــــــــــــــــرز","التاريخ","بلتات","رصات","رصة","م","الوارد","م","العميل","المنصرف","الرصيــد","ملاحظات"]
[null,"رصيد أول المدة",null,null,null,null,null,null,null,{"$f":"J489","v":0},null,null,null,null,null,null,null,null,null,null,null,null,null,null,null,null,null,null,null,"رصيد أول المدة",null,null,null,null,null,null,null,{"$f":"AL489","v":0}]
[null,null,null,null,null,{"$f":"IF(E498=\"وارد\",B498*C498*D498,0)","v":0},null,null,{"$f":"IF(G498>0,B498*C498*D498,0)","v":0},{"$f":"J497+F498-I498","v":0},null,"أغسطس",null,null,null,null,null,null,null,null,null,null,null,null,null,null,null,null,null,null,null,null,null,{"$f":"IF(AG498=\"وارد\",AD498*AE498*AF498,0)","v":0},null,null,{"$f":"IF(AI498>0,AD498*AE498*AF498,0)","v":0},{"$f":"AL497+AH498-AK498","v":0},null,"أغسطس"]
[null,null,null,null,null,{"$f":"IF(E499=\"وارد\",B499*C499*D499,0)","v":0},null,null,{"$f":"IF(G499>0,B499*C499*D499,0)","v":0},{"$f":"J498+F499-I499","v":0},null,null,null,null,null,null,null,null,null,null,null,null,null,null,null,null,null,null,null,null,null,null,null,{"$f":"IF(AG499=\"وارد\",AD499*AE499*AF499,0)","v":0},null,null,{"$f":"IF(AI499>0,AD499*AE499*AF499,0)","v":0},{"$f":"AL498+AH499-AK499","v":0}]
[null,null,null,null,null,{"$f":"IF(E500=\"وارد\",B500*C500*D500,0)","v":0},null,null,0,0,null,null,null,null,null,null,null,null,null,null,null,null,null,null,null,null,null,null,null,null,null,null,null,{"$f":"IF(AG500=\"وارد\",AD500*AE500*AF500,0)","v":0},null,null,0,0]
[null,null,null,null,null,0,null,null,0,0,null,null,null,null,null,null,null,null,null,null,null,null,null,null,null,null,null,null,null,null,null,null,null,0,null,null,0,0]
[null,null,null,null,null,0,null,null,0,0,null,null,null,null,null,null,null,null,null,null,null,null,null,null,null,null,null,null,null,null,null,null,null,0,null,null,0,0]
[null,null,null,null,null,0,null,null,0,0,null,null,null,null,null,null,null,null,null,null,null,null,null,null,null,null,null,null,null,null,null,null,null,0,null,null,0,0]
[null,null,null,null,null,0,null,null,0,0,null,null,null,null,null,null,null,null,null,null,null,null,null,null,null,null,null,null,null,null,null,null,null,0,null,null,0,0]
[null,null,null,null,null,0,null,null,0,0,null,null,null,null,null,null,null,null,null,null,null,null,null,null,null,null,null,null,null,null,null,null,null,0,null,null,0,0]
[null,null,null,null,null,0,null,null,0,0,null,null,null,null,null,null,null,null,null,null,null,null,null,null,null,null,null,null,null,null,null,null,null,0,null,null,0,0]
[null,null,null,null,null,0,null,null,0,0,null,null,null,null,null,null,null,null,null,null,null,null,null,null,null,null,null,"الفــــــــــــــــــــــــــــــــــــــرز",null,null,null,null,null,0,null,null,0,0]
[null,null,null,null,null,0,null,null,0,0,null,null,null,null,null,null,null,null,null,null,null,null,null,null,null,null,null,null,null,null,null,null,null,0,null,null,0,0]
[null,null,null,null,null,0,null,null,0,0,null,null,null,null,null,null,null,null,null,null,null,null,null,null,null,null,null,null,null,null,null,null,null,0,null,null,0,0]
[null,null,null,null,null,0,null,null,0,0,null,null,null,null,null,null,null,null,null,null,null,null,null,null,null,null,null,null,null,null,null,null,null,0,null,null,0,0]
[null,null,null,null,null,0,null,null,0,0,null,null,null,null,null,null,null,null,null,null,null,null,null,null,null,null,null,null,null,null,null,null,null,0,null,null,0,0]
[null,null,null,null,null,0,null,null,0,0,null,null,null,null,null,null,null,null,null,null,null,null,null,null,null,null,null,null,null,null,null,null,null,0,null,null,0,0]
[null,null,null,null,null,0,null,null,0,0,null,null,null,null,null,null,null,null,null,null,null,null,null,null,null,null,null,null,null,null,null,null,null,0,null,null,0,0]
[null,null,null,null,null,0,null,null,0,0,null,null,null,null,null,null,null,null,null,null,null,null,null,null,null,null,null,null,null,null,null,null,null,0,null,null,0,0]
[null,null,null,null,null,0,null,null,0,0,null,null,null,null,null,null,null,null,null,null,null,null,null,null,null,null,null,null,null,null,null,null,null,0,null,null,0,0]
[null,null,null,null,null,0,null,null,0,0,null,null,null,null,null,null,null,null,null,null,null,null,null,null,null,null,null,null,null,null,null,null,null,0,null,null,0,0]
[null,null,null,null,null,0,null,null,0,0,null,null,null,null,null,null,null,null,null,null,null,null,null,null,null,null,null,null,null,null,null,null,null,0,null,null,0,0]
[null,null,null,null,null,0,null,null,0,0,null,null,null,null,null,null,null,null,null,null,null,null,null,null,null,null,null,"الفــــــــــــــــــــــــــــــــــــــرز",null,null,null,null,null,0,null,null,0,0]
[null,null,null,null,null,0,null,null,0,0,null,null,null,null,null,null,null,null,null,null,null,null,null,null,null,null,null,null,null,null,null,null,null,0,null,null,0,0]
[null,null,null,null,null,0,null,null,0,0,null,null,null,null,null,null,null,null,null,null,null,null,null,null,null,null,null,null,null,null,null,null,null,0,null,null,0,0]
[null,null,null,null,null,0,null,null,0,0,null,null,null,null,null,null,null,null,null,null,null,null,null,null,null,null,null,null,null,null,null,null,null,0,null,null,0,0]
[null,null,null,null,null,0,null,null,0,0,null,null,null,null,null,null,null,null,null,null,null,null,null,null,null,null,null,null,null,null,null,null,null,0,null,null,0,0]
[null,null,null,null,null,0,null,null,0,0,null,null,null,null,null,null,null,null,null,null,null,null,null,null,null,null,null,null,null,null,null,null,null,0,null,null,0,0]
[null,null,null,null,null,0,null,null,0,0,null,null,null,null,null,null,null,null,null,null,null,null,null,null,null,null,null,null,null,null,null,null,null,0,null,null,0,0]
[null,null,null,null,null,0,null,null,0,0,null,null,null,null,null,null,null,null,null,null,null,null,null,null,null,null,null,null,null,null,null,null,null,0,null,null,0,0]
[null,null,null,null,null,0,null,null,0,0,null,null,null,null,null,null,null,null,null,null,null,null,null,null,null,null,null,null,null,null,null,null,null,0,null,null,0,0]
[null,null,null,null,null,0,null,null,0,0,null,null,null,null,null,null,null,null,null,null,null,null,null,null,null,null,null,null,null,null,null,null,null,0,null,null,0,0]
[null,null,null,null,null,0,null,null,0,0,null,null,null,null,null,null,null,null,null,null,null,null,null,null,null,null,null,null,null,null,null,null,null,0,null,null,0,0]
[null,null,null,null,null,0,null,null,0,0,null,null,null,null,null,null,null,null,null,null,null,null,null,null,null,null,null,"الفــــــــــــــــــــــــــــــــــــــرز",null,null,null,null,null,0,null,null,0,0]
[null,null,null,null,null,0,null,null,0,0,null,null,null,null,null,null,null,null,null,null,null,null,null,null,null,null,null,null,null,null,null,null,null,0,null,null,0,0]
[null,null,null,null,null,0,null,null,0,0,null,null,null,null,null,null,null,null,null,null,null,null,null,null,null,null,null,null,null,null,null,null,null,0,null,null,0,0]
[null,null,null,null,null,0,null,null,0,0,null,null,null,null,null,null,null,null,null,null,null,null,null,null,null,null,null,null,null,null,null,null,null,0,null,null,0,0]
[null,null,null,null,null,0,null,null,0,0,null,null,null,null,null,null,null,null,null,null,null,null,null,null,null,null,null,null,null,null,null,null,null,0,null,null,0,0]
[null,null,null,null,null,0,null,null,0,0,null,null,null,null,null,null,null,null,null,null,null,null,null,null,null,null,null,null,null,null,null,null,null,0,null,null,0,0]
[null,null,null,null,null,0,null,null,0,0,null,null,null,null,null,null,null,null,null,null,null,null,null,null,null,null,null,null,null,null,null,null,null,0,null,null,0,0]
[null,null,null,null,null,0,null,null,0,0,null,null,null,null,null,null,null,null,null,null,null,null,null,null,null,null,null,null,null,null,null,null,null,0,null,null,0,0]
[null,null,null,null,null,0,null,null,0,0,null,null,null,null,null,null,null,null,null,null,null,null,null,null,null,null,null,null,null,null,null,null,null,0,null,null,0,0]
[null,null,null,null,null,0,null,null,0,0,null,null,null,null,null,null,null,null,null,null,null,null,null,null,null,null,null,null,null,null,null,null,null,0,null,null,0,0]
[null,null,null,null,null,0,null,null,0,0,null,null,null,null,null,null,null,null,null,null,null,null,null,null,null,null,null,null,null,null,null,null,null,0,null,null,0,0]
[null,null,null,null,null,0,null,null,0,0,null,null,null,null,null,null,null,null,null,null,null,null,null,null,null,null,null,"الفــــــــــــــــــــــــــــــــــــــرز",null,null,null,null,null,0,null,null,0,0]
[null,null,null,null,null,0,null,null,0,0,null,null,null,null,null,null,null,null,null,null,null,null,null,null,null,null,null,null,null,null,null,null,null,0,null,null,0,0]
[null,null,null,null,null,0,null,null,0,0,null,null,null,null,null,null,null,null,null,null,null,null,null,null,null,null,null,null,null,null,null,null,null,0,null,null,0,0]
[null,null,null,null,null,0,null,null,0,0,null,null,null,null,null,null,null,null,null,null,null,null,null,null,null,null,null,null,null,null,null,null,null,0,null,null,0,0]
[null,null,null,null,null,0,null,null,0,0,null,null,null,null,null,null,null,null,null,null,null,null,null,null,null,null,null,null,null,null,null,null,null,0,null,null,0,0]
[null,null,null,null,null,0,null,null,0,0,null,null,null,null,null,null,null,null,null,null,null,null,null,null,null,null,null,null,null,null,null,null,null,0,null,null,0,0]
[null,null,null,null,null,0,null,null,0,0,null,null,null,null,null,null,null,null,null,null,null,null,null,null,null,null,null,null,null,null,null,null,null,0,null,null,0,0]
[null,null,null,null,null,0,null,null,0,0,null,null,null,null,null,null,null,null,null,null,null,null,null,null,null,null,null,null,null,null,null,null,null,0,null,null,0,0]
[null,null,null,null,null,0,null,null,0,0,null,null,null,null,null,null,null,null,null,null,null,null,null,null,null,null,null,null,null,null,null,null,null,0,null,null,0,0]
[null,null,null,null,null,0,null,null,0,0,null,null,null,null,null,null,null,null,null,null,null,null,null,null,null,null,null,null,null,null,null,null,null,0,null,null,0,0]
[null,null,null,null,null,0,null,null,0,0,null,null,null,null,null,null,null,null,null,null,null,null,null,null,null,null,null,null,null,null,null,null,null,0,null,null,0,0]
[null,null,null,null,null,0,null,null,0,0,null,null,null,null,null,null,null,null,null,null,null,null,null,null,null,null,null,"الفــــــــــــــــــــــــــــــــــــــرز",null,null,null,null,null,0,null,null,0,0]
[null,null,null,null,null,0,null,null,0,0,null,null,null,null,null,null,null,null,null,null,null,null,null,null,null,null,null,null,null,null,null,null,null,0,null,null,0,0]
[null,null,null,null,null,0,null,null,0,0,null,null,null,null,null,null,null,null,null,null,null,null,null,null,null,null,null,null,null,null,null,null,null,0,null,null,0,0]
[null,null,null,null,null,0,null,null,0,0,null,null,null,null,null,null,null,null,null,null,null,null,null,null,null,null,null,null,null,null,null,null,null,0,null,null,0,0]
[null,null,null,null,null,0,null,null,0,0,null,null,null,null,null,null,null,null,null,null,null,null,null,null,null,null,null,null,null,null,null,null,null,0,null,null,0,0]
[null,null,null,null,null,0,null,null,0,0,null,null,null,null,null,null,null,null,null,null,null,null,null,null,null,null,null,null,null,null,null,null,null,0,null,null,0,0]
[null,null,null,null,null,0,null,null,0,0,null,null,null,null,null,null,null,null,null,null,null,null,null,null,null,null,null,null,null,null,null,null,null,0,null,null,0,0]
[null,null,null,null,null,0,null,null,0,0,null,null,null,null,null,null,null,null,null,null,null,null,null,null,null,null,null,null,null,null,null,null,null,0,null,null,0,0]
["الإجمـــــــــــــــــــــــــالى",null,null,null,null,{"$f":"SUM(F498:F558)","v":0},null,null,{"$f":"SUM(I498:I558)","v":0},{"$f":"J497+F559-I559","v":0},null,null,null,null,null,null,null,null,null,null,null,null,null,null,null,null,null,null,"الإجمـــــــــــــــــــــــــالى",null,null,null,null,{"$f":"SUM(AH498:AH558)","v":0},null,null,{"$f":"SUM(AK498:AK558)","v":0},{"$f":"AL497+AH559-AK559","v":0}]
["أمين المخزن",null,null,null,null,null,null,null,null,"المراجعه",null,null,null,null,null,null,null,null,null,null,null,null,null,null,null,null,null,null,"أمين المخزن",null,null,null,null,null,null,null,null,"المراجعه"]
[{"$f":"A1","v":0},null,null,null,null,null,null,null,null,null,null,null,null,null,null,null,null,null,null,null,null,null,null,null,null,null,null,null,{"$f":"AC1","v":0}]
[null,null,null,null,"بطاقـــــــــــــة صنــــــف",null,null,null,null,null,null,null,null,null,null,null,null,null,null,null,null,null,null,null,null,null,null,"الفــــــــــــــــــــــــــــــــــــــرز",null,null,null,null,"بطاقـــــــــــــة صنــــــف"]
[null,null,null,null,null,null,null,null,"كود الصنف",{"$f":"J493","v":0},null,null,null,null,null,null,null,null,null,null,null,null,null,null,null,null,null,null,null,null,null,null,null,null,null,null,"كود الصنف",{"$f":"AL493","v":0}]
[null,null,null,null,null,"الإنتاج التام",null,null,"الوحدة","م2",null,null,null,null,null,null,null,null,null,null,null,null,null,null,null,null,null,null,null,null,null,null,null,"الإنتاج التام","فرز",null,"الوحدة","م2"]
[]
["التاريخ","بلتات","رصات","رصة","م","الوارد","م","العميل","المنصرف","الرصيــد","ملاحظات",null,null,null,null,null,null,null,null,null,null,null,null,null,null,null,null,null,"التاريخ","بلتات","رصات","رصة","م","الوارد","م","العميل","المنصرف","الرصيــد","ملاحظات"]
[null,"رصيد أول المدة",null,null,null,null,null,null,null,{"$f":"J559","v":0},null,null,null,null,null,null,null,null,null,null,null,null,null,null,null,null,null,null,null,"رصيد أول المدة",null,null,null,null,null,null,null,{"$f":"AL559","v":0}]
[null,null,null,null,null,{"$f":"IF(E568=\"وارد\",B568*C568*D568,0)","v":0},null,null,{"$f":"IF(G568>0,B568*C568*D568,0)","v":0},{"$f":"J567+F568-I568","v":0},null,"سبتمبر",null,null,null,null,null,null,null,null,null,null,null,null,null,null,null,null,null,null,null,null,null,{"$f":"IF(AG568=\"وارد\",AD568*AE568*AF568,0)","v":0},null,null,{"$f":"IF(AI568>0,AD568*AE568*AF568,0)","v":0},{"$f":"AL567+AH568-AK568","v":0},null,"سبتمبر"]
[null,null,null,null,null,{"$f":"IF(E569=\"وارد\",B569*C569*D569,0)","v":0},null,null,{"$f":"IF(G569>0,B569*C569*D569,0)","v":0},{"$f":"J568+F569-I569","v":0},null,null,null,null,null,null,null,null,null,null,null,null,null,null,null,null,null,null,null,null,null,null,null,{"$f":"IF(AG569=\"وارد\",AD569*AE569*AF569,0)","v":0},null,null,{"$f":"IF(AI569>0,AD569*AE569*AF569,0)","v":0},{"$f":"AL568+AH569-AK569","v":0}]
[null,null,null,null,null,{"$f":"IF(E570=\"وارد\",B570*C570*D570,0)","v":0},null,null,0,0,null,null,null,null,null,null,null,null,null,null,null,null,null,null,null,null,null,null,null,null,null,null,null,{"$f":"IF(AG570=\"وارد\",AD570*AE570*AF570,0)","v":0},null,null,0,0]
[null,null,null,null,null,0,null,null,0,0,null,null,null,null,null,null,null,null,null,null,null,null,null,null,null,null,null,null,null,null,null,null,null,0,null,null,0,0]
[null,null,null,null,null,0,null,null,0,0,null,null,null,null,null,null,null,null,null,null,null,null,null,null,null,null,null,null,null,null,null,null,null,0,null,null,0,0]
[null,null,null,null,null,0,null,null,0,0,null,null,null,null,null,null,null,null,null,null,null,null,null,null,null,null,null,"الفــــــــــــــــــــــــــــــــــــــرز",null,null,null,null,null,0,null,null,0,0]
[null,null,null,null,null,0,null,null,0,0,null,null,null,null,null,null,null,null,null,null,null,null,null,null,null,null,null,null,null,null,null,null,null,0,null,null,0,0]
[null,null,null,null,null,0,null,null,0,0,null,null,null,null,null,null,null,null,null,null,null,null,null,null,null,null,null,null,null,null,null,null,null,0,null,null,0,0]
[null,null,null,null,null,0,null,null,0,0,null,null,null,null,null,null,null,null,null,null,null,null,null,null,null,null,null,null,null,null,null,null,null,0,null,null,0,0]
[null,null,null,null,null,0,null,null,0,0,null,null,null,null,null,null,null,null,null,null,null,null,null,null,null,null,null,null,null,null,null,null,null,0,null,null,0,0]
[null,null,null,null,null,0,null,null,0,0,null,null,null,null,null,null,null,null,null,null,null,null,null,null,null,null,null,null,null,null,null,null,null,0,null,null,0,0]
[null,null,null,null,null,0,null,null,0,0,null,null,null,null,null,null,null,null,null,null,null,null,null,null,null,null,null,null,null,null,null,null,null,0,null,null,0,0]
[null,null,null,null,null,0,null,null,0,0,null,null,null,null,null,null,null,null,null,null,null,null,null,null,null,null,null,null,null,null,null,null,null,0,null,null,0,0]
[null,null,null,null,null,0,null,null,0,0,null,null,null,null,null,null,null,null,null,null,null,null,null,null,null,null,null,null,null,null,null,null,null,0,null,null,0,0]
[null,null,null,null,null,0,null,null,0,0,null,null,null,null,null,null,null,null,null,null,null,null,null,null,null,null,null,null,null,null,null,null,null,0,null,null,0,0]
[null,null,null,null,null,0,null,null,0,0,null,null,null,null,null,null,null,null,null,null,null,null,null,null,null,null,null,null,null,null,null,null,null,0,null,null,0,0]
[null,null,null,null,null,0,null,null,0,0,null,null,null,null,null,null,null,null,null,null,null,null,null,null,null,null,null,"الفــــــــــــــــــــــــــــــــــــــرز",null,null,null,null,null,0,null,null,0,0]
[null,null,null,null,null,0,null,null,0,0,null,null,null,null,null,null,null,null,null,null,null,null,null,null,null,null,null,null,null,null,null,null,null,0,null,null,0,0]
[null,null,null,null,null,0,null,null,0,0,null,null,null,null,null,null,null,null,null,null,null,null,null,null,null,null,null,null,null,null,null,null,null,0,null,null,0,0]
[null,null,null,null,null,0,null,null,0,0,null,null,null,null,null,null,null,null,null,null,null,null,null,null,null,null,null,null,null,null,null,null,null,0,null,null,0,0]
[null,null,null,null,null,0,null,null,0,0,null,null,null,null,null,null,null,null,null,null,null,null,null,null,null,null,null,null,null,null,null,null,null,0,null,null,0,0]
[null,null,null,null,null,0,null,null,0,0,null,null,null,null,null,null,null,null,null,null,null,null,null,null,null,null,null,null,null,null,null,null,null,0,null,null,0,0]
[null,null,null,null,null,0,null,null,0,0,null,null,null,null,null,null,null,null,null,null,null,null,null,null,null,null,null,null,null,null,null,null,null,0,null,null,0,0]
[null,null,null,null,null,0,null,null,0,0,null,null,null,null,null,null,null,null,null,null,null,null,null,null,null,null,null,null,null,null,null,null,null,0,null,null,0,0]
[null,null,null,null,null,0,null,null,0,0,null,null,null,null,null,null,null,null,null,null,null,null,null,null,null,null,null,null,null,null,null,null,null,0,null,null,0,0]
[null,null,null,null,null,0,null,null,0,0,null,null,null,null,null,null,null,null,null,null,null,null,null,null,null,null,null,null,null,null,null,null,null,0,null,null,0,0]
[null,null,null,null,null,0,null,null,0,0,null,null,null,null,null,null,null,null,null,null,null,null,null,null,null,null,null,null,null,null,null,null,null,0,null,null,0,0]
[null,null,null,null,null,0,null,null,0,0,null,null,null,null,null,null,null,null,null,null,null,null,null,null,null,null,null,"الفــــــــــــــــــــــــــــــــــــــرز",null,null,null,null,null,0,null,null,0,0]
[null,null,null,null,null,0,null,null,0,0,null,null,null,null,null,null,null,null,null,null,null,null,null,null,null,null,null,null,null,null,null,null,null,0,null,null,0,0]
[null,null,null,null,null,0,null,null,0,0,null,null,null,null,null,null,null,null,null,null,null,null,null,null,null,null,null,null,null,null,null,null,null,0,null,null,0,0]
[null,null,null,null,null,0,null,null,0,0,null,null,null,null,null,null,null,null,null,null,null,null,null,null,null,null,null,null,null,null,null,null,null,0,null,null,0,0]
[null,null,null,null,null,0,null,null,0,0,null,null,null,null,null,null,null,null,null,null,null,null,null,null,null,null,null,null,null,null,null,null,null,0,null,null,0,0]
[null,null,null,null,null,0,null,null,0,0,null,null,null,null,null,null,null,null,null,null,null,null,null,null,null,null,null,null,null,null,null,null,null,0,null,null,0,0]
[null,null,null,null,null,0,null,null,0,0,null,null,null,null,null,null,null,null,null,null,null,null,null,null,null,null,null,null,null,null,null,null,null,0,null,null,0,0]
[null,null,null,null,null,0,null,null,0,0,null,null,null,null,null,null,null,null,null,null,null,null,null,null,null,null,null,null,null,null,null,null,null,0,null,null,0,0]
[null,null,null,null,null,0,null,null,0,0,null,null,null,null,null,null,null,null,null,null,null,null,null,null,null,null,null,null,null,null,null,null,null,0,null,null,0,0]
[null,null,null,null,null,0,null,null,0,0,null,null,null,null,null,null,null,null,null,null,null,null,null,null,null,null,null,null,null,null,null,null,null,0,null,null,0,0]
[null,null,null,null,null,0,null,null,0,0,null,null,null,null,null,null,null,null,null,null,null,null,null,null,null,null,null,null,null,null,null,null,null,0,null,null,0,0]
[null,null,null,null,null,0,null,null,0,0,null,null,null,null,null,null,null,null,null,null,null,null,null,null,null,null,null,"الفــــــــــــــــــــــــــــــــــــــرز",null,null,null,null,null,0,null,null,0,0]
[null,null,null,null,null,0,null,null,0,0,null,null,null,null,null,null,null,null,null,null,null,null,null,null,null,null,null,null,null,null,null,null,null,0,null,null,0,0]
[null,null,null,null,null,0,null,null,0,0,null,null,null,null,null,null,null,null,null,null,null,null,null,null,null,null,null,null,null,null,null,null,null,0,null,null,0,0]
[null,null,null,null,null,0,null,null,0,0,null,null,null,null,null,null,null,null,null,null,null,null,null,null,null,null,null,null,null,null,null,null,null,0,null,null,0,0]
[null,null,null,null,null,0,null,null,0,0,null,null,null,null,null,null,null,null,null,null,null,null,null,null,null,null,null,null,null,null,null,null,null,0,null,null,0,0]
[null,null,null,null,null,0,null,null,0,0,null,null,null,null,null,null,null,null,null,null,null,null,null,null,null,null,null,null,null,null,null,null,null,0,null,null,0,0]
[null,null,null,null,null,0,null,null,0,0,null,null,null,null,null,null,null,null,null,null,null,null,null,null,null,null,null,null,null,null,null,null,null,0,null,null,0,0]
[null,null,null,null,null,0,null,null,0,0,null,null,null,null,null,null,null,null,null,null,null,null,null,null,null,null,null,null,null,null,null,null,null,0,null,null,0,0]
[null,null,null,null,null,0,null,null,0,0,null,null,null,null,null,null,null,null,null,null,null,null,null,null,null,null,null,null,null,null,null,null,null,0,null,null,0,0]
[null,null,null,null,null,0,null,null,0,0,null,null,null,null,null,null,null,null,null,null,null,null,null,null,null,null,null,null,null,null,null,null,null,0,null,null,0,0]
[null,null,null,null,null,0,null,null,0,0,null,null,null,null,null,null,null,null,null,null,null,null,null,null,null,null,null,null,null,null,null,null,null,0,null,null,0,0]
[null,null,null,null,null,0,null,null,0,0,null,null,null,null,null,null,null,null,null,null,null,null,null,null,null,null,null,"الفــــــــــــــــــــــــــــــــــــــرز",null,null,null,null,null,0,null,null,0,0]
[null,null,null,null,null,0,null,null,0,0,null,null,null,null,null,null,null,null,null,null,null,null,null,null,null,null,null,null,null,null,null,null,null,0,null,null,0,0]
[null,null,null,null,null,0,null,null,0,0,null,null,null,null,null,null,null,null,null,null,null,null,null,null,null,null,null,null,null,null,null,null,null,0,null,null,0,0]
[null,null,null,null,null,0,null,null,0,0,null,null,null,null,null,null,null,null,null,null,null,null,null,null,null,null,null,null,null,null,null,null,null,0,null,null,0,0]
[null,null,null,null,null,0,null,null,0,0,null,null,null,null,null,null,null,null,null,null,null,null,null,null,null,null,null,null,null,null,null,null,null,0,null,null,0,0]
[null,null,null,null,null,0,null,null,0,0,null,null,null,null,null,null,null,null,null,null,null,null,null,null,null,null,null,null,null,null,null,null,null,0,null,null,0,0]
[null,null,null,null,null,0,null,null,0,0,null,null,null,null,null,null,null,null,null,null,null,null,null,null,null,null,null,null,null,null,null,null,null,0,null,null,0,0]
[null,null,null,null,null,0,null,null,0,0,null,null,null,null,null,null,null,null,null,null,null,null,null,null,null,null,null,null,null,null,null,null,null,0,null,null,0,0]
[null,null,null,null,null,0,null,null,0,0,null,null,null,null,null,null,null,null,null,null,null,null,null,null,null,null,null,null,null,null,null,null,null,0,null,null,0,0]
[null,null,null,null,null,0,null,null,0,0,null,null,null,null,null,null,null,null,null,null,null,null,null,null,null,null,null,null,null,null,null,null,null,0,null,null,0,0]
[null,null,null,null,null,0,null,null,0,0,null,null,null,null,null,null,null,null,null,null,null,null,null,null,null,null,null,null,null,null,null,null,null,0,null,null,0,0]
[null,null,null,null,null,0,null,null,0,0,null,null,null,null,null,null,null,null,null,null,null,null,null,null,null,null,null,"الفــــــــــــــــــــــــــــــــــــــرز",null,null,null,null,null,0,null,null,0,0]
["الإجمـــــــــــــــــــــــــالى",null,null,null,null,{"$f":"SUM(F568:F628)","v":0},null,null,{"$f":"SUM(I568:I628)","v":0},{"$f":"J567+F629-I629","v":0},null,null,null,null,null,null,null,null,null,null,null,null,null,null,null,null,null,null,"الإجمـــــــــــــــــــــــــالى",null,null,null,null,{"$f":"SUM(AH568:AH628)","v":0},null,null,{"$f":"SUM(AK568:AK628)","v":0},{"$f":"AL567+AH629-AK629","v":0}]
["أمين المخزن",null,null,null,null,null,null,null,null,"المراجعه",null,null,null,null,null,null,null,null,null,null,null,null,null,null,null,null,null,null,"أمين المخزن",null,null,null,null,null,null,null,null,"المراجعه"]
[{"$f":"A1","v":0},null,null,null,null,null,null,null,null,null,null,null,null,null,null,null,null,null,null,null,null,null,null,null,null,null,null,null,{"$f":"AC1","v":0}]
[null,null,null,null,"بطاقـــــــــــــة صنــــــف",null,null,null,null,null,null,null,null,null,null,null,null,null,null,null,null,null,null,null,null,null,null,null,null,null,null,null,"بطاقـــــــــــــة صنــــــف"]
[null,null,null,null,null,null,null,null,"كود الصنف",{"$f":"J563","v":0},null,null,null,null,null,null,null,null,null,null,null,null,null,null,null,null,null,null,null,null,null,null,null,null,null,null,"كود الصنف",{"$f":"AL563","v":0}]
[null,null,null,null,null,"الإنتاج التام",null,null,"الوحدة","م2",null,null,null,null,null,null,null,null,null,null,null,null,null,null,null,null,null,null,null,null,null,null,null,"الإنتاج التام","فرز",null,"الوحدة","م2"]
[]
["التاريخ","بلتات","رصات","رصة","م","الوارد","م","العميل","المنصرف","الرصيــد","ملاحظات",null,null,null,null,null,null,null,null,null,null,null,null,null,null,null,null,null,"التاريخ","بلتات","رصات","رصة","م","الوارد","م","العميل","المنصرف","الرصيــد","ملاحظات"]
[null,"رصيد أول المدة",null,null,null,null,null,null,null,{"$f":"J629","v":0},null,null,null,null,null,null,null,null,null,null,null,null,null,null,null,null,null,null,null,"رصيد أول المدة",null,null,null,null,null,null,null,{"$f":"AL629","v":0}]
[null,null,null,null,null,{"$f":"IF(E638=\"وارد\",B638*C638*D638,0)","v":0},null,null,{"$f":"IF(G638>0,B638*C638*D638,0)","v":0},{"$f":"J637+F638-I638","v":0},null,"أكتوبر",null,null,null,null,null,null,null,null,null,null,null,null,null,null,null,null,null,null,null,null,null,{"$f":"IF(AG638=\"وارد\",AD638*AE638*AF638,0)","v":0},null,null,{"$f":"IF(AI638>0,AD638*AE638*AF638,0)","v":0},{"$f":"AL637+AH638-AK638","v":0},null,"أكتوبر"]
[null,null,null,null,null,{"$f":"IF(E639=\"وارد\",B639*C639*D639,0)","v":0},null,null,{"$f":"IF(G639>0,B639*C639*D639,0)","v":0},{"$f":"J638+F639-I639","v":0},null,null,null,null,null,null,null,null,null,null,null,null,null,null,null,null,null,"الفــــــــــــــــــــــــــــــــــــــرز",null,null,null,null,null,{"$f":"IF(AG639=\"وارد\",AD639*AE639*AF639,0)","v":0},null,null,{"$f":"IF(AI639>0,AD639*AE639*AF639,0)","v":0},{"$f":"AL638+AH639-AK639","v":0}]
[null,null,null,null,null,{"$f":"IF(E640=\"وارد\",B640*C640*D640,0)","v":0},null,null,0,0,null,null,null,null,null,null,null,null,null,null,null,null,null,null,null,null,null,null,null,null,null,null,null,{"$f":"IF(AG640=\"وارد\",AD640*AE640*AF640,0)","v":0},null,null,0,0]
[null,null,null,null,null,0,null,null,0,0,null,null,null,null,null,null,null,null,null,null,null,null,null,null,null,null,null,null,null,null,null,null,null,0,null,null,0,0]
[null,null,null,null,null,0,null,null,0,0,null,null,null,null,null,null,null,null,null,null,null,null,null,null,null,null,null,null,null,null,null,null,null,0,null,null,0,0]
[null,null,null,null,null,0,null,null,0,0,null,null,null,null,null,null,null,null,null,null,null,null,null,null,null,null,null,null,null,null,null,null,null,0,null,null,0,0]
[null,null,null,null,null,0,null,null,0,0,null,null,null,null,null,null,null,null,null,null,null,null,null,null,null,null,null,null,null,null,null,null,null,0,null,null,0,0]
[null,null,null,null,null,0,null,null,0,0,null,null,null,null,null,null,null,null,null,null,null,null,null,null,null,null,null,null,null,null,null,null,null,0,null,null,0,0]
[null,null,null,null,null,0,null,null,0,0,null,null,null,null,null,null,null,null,null,null,null,null,null,null,null,null,null,null,null,null,null,null,null,0,null,null,0,0]
[null,null,null,null,null,0,null,null,0,0,null,null,null,null,null,null,null,null,null,null,null,null,null,null,null,null,null,null,null,null,null,null,null,0,null,null,0,0]
[null,null,null,null,null,0,null,null,0,0,null,null,null,null,null,null,null,null,null,null,null,null,null,null,null,null,null,null,null,null,null,null,null,0,null,null,0,0]
[null,null,null,null,null,0,null,null,0,0,null,null,null,null,null,null,null,null,null,null,null,null,null,null,null,null,null,null,null,null,null,null,null,0,null,null,0,0]
[null,null,null,null,null,0,null,null,0,0,null,null,null,null,null,null,null,null,null,null,null,null,null,null,null,null,null,"الفــــــــــــــــــــــــــــــــــــــرز",null,null,null,null,null,0,null,null,0,0]
[null,null,null,null,null,0,null,null,0,0,null,null,null,null,null,null,null,null,null,null,null,null,null,null,null,null,null,null,null,null,null,null,null,0,null,null,0,0]
[null,null,null,null,null,0,null,null,0,0,null,null,null,null,null,null,null,null,null,null,null,null,null,null,null,null,null,null,null,null,null,null,null,0,null,null,0,0]
[null,null,null,null,null,0,null,null,0,0,null,null,null,null,null,null,null,null,null,null,null,null,null,null,null,null,null,null,null,null,null,null,null,0,null,null,0,0]
[null,null,null,null,null,0,null,null,0,0,null,null,null,null,null,null,null,null,null,null,null,null,null,null,null,null,null,null,null,null,null,null,null,0,null,null,0,0]
[null,null,null,null,null,0,null,null,0,0,null,null,null,null,null,null,null,null,null,null,null,null,null,null,null,null,null,null,null,null,null,null,null,0,null,null,0,0]
[null,null,null,null,null,0,null,null,0,0,null,null,null,null,null,null,null,null,null,null,null,null,null,null,null,null,null,null,null,null,null,null,null,0,null,null,0,0]
[null,null,null,null,null,0,null,null,0,0,null,null,null,null,null,null,null,null,null,null,null,null,null,null,null,null,null,null,null,null,null,null,null,0,null,null,0,0]
[null,null,null,null,null,0,null,null,0,0,null,null,null,null,null,null,null,null,null,null,null,null,null,null,null,null,null,null,null,null,null,null,null,0,null,null,0,0]
[null,null,null,null,null,0,null,null,0,0,null,null,null,null,null,null,null,null,null,null,null,null,null,null,null,null,null,null,null,null,null,null,null,0,null,null,0,0]
[null,null,null,null,null,0,null,null,0,0,null,null,null,null,null,null,null,null,null,null,null,null,null,null,null,null,null,null,null,null,null,null,null,0,null,null,0,0]
[null,null,null,null,null,0,null,null,0,0,null,null,null,null,null,null,null,null,null,null,null,null,null,null,null,null,null,"الفــــــــــــــــــــــــــــــــــــــرز",null,null,null,null,null,0,null,null,0,0]
[null,null,null,null,null,0,null,null,0,0,null,null,null,null,null,null,null,null,null,null,null,null,null,null,null,null,null,null,null,null,null,null,null,0,null,null,0,0]
[null,null,null,null,null,0,null,null,0,0,null,null,null,null,null,null,null,null,null,null,null,null,null,null,null,null,null,null,null,null,null,null,null,0,null,null,0,0]
[null,null,null,null,null,0,null,null,0,0,null,null,null,null,null,null,null,null,null,null,null,null,null,null,null,null,null,null,null,null,null,null,null,0,null,null,0,0]
[null,null,null,null,null,0,null,null,0,0,null,null,null,null,null,null,null,null,null,null,null,null,null,null,null,null,null,null,null,null,null,null,null,0,null,null,0,0]
[null,null,null,null,null,0,null,null,0,0,null,null,null,null,null,null,null,null,null,null,null,null,null,null,null,null,null,null,null,null,null,null,null,0,null,null,0,0]
[null,null,null,null,null,0,null,null,0,0,null,null,null,null,null,null,null,null,null,null,null,null,null,null,null,null,null,null,null,null,null,null,null,0,null,null,0,0]
[null,null,null,null,null,0,null,null,0,0,null,null,null,null,null,null,null,null,null,null,null,null,null,null,null,null,null,null,null,null,null,null,null,0,null,null,0,0]
[null,null,null,null,null,0,null,null,0,0,null,null,null,null,null,null,null,null,null,null,null,null,null,null,null,null,null,null,null,null,null,null,null,0,null,null,0,0]
[null,null,null,null,null,0,null,null,0,0,null,null,null,null,null,null,null,null,null,null,null,null,null,null,null,null,null,null,null,null,null,null,null,0,null,null,0,0]
[null,null,null,null,null,0,null,null,0,0,null,null,null,null,null,null,null,null,null,null,null,null,null,null,null,null,null,null,null,null,null,null,null,0,null,null,0,0]
[null,null,null,null,null,0,null,null,0,0,null,null,null,null,null,null,null,null,null,null,null,null,null,null,null,null,null,"الفــــــــــــــــــــــــــــــــــــــرز",null,null,null,null,null,0,null,null,0,0]
[null,null,null,null,null,0,null,null,0,0,null,null,null,null,null,null,null,null,null,null,null,null,null,null,null,null,null,null,null,null,null,null,null,0,null,null,0,0]
[null,null,null,null,null,0,null,null,0,0,null,null,null,null,null,null,null,null,null,null,null,null,null,null,null,null,null,null,null,null,null,null,null,0,null,null,0,0]
[null,null,null,null,null,0,null,null,0,0,null,null,null,null,null,null,null,null,null,null,null,null,null,null,null,null,null,null,null,null,null,null,null,0,null,null,0,0]
[null,null,null,null,null,0,null,null,0,0,null,null,null,null,null,null,null,null,null,null,null,null,null,null,null,null,null,null,null,null,null,null,null,0,null,null,0,0]
[null,null,null,null,null,0,null,null,0,0,null,null,null,null,null,null,null,null,null,null,null,null,null,null,null,null,null,null,null,null,null,null,null,0,null,null,0,0]
[null,null,null,null,null,0,null,null,0,0,null,null,null,null,null,null,null,null,null,null,null,null,null,null,null,null,null,null,null,null,null,null,null,0,null,null,0,0]
[null,null,null,null,null,0,null,null,0,0,null,null,null,null,null,null,null,null,null,null,null,null,null,null,null,null,null,null,null,null,null,null,null,0,null,null,0,0]
[null,null,null,null,null,0,null,null,0,0,null,null,null,null,null,null,null,null,null,null,null,null,null,null,null,null,null,null,null,null,null,null,null,0,null,null,0,0]
[null,null,null,null,null,0,null,null,0,0,null,null,null,null,null,null,null,null,null,null,null,null,null,null,null,null,null,null,null,null,null,null,null,0,null,null,0,0]
[null,null,null,null,null,0,null,null,0,0,null,null,null,null,null,null,null,null,null,null,null,null,null,null,null,null,null,null,null,null,null,null,null,0,null,null,0,0]
[null,null,null,null,null,0,null,null,0,0,null,null,null,null,null,null,null,null,null,null,null,null,null,null,null,null,null,"الفــــــــــــــــــــــــــــــــــــــرز",null,null,null,null,null,0,null,null,0,0]
[null,null,null,null,null,0,null,null,0,0,null,null,null,null,null,null,null,null,null,null,null,null,null,null,null,null,null,null,null,null,null,null,null,0,null,null,0,0]
[null,null,null,null,null,0,null,null,0,0,null,null,null,null,null,null,null,null,null,null,null,null,null,null,null,null,null,null,null,null,null,null,null,0,null,null,0,0]
[null,null,null,null,null,0,null,null,0,0,null,null,null,null,null,null,null,null,null,null,null,null,null,null,null,null,null,null,null,null,null,null,null,0,null,null,0,0]
[null,null,null,null,null,0,null,null,0,0,null,null,null,null,null,null,null,null,null,null,null,null,null,null,null,null,null,null,null,null,null,null,null,0,null,null,0,0]
[null,null,null,null,null,0,null,null,0,0,null,null,null,null,null,null,null,null,null,null,null,null,null,null,null,null,null,null,null,null,null,null,null,0,null,null,0,0]
[null,null,null,null,null,0,null,null,0,0,null,null,null,null,null,null,null,null,null,null,null,null,null,null,null,null,null,null,null,null,null,null,null,0,null,null,0,0]
[null,null,null,null,null,0,null,null,0,0,null,null,null,null,null,null,null,null,null,null,null,null,null,null,null,null,null,null,null,null,null,null,null,0,null,null,0,0]
[null,null,null,null,null,0,null,null,0,0,null,null,null,null,null,null,null,null,null,null,null,null,null,null,null,null,null,null,null,null,null,null,null,0,null,null,0,0]
[null,null,null,null,null,0,null,null,0,0,null,null,null,null,null,null,null,null,null,null,null,null,null,null,null,null,null,null,null,null,null,null,null,0,null,null,0,0]
[null,null,null,null,null,0,null,null,0,0,null,null,null,null,null,null,null,null,null,null,null,null,null,null,null,null,null,null,null,null,null,null,null,0,null,null,0,0]
[null,null,null,null,null,0,null,null,0,0,null,null,null,null,null,null,null,null,null,null,null,null,null,null,null,null,null,"الفــــــــــــــــــــــــــــــــــــــرز",null,null,null,null,null,0,null,null,0,0]
[null,null,null,null,null,0,null,null,0,0,null,null,null,null,null,null,null,null,null,null,null,null,null,null,null,null,null,null,null,null,null,null,null,0,null,null,0,0]
[null,null,null,null,null,0,null,null,0,0,null,null,null,null,null,null,null,null,null,null,null,null,null,null,null,null,null,null,null,null,null,null,null,0,null,null,0,0]
[null,null,null,null,null,0,null,null,0,0,null,null,null,null,null,null,null,null,null,null,null,null,null,null,null,null,null,null,null,null,null,null,null,0,null,null,0,0]
[null,null,null,null,null,0,null,null,0,0,null,null,null,null,null,null,null,null,null,null,null,null,null,null,null,null,null,null,null,null,null,null,null,0,null,null,0,0]
["الإجمـــــــــــــــــــــــــالى",null,null,null,null,{"$f":"SUM(F638:F698)","v":0},null,null,{"$f":"SUM(I638:I698)","v":0},{"$f":"J637+F699-I699","v":0},null,null,null,null,null,null,null,null,null,null,null,null,null,null,null,null,null,null,"الإجمـــــــــــــــــــــــــالى",null,null,null,null,{"$f":"SUM(AH638:AH698)","v":0},null,null,{"$f":"SUM(AK638:AK698)","v":0},{"$f":"AL637+AH699-AK699","v":0}]
["أمين المخزن",null,null,null,null,null,null,null,null,"المراجعه",null,null,null,null,null,null,null,null,null,null,null,null,null,null,null,null,null,null,"أمين المخزن",null,null,null,null,null,null,null,null,"المراجعه"]
[{"$f":"A1","v":0},null,null,null,null,null,null,null,null,null,null,null,null,null,null,null,null,null,null,null,null,null,null,null,null,null,null,null,{"$f":"AC1","v":0}]
[null,null,null,null,"بطاقـــــــــــــة صنــــــف",null,null,null,null,null,null,null,null,null,null,null,null,null,null,null,null,null,null,null,null,null,null,null,null,null,null,null,"بطاقـــــــــــــة صنــــــف"]
[null,null,null,null,null,null,null,null,"كود الصنف",{"$f":"J633","v":0},null,null,null,null,null,null,null,null,null,null,null,null,null,null,null,null,null,null,null,null,null,null,null,null,null,null,"كود الصنف",{"$f":"AL633","v":0}]
[null,null,null,null,null,"الإنتاج التام",null,null,"الوحدة","م2",null,null,null,null,null,null,null,null,null,null,null,null,null,null,null,null,null,null,null,null,null,null,null,"الإنتاج التام","فرز",null,"الوحدة","م2"]
[null,null,null,null,null,null,null,null,null,null,null,null,null,null,null,null,null,null,null,null,null,null,null,null,null,null,null,"الفــــــــــــــــــــــــــــــــــــــرز"]
["التاريخ","بلتات","رصات","رصة","م","الوارد","م","العميل","المنصرف","الرصيــد","ملاحظات",null,null,null,null,null,null,null,null,null,null,null,null,null,null,null,null,null,"التاريخ","بلتات","رصات","رصة","م","الوارد","م","العميل","المنصرف","الرصيــد","ملاحظات"]
[null,"رصيد أول المدة",null,null,null,null,null,null,null,{"$f":"J699","v":0},null,null,null,null,null,null,null,null,null,null,null,null,null,null,null,null,null,null,null,"رصيد أول المدة",null,null,null,null,null,null,null,{"$f":"AL699","v":0}]
[null,null,null,null,null,{"$f":"IF(E708=\"وارد\",B708*C708*D708,0)","v":0},null,null,{"$f":"IF(G708>0,B708*C708*D708,0)","v":0},{"$f":"J707+F708-I708","v":0},null,"نوفمبر",null,null,null,null,null,null,null,null,null,null,null,null,null,null,null,null,null,null,null,null,null,{"$f":"IF(AG708=\"وارد\",AD708*AE708*AF708,0)","v":0},null,null,{"$f":"IF(AI708>0,AD708*AE708*AF708,0)","v":0},{"$f":"AL707+AH708-AK708","v":0},null,"نوفمبر"]
[null,null,null,null,null,{"$f":"IF(E709=\"وارد\",B709*C709*D709,0)","v":0},null,null,{"$f":"IF(G709>0,B709*C709*D709,0)","v":0},{"$f":"J708+F709-I709","v":0},null,null,null,null,null,null,null,null,null,null,null,null,null,null,null,null,null,null,null,null,null,null,null,{"$f":"IF(AG709=\"وارد\",AD709*AE709*AF709,0)","v":0},null,null,{"$f":"IF(AI709>0,AD709*AE709*AF709,0)","v":0},{"$f":"AL708+AH709-AK709","v":0}]
[null,null,null,null,null,{"$f":"IF(E710=\"وارد\",B710*C710*D710,0)","v":0},null,null,0,0,null,null,null,null,null,null,null,null,null,null,null,null,null,null,null,null,null,null,null,null,null,null,null,{"$f":"IF(AG710=\"وارد\",AD710*AE710*AF710,0)","v":0},null,null,0,0]
[null,null,null,null,null,0,null,null,0,0,null,null,null,null,null,null,null,null,null,null,null,null,null,null,null,null,null,null,null,null,null,null,null,0,null,null,0,0]
[null,null,null,null,null,0,null,null,0,0,null,null,null,null,null,null,null,null,null,null,null,null,null,null,null,null,null,null,null,null,null,null,null,0,null,null,0,0]
[null,null,null,null,null,0,null,null,0,0,null,null,null,null,null,null,null,null,null,null,null,null,null,null,null,null,null,null,null,null,null,null,null,0,null,null,0,0]
[null,null,null,null,null,0,null,null,0,0,null,null,null,null,null,null,null,null,null,null,null,null,null,null,null,null,null,null,null,null,null,null,null,0,null,null,0,0]
[null,null,null,null,null,0,null,null,0,0,null,null,null,null,null,null,null,null,null,null,null,null,null,null,null,null,null,null,null,null,null,null,null,0,null,null,0,0]
[null,null,null,null,null,0,null,null,0,0,null,null,null,null,null,null,null,null,null,null,null,null,null,null,null,null,null,"الفــــــــــــــــــــــــــــــــــــــرز",null,null,null,null,null,0,null,null,0,0]
[null,null,null,null,null,0,null,null,0,0,null,null,null,null,null,null,null,null,null,null,null,null,null,null,null,null,null,null,null,null,null,null,null,0,null,null,0,0]
[null,null,null,null,null,0,null,null,0,0,null,null,null,null,null,null,null,null,null,null,null,null,null,null,null,null,null,null,null,null,null,null,null,0,null,null,0,0]
[null,null,null,null,null,0,null,null,0,0,null,null,null,null,null,null,null,null,null,null,null,null,null,null,null,null,null,null,null,null,null,null,null,0,null,null,0,0]
[null,null,null,null,null,0,null,null,0,0,null,null,null,null,null,null,null,null,null,null,null,null,null,null,null,null,null,null,null,null,null,null,null,0,null,null,0,0]
[null,null,null,null,null,0,null,null,0,0,null,null,null,null,null,null,null,null,null,null,null,null,null,null,null,null,null,null,null,null,null,null,null,0,null,null,0,0]
[null,null,null,null,null,0,null,null,0,0,null,null,null,null,null,null,null,null,null,null,null,null,null,null,null,null,null,null,null,null,null,null,null,0,null,null,0,0]
[null,null,null,null,null,0,null,null,0,0,null,null,null,null,null,null,null,null,null,null,null,null,null,null,null,null,null,null,null,null,null,null,null,0,null,null,0,0]
[null,null,null,null,null,0,null,null,0,0,null,null,null,null,null,null,null,null,null,null,null,null,null,null,null,null,null,null,null,null,null,null,null,0,null,null,0,0]
[null,null,null,null,null,0,null,null,0,0,null,null,null,null,null,null,null,null,null,null,null,null,null,null,null,null,null,null,null,null,null,null,null,0,null,null,0,0]
[null,null,null,null,null,0,null,null,0,0,null,null,null,null,null,null,null,null,null,null,null,null,null,null,null,null,null,null,null,null,null,null,null,0,null,null,0,0]
[null,null,null,null,null,0,null,null,0,0,null,null,null,null,null,null,null,null,null,null,null,null,null,null,null,null,null,"الفــــــــــــــــــــــــــــــــــــــرز",null,null,null,null,null,0,null,null,0,0]
[null,null,null,null,null,0,null,null,0,0,null,null,null,null,null,null,null,null,null,null,null,null,null,null,null,null,null,null,null,null,null,null,null,0,null,null,0,0]
[null,null,null,null,null,0,null,null,0,0,null,null,null,null,null,null,null,null,null,null,null,null,null,null,null,null,null,null,null,null,null,null,null,0,null,null,0,0]
[null,null,null,null,null,0,null,null,0,0,null,null,null,null,null,null,null,null,null,null,null,null,null,null,null,null,null,null,null,null,null,null,null,0,null,null,0,0]
[null,null,null,null,null,0,null,null,0,0,null,null,null,null,null,null,null,null,null,null,null,null,null,null,null,null,null,null,null,null,null,null,null,0,null,null,0,0]
[null,null,null,null,null,0,null,null,0,0,null,null,null,null,null,null,null,null,null,null,null,null,null,null,null,null,null,null,null,null,null,null,null,0,null,null,0,0]
[null,null,null,null,null,0,null,null,0,0,null,null,null,null,null,null,null,null,null,null,null,null,null,null,null,null,null,null,null,null,null,null,null,0,null,null,0,0]
[null,null,null,null,null,0,null,null,0,0,null,null,null,null,null,null,null,null,null,null,null,null,null,null,null,null,null,null,null,null,null,null,null,0,null,null,0,0]
[null,null,null,null,null,0,null,null,0,0,null,null,null,null,null,null,null,null,null,null,null,null,null,null,null,null,null,null,null,null,null,null,null,0,null,null,0,0]
[null,null,null,null,null,0,null,null,0,0,null,null,null,null,null,null,null,null,null,null,null,null,null,null,null,null,null,null,null,null,null,null,null,0,null,null,0,0]
[null,null,null,null,null,0,null,null,0,0,null,null,null,null,null,null,null,null,null,null,null,null,null,null,null,null,null,null,null,null,null,null,null,0,null,null,0,0]
[null,null,null,null,null,0,null,null,0,0,null,null,null,null,null,null,null,null,null,null,null,null,null,null,null,null,null,"الفــــــــــــــــــــــــــــــــــــــرز",null,null,null,null,null,0,null,null,0,0]
[null,null,null,null,null,0,null,null,0,0,null,null,null,null,null,null,null,null,null,null,null,null,null,null,null,null,null,null,null,null,null,null,null,0,null,null,0,0]
[null,null,null,null,null,0,null,null,0,0,null,null,null,null,null,null,null,null,null,null,null,null,null,null,null,null,null,null,null,null,null,null,null,0,null,null,0,0]
[null,null,null,null,null,0,null,null,0,0,null,null,null,null,null,null,null,null,null,null,null,null,null,null,null,null,null,null,null,null,null,null,null,0,null,null,0,0]
[null,null,null,null,null,0,null,null,0,0,null,null,null,null,null,null,null,null,null,null,null,null,null,null,null,null,null,null,null,null,null,null,null,0,null,null,0,0]
[null,null,null,null,null,0,null,null,0,0,null,null,null,null,null,null,null,null,null,null,null,null,null,null,null,null,null,null,null,null,null,null,null,0,null,null,0,0]
[null,null,null,null,null,0,null,null,0,0,null,null,null,null,null,null,null,null,null,null,null,null,null,null,null,null,null,null,null,null,null,null,null,0,null,null,0,0]
[null,null,null,null,null,0,null,null,0,0,null,null,null,null,null,null,null,null,null,null,null,null,null,null,null,null,null,null,null,null,null,null,null,0,null,null,0,0]
[null,null,null,null,null,0,null,null,0,0,null,null,null,null,null,null,null,null,null,null,null,null,null,null,null,null,null,null,null,null,null,null,null,0,null,null,0,0]
[null,null,null,null,null,0,null,null,0,0,null,null,null,null,null,null,null,null,null,null,null,null,null,null,null,null,null,null,null,null,null,null,null,0,null,null,0,0]
[null,null,null,null,null,0,null,null,0,0,null,null,null,null,null,null,null,null,null,null,null,null,null,null,null,null,null,null,null,null,null,null,null,0,null,null,0,0]
[null,null,null,null,null,0,null,null,0,0,null,null,null,null,null,null,null,null,null,null,null,null,null,null,null,null,null,"الفــــــــــــــــــــــــــــــــــــــرز",null,null,null,null,null,0,null,null,0,0]
[null,null,null,null,null,0,null,null,0,0,null,null,null,null,null,null,null,null,null,null,null,null,null,null,null,null,null,null,null,null,null,null,null,0,null,null,0,0]
[null,null,null,null,null,0,null,null,0,0,null,null,null,null,null,null,null,null,null,null,null,null,null,null,null,null,null,null,null,null,null,null,null,0,null,null,0,0]
[null,null,null,null,null,0,null,null,0,0,null,null,null,null,null,null,null,null,null,null,null,null,null,null,null,null,null,null,null,null,null,null,null,0,null,null,0,0]
[null,null,null,null,null,0,null,null,0,0,null,null,null,null,null,null,null,null,null,null,null,null,null,null,null,null,null,null,null,null,null,null,null,0,null,null,0,0]
[null,null,null,null,null,0,null,null,0,0,null,null,null,null,null,null,null,null,null,null,null,null,null,null,null,null,null,null,null,null,null,null,null,0,null,null,0,0]
[null,null,null,null,null,0,null,null,0,0,null,null,null,null,null,null,null,null,null,null,null,null,null,null,null,null,null,null,null,null,null,null,null,0,null,null,0,0]
[null,null,null,null,null,0,null,null,0,0,null,null,null,null,null,null,null,null,null,null,null,null,null,null,null,null,null,null,null,null,null,null,null,0,null,null,0,0]
[null,null,null,null,null,0,null,null,0,0,null,null,null,null,null,null,null,null,null,null,null,null,null,null,null,null,null,null,null,null,null,null,null,0,null,null,0,0]
[null,null,null,null,null,0,null,null,0,0,null,null,null,null,null,null,null,null,null,null,null,null,null,null,null,null,null,null,null,null,null,null,null,0,null,null,0,0]
[null,null,null,null,null,0,null,null,0,0,null,null,null,null,null,null,null,null,null,null,null,null,null,null,null,null,null,null,null,null,null,null,null,0,null,null,0,0]
[null,null,null,null,null,0,null,null,0,0,null,null,null,null,null,null,null,null,null,null,null,null,null,null,null,null,null,"الفــــــــــــــــــــــــــــــــــــــرز",null,null,null,null,null,0,null,null,0,0]
[null,null,null,null,null,0,null,null,0,0,null,null,null,null,null,null,null,null,null,null,null,null,null,null,null,null,null,null,null,null,null,null,null,0,null,null,0,0]
[null,null,null,null,null,0,null,null,0,0,null,null,null,null,null,null,null,null,null,null,null,null,null,null,null,null,null,null,null,null,null,null,null,0,null,null,0,0]
[null,null,null,null,null,0,null,null,0,0,null,null,null,null,null,null,null,null,null,null,null,null,null,null,null,null,null,null,null,null,null,null,null,0,null,null,0,0]
[null,null,null,null,null,0,null,null,0,0,null,null,null,null,null,null,null,null,null,null,null,null,null,null,null,null,null,null,null,null,null,null,null,0,null,null,0,0]
[null,null,null,null,null,0,null,null,0,0,null,null,null,null,null,null,null,null,null,null,null,null,null,null,null,null,null,null,null,null,null,null,null,0,null,null,0,0]
[null,null,null,null,null,0,null,null,0,0,null,null,null,null,null,null,null,null,null,null,null,null,null,null,null,null,null,null,null,null,null,null,null,0,null,null,0,0]
[null,null,null,null,null,0,null,null,0,0,null,null,null,null,null,null,null,null,null,null,null,null,null,null,null,null,null,null,null,null,null,null,null,0,null,null,0,0]
[null,null,null,null,null,0,null,null,0,0,null,null,null,null,null,null,null,null,null,null,null,null,null,null,null,null,null,null,null,null,null,null,null,0,null,null,0,0]
["الإجمـــــــــــــــــــــــــالى",null,null,null,null,{"$f":"SUM(F708:F768)","v":0},null,null,{"$f":"SUM(I708:I768)","v":0},{"$f":"J707+F769-I769","v":0},null,null,null,null,null,null,null,null,null,null,null,null,null,null,null,null,null,null,"الإجمـــــــــــــــــــــــــالى",null,null,null,null,{"$f":"SUM(AH708:AH768)","v":0},null,null,{"$f":"SUM(AK708:AK768)","v":0},{"$f":"AL707+AH769-AK769","v":0}]
["أمين المخزن",null,null,null,null,null,null,null,null,"المراجعه",null,null,null,null,null,null,null,null,null,null,null,null,null,null,null,null,null,null,"أمين المخزن",null,null,null,null,null,null,null,null,"المراجعه"]
[{"$f":"A1","v":0},null,null,null,null,null,null,null,null,null,null,null,null,null,null,null,null,null,null,null,null,null,null,null,null,null,null,"الفــــــــــــــــــــــــــــــــــــــرز",{"$f":"AC1","v":0}]
[null,null,null,null,"بطاقـــــــــــــة صنــــــف",null,null,null,null,null,null,null,null,null,null,null,null,null,null,null,null,null,null,null,null,null,null,null,null,null,null,null,"بطاقـــــــــــــة صنــــــف"]
[null,null,null,null,null,null,null,null,"كود الصنف",{"$f":"J703","v":0},null,null,null,null,null,null,null,null,null,null,null,null,null,null,null,null,null,null,null,null,null,null,null,null,null,null,"كود الصنف",{"$f":"AL703","v":0}]
[null,null,null,null,null,"الإنتاج التام",null,null,"الوحدة","م2",null,null,null,null,null,null,null,null,null,null,null,null,null,null,null,null,null,null,null,null,null,null,null,"الإنتاج التام","فرز",null,"الوحدة","م2"]
[]
["التاريخ","بلتات","رصات","رصة","م","الوارد","م","العميل","المنصرف","الرصيــد","ملاحظات",null,null,null,null,null,null,null,null,null,null,null,null,null,null,null,null,null,"التاريخ","بلتات","رصات","رصة","م","الوارد","م","العميل","المنصرف","الرصيــد","ملاحظات"]
[null,"رصيد أول المدة",null,null,null,null,null,null,null,{"$f":"J769","v":0},null,null,null,null,null,null,null,null,null,null,null,null,null,null,null,null,null,null,null,"رصيد أول المدة",null,null,null,null,null,null,null,{"$f":"AL769","v":0}]
[null,null,null,null,null,{"$f":"IF(E778=\"وارد\",B778*C778*D778,0)","v":0},null,null,{"$f":"IF(G778>0,B778*C778*D778,0)","v":0},{"$f":"J777+F778-I778","v":0},null,"ديسمبر",null,null,null,null,null,null,null,null,null,null,null,null,null,null,null,null,null,null,null,null,null,{"$f":"IF(AG778=\"وارد\",AD778*AE778*AF778,0)","v":0},null,null,{"$f":"IF(AI778>0,AD778*AE778*AF778,0)","v":0},{"$f":"AL777+AH778-AK778","v":0},null,"ديسمبر"]
[null,null,null,null,null,{"$f":"IF(E779=\"وارد\",B779*C779*D779,0)","v":0},null,null,{"$f":"IF(G779>0,B779*C779*D779,0)","v":0},{"$f":"J778+F779-I779","v":0},null,null,null,null,null,null,null,null,null,null,null,null,null,null,null,null,null,null,null,null,null,null,null,{"$f":"IF(AG779=\"وارد\",AD779*AE779*AF779,0)","v":0},null,null,{"$f":"IF(AI779>0,AD779*AE779*AF779,0)","v":0},{"$f":"AL778+AH779-AK779","v":0}]
[null,null,null,null,null,{"$f":"IF(E780=\"وارد\",B780*C780*D780,0)","v":0},null,null,0,0,null,null,null,null,null,null,null,null,null,null,null,null,null,null,null,null,null,null,null,null,null,null,null,{"$f":"IF(AG780=\"وارد\",AD780*AE780*AF780,0)","v":0},null,null,0,0]
[null,null,null,null,null,0,null,null,0,0,null,null,null,null,null,null,null,null,null,null,null,null,null,null,null,null,null,null,null,null,null,null,null,0,null,null,0,0]
[null,null,null,null,null,0,null,null,0,0,null,null,null,null,null,null,null,null,null,null,null,null,null,null,null,null,null,"الفــــــــــــــــــــــــــــــــــــــرز",null,null,null,null,null,0,null,null,0,0]
[null,null,null,null,null,0,null,null,0,0,null,null,null,null,null,null,null,null,null,null,null,null,null,null,null,null,null,null,null,null,null,null,null,0,null,null,0,0]
[null,null,null,null,null,0,null,null,0,0,null,null,null,null,null,null,null,null,null,null,null,null,null,null,null,null,null,null,null,null,null,null,null,0,null,null,0,0]
[null,null,null,null,null,0,null,null,0,0,null,null,null,null,null,null,null,null,null,null,null,null,null,null,null,null,null,null,null,null,null,null,null,0,null,null,0,0]
[null,null,null,null,null,0,null,null,0,0,null,null,null,null,null,null,null,null,null,null,null,null,null,null,null,null,null,null,null,null,null,null,null,0,null,null,0,0]
[null,null,null,null,null,0,null,null,0,0,null,null,null,null,null,null,null,null,null,null,null,null,null,null,null,null,null,null,null,null,null,null,null,0,null,null,0,0]
[null,null,null,null,null,0,null,null,0,0,null,null,null,null,null,null,null,null,null,null,null,null,null,null,null,null,null,null,null,null,null,null,null,0,null,null,0,0]
[null,null,null,null,null,0,null,null,0,0,null,null,null,null,null,null,null,null,null,null,null,null,null,null,null,null,null,null,null,null,null,null,null,0,null,null,0,0]
[null,null,null,null,null,0,null,null,0,0,null,null,null,null,null,null,null,null,null,null,null,null,null,null,null,null,null,null,null,null,null,null,null,0,null,null,0,0]
[null,null,null,null,null,0,null,null,0,0,null,null,null,null,null,null,null,null,null,null,null,null,null,null,null,null,null,null,null,null,null,null,null,0,null,null,0,0]
[null,null,null,null,null,0,null,null,0,0,null,null,null,null,null,null,null,null,null,null,null,null,null,null,null,null,null,null,null,null,null,null,null,0,null,null,0,0]
[null,null,null,null,null,0,null,null,0,0,null,null,null,null,null,null,null,null,null,null,null,null,null,null,null,null,null,"الفــــــــــــــــــــــــــــــــــــــرز",null,null,null,null,null,0,null,null,0,0]
[null,null,null,null,null,0,null,null,0,0,null,null,null,null,null,null,null,null,null,null,null,null,null,null,null,null,null,null,null,null,null,null,null,0,null,null,0,0]
[null,null,null,null,null,0,null,null,0,0,null,null,null,null,null,null,null,null,null,null,null,null,null,null,null,null,null,null,null,null,null,null,null,0,null,null,0,0]
[null,null,null,null,null,0,null,null,0,0,null,null,null,null,null,null,null,null,null,null,null,null,null,null,null,null,null,null,null,null,null,null,null,0,null,null,0,0]
[null,null,null,null,null,0,null,null,0,0,null,null,null,null,null,null,null,null,null,null,null,null,null,null,null,null,null,null,null,null,null,null,null,0,null,null,0,0]
[null,null,null,null,null,0,null,null,0,0,null,null,null,null,null,null,null,null,null,null,null,null,null,null,null,null,null,null,null,null,null,null,null,0,null,null,0,0]
[null,null,null,null,null,0,null,null,0,0,null,null,null,null,null,null,null,null,null,null,null,null,null,null,null,null,null,null,null,null,null,null,null,0,null,null,0,0]
[null,null,null,null,null,0,null,null,0,0,null,null,null,null,null,null,null,null,null,null,null,null,null,null,null,null,null,null,null,null,null,null,null,0,null,null,0,0]
[null,null,null,null,null,0,null,null,0,0,null,null,null,null,null,null,null,null,null,null,null,null,null,null,null,null,null,null,null,null,null,null,null,0,null,null,0,0]
[null,null,null,null,null,0,null,null,0,0,null,null,null,null,null,null,null,null,null,null,null,null,null,null,null,null,null,null,null,null,null,null,null,0,null,null,0,0]
[null,null,null,null,null,0,null,null,0,0,null,null,null,null,null,null,null,null,null,null,null,null,null,null,null,null,null,null,null,null,null,null,null,0,null,null,0,0]
[null,null,null,null,null,0,null,null,0,0,null,null,null,null,null,null,null,null,null,null,null,null,null,null,null,null,null,"الفــــــــــــــــــــــــــــــــــــــرز",null,null,null,null,null,0,null,null,0,0]
[null,null,null,null,null,0,null,null,0,0,null,null,null,null,null,null,null,null,null,null,null,null,null,null,null,null,null,null,null,null,null,null,null,0,null,null,0,0]
[null,null,null,null,null,0,null,null,0,0,null,null,null,null,null,null,null,null,null,null,null,null,null,null,null,null,null,null,null,null,null,null,null,0,null,null,0,0]
[null,null,null,null,null,0,null,null,0,0,null,null,null,null,null,null,null,null,null,null,null,null,null,null,null,null,null,null,null,null,null,null,null,0,null,null,0,0]
[null,null,null,null,null,0,null,null,0,0,null,null,null,null,null,null,null,null,null,null,null,null,null,null,null,null,null,null,null,null,null,null,null,0,null,null,0,0]
[null,null,null,null,null,0,null,null,0,0,null,null,null,null,null,null,null,null,null,null,null,null,null,null,null,null,null,null,null,null,null,null,null,0,null,null,0,0]
[null,null,null,null,null,0,null,null,0,0,null,null,null,null,null,null,null,null,null,null,null,null,null,null,null,null,null,null,null,null,null,null,null,0,null,null,0,0]
[null,null,null,null,null,0,null,null,0,0,null,null,null,null,null,null,null,null,null,null,null,null,null,null,null,null,null,null,null,null,null,null,null,0,null,null,0,0]
[null,null,null,null,null,0,null,null,0,0,null,null,null,null,null,null,null,null,null,null,null,null,null,null,null,null,null,null,null,null,null,null,null,0,null,null,0,0]
[null,null,null,null,null,0,null,null,0,0,null,null,null,null,null,null,null,null,null,null,null,null,null,null,null,null,null,null,null,null,null,null,null,0,null,null,0,0]
[null,null,null,null,null,0,null,null,0,0,null,null,null,null,null,null,null,null,null,null,null,null,null,null,null,null,null,null,null,null,null,null,null,0,null,null,0,0]
[null,null,null,null,null,0,null,null,0,0,null,null,null,null,null,null,null,null,null,null,null,null,null,null,null,null,null,"الفــــــــــــــــــــــــــــــــــــــرز",null,null,null,null,null,0,null,null,0,0]
[null,null,null,null,null,0,null,null,0,0,null,null,null,null,null,null,null,null,null,null,null,null,null,null,null,null,null,null,null,null,null,null,null,0,null,null,0,0]
[null,null,null,null,null,0,null,null,0,0,null,null,null,null,null,null,null,null,null,null,null,null,null,null,null,null,null,null,null,null,null,null,null,0,null,null,0,0]
[null,null,null,null,null,0,null,null,0,0,null,null,null,null,null,null,null,null,null,null,null,null,null,null,null,null,null,null,null,null,null,null,null,0,null,null,0,0]
[null,null,null,null,null,0,null,null,0,0,null,null,null,null,null,null,null,null,null,null,null,null,null,null,null,null,null,null,null,null,null,null,null,0,null,null,0,0]
[null,null,null,null,null,0,null,null,0,0,null,null,null,null,null,null,null,null,null,null,null,null,null,null,null,null,null,null,null,null,null,null,null,0,null,null,0,0]
[null,null,null,null,null,0,null,null,0,0,null,null,null,null,null,null,null,null,null,null,null,null,null,null,null,null,null,null,null,null,null,null,null,0,null,null,0,0]
[null,null,null,null,null,0,null,null,0,0,null,null,null,null,null,null,null,null,null,null,null,null,null,null,null,null,null,null,null,null,null,null,null,0,null,null,0,0]
[null,null,null,null,null,0,null,null,0,0,null,null,null,null,null,null,null,null,null,null,null,null,null,null,null,null,null,null,null,null,null,null,null,0,null,null,0,0]
[null,null,null,null,null,0,null,null,0,0,null,null,null,null,null,null,null,null,null,null,null,null,null,null,null,null,null,null,null,null,null,null,null,0,null,null,0,0]
[null,null,null,null,null,0,null,null,0,0,null,null,null,null,null,null,null,null,null,null,null,null,null,null,null,null,null,null,null,null,null,null,null,0,null,null,0,0]
[null,null,null,null,null,0,null,null,0,0,null,null,null,null,null,null,null,null,null,null,null,null,null,null,null,null,null,"الفــــــــــــــــــــــــــــــــــــــرز",null,null,null,null,null,0,null,null,0,0]
[null,null,null,null,null,0,null,null,0,0,null,null,null,null,null,null,null,null,null,null,null,null,null,null,null,null,null,null,null,null,null,null,null,0,null,null,0,0]
[null,null,null,null,null,0,null,null,0,0,null,null,null,null,null,null,null,null,null,null,null,null,null,null,null,null,null,null,null,null,null,null,null,0,null,null,0,0]
[null,null,null,null,null,0,null,null,0,0,null,null,null,null,null,null,null,null,null,null,null,null,null,null,null,null,null,null,null,null,null,null,null,0,null,null,0,0]
[null,null,null,null,null,0,null,null,0,0,null,null,null,null,null,null,null,null,null,null,null,null,null,null,null,null,null,null,null,null,null,null,null,0,null,null,0,0]
[null,null,null,null,null,0,null,null,0,0,null,null,null,null,null,null,null,null,null,null,null,null,null,null,null,null,null,null,null,null,null,null,null,0,null,null,0,0]
[null,null,null,null,null,0,null,null,0,0,null,null,null,null,null,null,null,null,null,null,null,null,null,null,null,null,null,null,null,null,null,null,null,0,null,null,0,0]
[null,null,null,null,null,0,null,null,0,0,null,null,null,null,null,null,null,null,null,null,null,null,null,null,null,null,null,null,null,null,null,null,null,0,null,null,0,0]
[null,null,null,null,null,0,null,null,0,0,null,null,null,null,null,null,null,null,null,null,null,null,null,null,null,null,null,null,null,null,null,null,null,0,null,null,0,0]
[null,null,null,null,null,0,null,null,0,0,null,null,null,null,null,null,null,null,null,null,null,null,null,null,null,null,null,null,null,null,null,null,null,0,null,null,0,0]
[null,null,null,null,null,0,null,null,0,0,null,null,null,null,null,null,null,null,null,null,null,null,null,null,null,null,null,null,null,null,null,null,null,0,null,null,0,0]
[null,null,null,null,null,0,null,null,0,0,null,null,null,null,null,null,null,null,null,null,null,null,null,null,null,null,null,null,null,null,null,null,null,0,null,null,0,0]
[null,null,null,null,null,0,null,null,0,0,null,null,null,null,null,null,null,null,null,null,null,null,null,null,null,null,null,null,null,null,null,null,null,0,null,null,0,0]
["الإجمـــــــــــــــــــــــــالى",null,null,null,null,{"$f":"SUM(F778:F838)","v":0},null,null,{"$f":"SUM(I778:I838)","v":0},{"$f":"J777+F839-I839","v":0},null,null,null,null,null,null,null,null,null,null,null,null,null,null,null,null,null,null,"الإجمـــــــــــــــــــــــــالى",null,null,null,null,{"$f":"SUM(AH778:AH838)","v":0},null,null,{"$f":"SUM(AK778:AK838)","v":0},{"$f":"AL777+AH839-AK839","v":0}]
["أمين المخزن",null,null,null,null,null,null,null,null,"المراجعه",null,null,null,null,null,null,null,null,null,null,null,null,null,null,null,null,null,null,"أمين المخزن",null,null,null,null,null,null,null,null,"المراجعه"]